Workbook

Sheet Cockpit
A1: LoPos - Logistikkostenorientierte Bestandspositionierung
A2: Softwaredemonstrator zum IGF-Forschungsprojekt "Fehlmengenkostenbasiertes Entscheidungsmodell der Logistik" (16188 N)
A4: © 2011 - IPH – Institut für Integrierte Produktion Hannover gemeinnützige GmbH
A6: Cockpit Softwaredemonstrator
A8: Rahmendaten | G8: Modus: Empirische FMK-Erfassung
A9: Länge Bezugszeitraum [d] | D9: 365
A10: Lagerzinssatz [%] | D10: 0.15
A13: Auswahl zu analysierender Artikel | D13: Aktion auswählen
C14: FMK-Verursachung
A15: Artikel 1 | B15: Normteil | C15: ="Rang"&" "&INDEX('FMK-Erf.-Auswertung'!$A$4:$A$16, MATCH(B15, 'FMK-Erf.-Auswertung'!$B$4:$B$16, 0))&" von "&COUNT('FMK-Erf.-Auswertung'!$A$4:$A$22) -> Rang 3 von 3
C16: erfasste Artikel
A17: Artikel 2 | B17: Komponente | C17: ="Rang"&" "&INDEX('FMK-Erf.-Auswertung'!$A$4:$A$16, MATCH(B17, 'FMK-Erf.-Auswertung'!$B$4:$B$16, 0))&" von "&COUNT('FMK-Erf.-Auswertung'!$A$4:$A$22) -> Rang 2 von 3
C18: erfasste Artikel
A19: Artikel 3 | B19: Aggregat | C19: ="Rang"&" "&INDEX('FMK-Erf.-Auswertung'!$A$4:$A$16, MATCH(B19, 'FMK-Erf.-Auswertung'!$B$4:$B$16, 0))&" von "&COUNT('FMK-Erf.-Auswertung'!$A$4:$A$22) -> Rang 1 von 3
C20: erfasste Artikel
A22: Schnellauswertung
B35: Bezeichnung | C35: Soll-Servicegrad | D35: Logistikkosten [€] | E35: Bestand [ME]
A36: Artikel 1 | B36: =B15 -> Normteil | C36: =Berechnung!A24 -> 1 | D36: =Berechnung!B24 -> 4644.457703 | E36: =Berechnung!C24 -> 776.7155807
A37: Artikel 2 | B37: =B17 -> Komponente | C37: =Berechnung!D24 -> 1 | D37: =Berechnung!E24 -> 2033783.142 | E37: =Berechnung!F24 -> 182.0407295
A38: Artikel 3 | B38: =B19 -> Aggregat | C38: =Berechnung!G24 -> 0.812 | D38: =Berechnung!H24 -> 5519448.653 | E38: =Berechnung!I24 -> 9.501669478

Sheet Artikeldaten
A1: Erfassung Artikeldaten
A2: © 2011 - IPH – Institut für Integrierte Produktion Hannover gemeinnützige GmbH
A3: Artikel | B3: Gemessener mittlerer Lagerbestand [ME] | C3: Gemessener Servicegrad [%] | D3: Bestelllosgröße [ME] | E3: Hinweis: Optimale Beschaffungslosgröße [ME] | F3: Mittlere Bedarfsrate [ME/BKT] | G3: Max. Bedarfsratenabweichung Produktion [ME/BKT] | H3: Wiederbeschaffungszeit [BKT] | I3: Maximale Verspätung Lieferant [BKT] | J3: Max. Mengenabweichung Lieferant [ME] | K3: Einstandspreis [GE/ME] | L3: Mittlere Lagerabgangsgröße [ME] | M3: Fehlmengenkosten [GE/ME] | N3: Bestellvorgangskosten [GE] | O3: Handlingkosten [GE/ME] | P3: Max. Lagerbestandsabweichung [ME] | Q3: Lagerplatzkosten [GE/Platz] | R3: Kapazität Ladehilfsmittel [ME/LHM] | S3: Eilbeschaffungsanteil [%] | T3: Eilbeschaffungspreis [GE/ME] | U3: Servicegradverluste [%]
A4: Pflichtangaben | M4: Empirisch | N4: Optionale Angaben
A5: Normteil | B5: 500 | C5: 0.95 | D5: 927 | E5: =ROUNDUP(SQRT((2*Artikeldaten!F5*Cockpit!$D$9*Artikeldaten!N5)/(Artikeldaten!K5*Cockpit!$D$10+Artikeldaten!Q5*Cockpit!$D$9/(365*Artikeldaten!R5))),0) -> 927 | F5: 40 | G5: 60 | H5: 7 | I5: 7 | J5: 10 | K5: 0.2 | L5: 40 | M5: =VLOOKUP(A5,'FMK-Erf.-Auswertung'!$B$4:$AA$18,25,FALSE) -> 23.09 | N5: 45 | O5: 1 | P5: 2 | Q5: 300 | R5: 200 | S5: 0.04 | T5: 0.5 | U5: 0
A6: Komponente | B6: 123 | C6: 0.85 | D6: 51 | E6: =ROUNDUP(SQRT((2*Artikeldaten!F6*Cockpit!$D$9*Artikeldaten!N6)/(Artikeldaten!K6*Cockpit!$D$10+Artikeldaten!Q6*Cockpit!$D$9/(365*Artikeldaten!R6))),0) -> 49 | F6: 10 | G6: 15 | H6: 14 | I6: 14 | J6: 2 | K6: 550 | L6: 5 | M6: =VLOOKUP(A6,'FMK-Erf.-Auswertung'!$B$4:$AA$18,25,FALSE) -> 91.42 | N6: 45 | O6: 1 | P6: 1 | Q6: 300 | R6: 5 | S6: 0.02 | T6: 600 | U6: 0
A7: Aggregat | B7: 7 | C7: 0.5 | D7: 7 | E7: =ROUNDUP(SQRT((2*Artikeldaten!F7*Cockpit!$D$9*Artikeldaten!N7)/(Artikeldaten!K7*Cockpit!$D$10+Artikeldaten!Q7*Cockpit!$D$9/(365*Artikeldaten!R7))),0) -> 4 | F7: 1 | G7: 2 | H7: 20 | I7: 14 | J7: 0 | K7: 15000 | L7: 1 | M7: =VLOOKUP(A7,'FMK-Erf.-Auswertung'!$B$4:$AA$18,25,FALSE) -> 143.77 | N7: 45 | O7: 1 | P7: 0 | Q7: 300 | R7: 1 | S7: 0.06 | T7: 2000 | U7: 0
M8: =VLOOKUP(A8,'FMK-Erf.-Auswertung'!$B$4:$AA$18,25,FALSE) -> 
M9: =VLOOKUP(A9,'FMK-Erf.-Auswertung'!$B$4:$AA$18,25,FALSE) -> 
M10: =VLOOKUP(A10,'FMK-Erf.-Auswertung'!$B$4:$AA$18,25,FALSE) -> 
M11: =VLOOKUP(A11,'FMK-Erf.-Auswertung'!$B$4:$AA$18,25,FALSE) -> 
M12: =VLOOKUP(A12,'FMK-Erf.-Auswertung'!$B$4:$AA$18,25,FALSE) -> 
M13: =VLOOKUP(A13,'FMK-Erf.-Auswertung'!$B$4:$AA$18,25,FALSE) -> 
M14: =VLOOKUP(A14,'FMK-Erf.-Auswertung'!$B$4:$AA$18,25,FALSE) -> 
M15: =VLOOKUP(A15,'FMK-Erf.-Auswertung'!$B$4:$AA$18,25,FALSE) -> 
M16: =VLOOKUP(A16,'FMK-Erf.-Auswertung'!$B$4:$AA$18,25,FALSE) -> 
M17: =VLOOKUP(A17,'FMK-Erf.-Auswertung'!$B$4:$AA$18,25,FALSE) -> 
M18: =VLOOKUP(A18,'FMK-Erf.-Auswertung'!$B$4:$AA$18,25,FALSE) -> 
M19: =VLOOKUP(A19,'FMK-Erf.-Auswertung'!$B$4:$AA$18,25,FALSE) -> 
M20: =VLOOKUP(A20,'FMK-Erf.-Auswertung'!$B$4:$AA$18,25,FALSE) -> 
M21: =VLOOKUP(A21,'FMK-Erf.-Auswertung'!$B$4:$AA$18,25,FALSE) -> 
M22: =VLOOKUP(A22,'FMK-Erf.-Auswertung'!$B$4:$AA$18,25,FALSE) -> 
M23: =VLOOKUP(A23,'FMK-Erf.-Auswertung'!$B$4:$AA$18,25,FALSE) -> 
M24: =VLOOKUP(A24,'FMK-Erf.-Auswertung'!$B$4:$AA$18,25,FALSE) -> 

Sheet FMK-Erf.-Menü
A1: LoPos - Ereignisbezogene Fehlmengenkostenerfassung
A2: © 2011 - IPH – Institut für Integrierte Produktion Hannover gemeinnützige GmbH

Sheet Modellgest. FMK-Schätzung
A1: LoPos - Modellgestützte Fehlmengenkostenabschätzung und Positionierung
A3: Softwaredemonstrator zum IGF-Forschungsprojekt "Fehlmengenkostenbasiertes Entscheidungsmodell der Logistik" (16188 N)
A4: © 2011 - IPH – Institut für Integrierte Produktion Hannover gemeinnützige GmbH
A6: Benutzermenü
A8: Selektion zu analysierender Artikel | E8: Aggregat | F8: Kostensätze Lager und Beschaffung werden aus Tabellenblatt "Artikeldaten" übertragen
A11: Referenzfehlmengenereignis - Datenerfassung
A13: Durchschnittswerte bei Eintritt eines betriebstypischen Fehlmengenereignisses
A15: Durchschnittlicher Wert pro Produktionsauftrag [€] | C15: 15000 | E15: Durchschnittlicher Maschinenstundensatz Arbeitssystem [€ / h] | H15: 500
A17: Durchschnittliche Leerlaufdauer Arbeitssystem [h] | C17: 1 | E17: Durchschnittliche Rüstkosten "Aufrüsten" [€ / Vorgang] | H17: 5
A19: Durchschnittliche Stilllegungsdauer Arbeitssystem [h] | C19: 48 | E19: Durchschnittliche Rüstkosten "Abrüsten" [€ / Vorgang] | H19: 5
A21: Durchschnittliche Produktionslosgrößenabweichung [%] | C21: 0.25 | E21: Stillsetzungskosten Arbeitssystem [€ / Vorgang] | H21: 5 | I21: Falls abweichend von Rüstkosten, sonst Rüstkosten "Abrüsten" eintragen
A23: Durchschnittliche kumulierte Dispositionszeit [h] | C23: 1 | E23: Wiederanlaufkosten Arbeitssystem [€ / Vorgang] | H23: 5 | I23: Falls abweichend von Rüstkosten, sonst Rüstkosten "Aufrüsten" eintragen
A25: Durchschnittlicher Personalstundensatz [€ / h] | C25: 10 | E25: Laufende Kosten stillgelegtes Arbeitssystem [€ / h] | H25: 350 | I25: Falls abweichend von Maschinen-stundensatz, sonst diesen eintragen
A27: Durchschnittliche Personenanzahl pro Arbeitssystem [MA] | C27: 5
A30: Auswertung | C30: Artikel: | D30: =E8 -> Aggregat
F48: Soll-Zustand | G48: Ist-Zustand | H48: Potenzial
A49: Soll-Servicegrad | B49: Logistikkosten [€] | C49: Bestand [ME] | E49: Servicegrad | F49: =A50 -> 0 | G49: =VLOOKUP($E$8,Artikeldaten!$A$5:$C$24,3,FALSE) -> 0.5 | H49: =F49-G49 -> -0.5 | I49: =IF(H49>=0,"Erhöhung möglich","Senkung möglich") -> Senkung möglich
A50: =Berechnung!K24 -> 0 | B50: =Berechnung!L24 -> 5539968.362 | C50: =Berechnung!M24 -> 5539968.362 | E50: Logistikkosten [€] | F50: =B50 -> 5539968.362 | G50: 10000 | H50: =G50-F50 -> -5529968.362 | I50: =IF(H50>=0,"Senkung möglich","Erhöhung möglich") -> Erhöhung möglich
E51: Lagerbestand [ME] | F51: =C50 -> 5539968.362 | G51: =VLOOKUP($E$8,Artikeldaten!$A$5:$C$24,2,FALSE) -> 7 | H51: =G51-F51 -> -5539961.362 | I51: =IF(H51>=0,"Senkung möglich","Erhöhung möglich") -> Erhöhung möglich

Sheet Auswertung
A1: Bestandspositionierung - Auswertung
A2: © 2011 - IPH – Institut für Integrierte Produktion Hannover gemeinnützige GmbH
A3: Artikel 1 | B3: =Cockpit!B15 -> Normteil
B4: Soll-Zustand | C4: Ist-Zustand | D4: Potenzial
A5: Servicegrad | B5: =Berechnung!A24 -> 1 | C5: =VLOOKUP($B$3,Artikeldaten!$A$5:$C$24,3,FALSE) -> 0.95 | D5: =$B$5-$C$5 -> 0.05 | E5: =IF(D5>=0,"Erhöhung möglich","Senkung möglich") -> Erhöhung möglich
A6: Logistikkosten [€] | B6: =Berechnung!B24 -> 4644.457703 | C6: =Berechnung!C23 -> 20860.39701 | D6: =$C$6-$B$6 -> 16215.9393 | E6: =IF(D6>=0,"Senkung möglich","Erhöhung möglich") -> Senkung möglich
A7: Lagerbestand [ME] | B7: =Berechnung!C24 -> 776.7155807 | C7: =VLOOKUP($B$3,Artikeldaten!$A$5:$C$24,2,FALSE) -> 500 | D7: =$C$7-$B$7 -> -276.7155807 | E7: =IF(D7>=0,"Senkung möglich","Erhöhung möglich") -> Erhöhung möglich
A9: Artikel 2 | B9: =Cockpit!B17 -> Komponente
B10: Soll-Zustand | C10: Ist-Zustand | D10: Potenzial
A11: Servicegrad | B11: =Berechnung!D24 -> 1 | C11: =VLOOKUP($B$9,Artikeldaten!$A$5:$C$24,3,FALSE) -> 0.85 | D11: =$B$11-$C$11 -> 0.15 | E11: =IF(D11>=0,"Erhöhung möglich","Senkung möglich") -> Erhöhung möglich
A12: Logistikkosten [€] | B12: =Berechnung!E24 -> 2033783.142 | C12: =Berechnung!F23 -> 2092369.063 | D12: =$C$12-$B$12 -> 58585.92097 | E12: =IF(D12>=0,"Senkung möglich","Erhöhung möglich") -> Senkung möglich
A13: Lagerbestand [ME] | B13: =Berechnung!F24 -> 182.0407295 | C13: =VLOOKUP($B$9,Artikeldaten!$A$5:$C$24,2,FALSE) -> 123 | D13: =$C$13-$B$13 -> -59.04072952 | E13: =IF(D13>=0,"Senkung möglich","Erhöhung möglich") -> Erhöhung möglich
A15: Artikel 3 | B15: =Cockpit!B19 -> Aggregat
B16: Soll-Zustand | C16: Ist-Zustand | D16: Potenzial
A17: Servicegrad | B17: =Berechnung!G24 -> 0.812 | C17: =VLOOKUP($B$15,Artikeldaten!$A$5:$C$24,3,FALSE) -> 0.5 | D17: =$B$17-$C$17 -> 0.312 | E17: =IF(D17>=0,"Erhöhung möglich","Senkung möglich") -> Erhöhung möglich
A18: Logistikkosten [€] | B18: =Berechnung!H24 -> 5519448.653 | C18: =Berechnung!I23 -> 5531189.288 | D18: =$C$18-$B$18 -> 11740.63493 | E18: =IF(D18>=0,"Senkung möglich","Erhöhung möglich") -> Senkung möglich
A19: Lagerbestand [ME] | B19: =Berechnung!I24 -> 9.501669478 | C19: =VLOOKUP($B$15,Artikeldaten!$A$5:$C$24,2,FALSE) -> 7 | D19: =$C$19-$B$19 -> -2.501669478 | E19: =IF(D19>=0,"Senkung möglich","Erhöhung möglich") -> Erhöhung möglich
B20: Soll-Zustand | C20: Potenzial
A21: =B3 -> Normteil | B21: =B7 -> 776.7155807 | C21: =D7 -> -276.7155807
A22: =B9 -> Komponente | B22: =B13 -> 182.0407295 | C22: =D13 -> -59.04072952
A23: =B15 -> Aggregat | B23: =B19 -> 9.501669478 | C23: =D19 -> -2.501669478

Sheet FMK
A1: Fehlmengenkosten - Auswertung
A2: © 2011 - IPH – Institut für Integrierte Produktion Hannover gemeinnützige GmbH
C3: Absolut | I3: Prozentual
B4: Bezeichnung | C4: Produktionsunterbrechungskosten | D4: Dispositionkosten | E4: Kapitalbindungskosten | F4: Leerkosten | G4: Losgrößenabweichungskosten | H4: Summe | I4: Produktionsunterbrechungskosten | J4: Dispositionkosten | K4: Kapitalbindungskosten | L4: Leerkosten | M4: Losgrößenabweichungskosten | N4: Summe
A5: Artikel 1 | B5: =Cockpit!B15 -> Normteil | C5: =VLOOKUP($B5,'FMK-Erf.-Auswertung'!$B$4:$AA$16,3,FALSE) -> 18.75 | D5: =VLOOKUP($B5,'FMK-Erf.-Auswertung'!$B$4:$AA$16,5,FALSE) -> 25 | E5: =VLOOKUP($B5,'FMK-Erf.-Auswertung'!$B$4:$AA$16,7,FALSE) -> 44.5 | F5: =VLOOKUP($B5,'FMK-Erf.-Auswertung'!$B$4:$AA$16,9,FALSE) -> 47.5 | G5: =VLOOKUP($B5,'FMK-Erf.-Auswertung'!$B$4:$AA$16,11,FALSE) -> 0 | H5: =SUM(C5:G5) -> 135.75 | I5: =C$5/$H5 -> 0.138121547 | J5: =D$5/$H5 -> 0.1841620626 | K5: 0.3278084715 | L5: 0.349907919 | M5: 0 | N5: =SUM(I5:M5) -> 1
A6: Artikel 2 | B6: =Cockpit!B17 -> Komponente | C6: =VLOOKUP($B6,'FMK-Erf.-Auswertung'!$B$4:$AA$16,3,FALSE) -> 62.22 | D6: =VLOOKUP($B6,'FMK-Erf.-Auswertung'!$B$4:$AA$16,5,FALSE) -> 25 | E6: =VLOOKUP($B6,'FMK-Erf.-Auswertung'!$B$4:$AA$16,7,FALSE) -> 41.78 | F6: =VLOOKUP($B6,'FMK-Erf.-Auswertung'!$B$4:$AA$16,9,FALSE) -> 63.89 | G6: =VLOOKUP($B6,'FMK-Erf.-Auswertung'!$B$4:$AA$16,11,FALSE) -> 0 | H6: =SUM(C6:G6) -> 192.89 | I6: =C$6/$H6 -> 0.3225672663 | J6: =D$6/$H6 -> 0.1296075483 | K6: 0.2166001348 | L6: 0.3312250505 | M6: 0 | N6: =SUM(I6:M6) -> 1
A7: Artikel 3 | B7: =Cockpit!B19 -> Aggregat | C7: =VLOOKUP($B7,'FMK-Erf.-Auswertung'!$B$4:$AA$16,3,FALSE) -> 39.44 | D7: =VLOOKUP($B7,'FMK-Erf.-Auswertung'!$B$4:$AA$16,5,FALSE) -> 19.44 | E7: =VLOOKUP($B7,'FMK-Erf.-Auswertung'!$B$4:$AA$16,7,FALSE) -> 45.44 | F7: =VLOOKUP($B7,'FMK-Erf.-Auswertung'!$B$4:$AA$16,9,FALSE) -> 50.71 | G7: =VLOOKUP($B7,'FMK-Erf.-Auswertung'!$B$4:$AA$16,11,FALSE) -> 0 | H7: 155.03 | I7: =C$7/$H7 -> 0.2544023737 | J7: =D$7/$H7 -> 0.1253950848 | K7: 0.2931045604 | L7: 0.327097981 | M7: 0 | N7: 1
A9: =Cockpit!C15 -> Rang 3 von 3 | E9: =Cockpit!C17 -> Rang 2 von 3 | J9: =Cockpit!C19 -> Rang 1 von 3
A10: =B5 -> Normteil | E10: =B6 -> Komponente | J10: =B7 -> Aggregat

Sheet FMK-Erf.-Auswertung
A1: Rang | B1: Artikel | C1: Betroffenes | D1: Summe aller Fehlmengenereignisse | P1: Kosten pro Bezugsgröße | AB1: Fehldauer | AD1: Fehlmenge | AF1: Einheit
D2: KUnterbr [€] | F2: Kdispo [€] | H2: Kkap [€] | J2: Kleer [€] | L2: Klos,abw [€] | N2: Kfehl [€] | P2: KUnterbr [€/Stk] | R2: Kdispo [€/Stk] | T2: Kkap [€/Stk] | V2: Kleer [€/Stk] | X2: Klos,abw [€/Stk] | Z2: Kfehl [€/Stk]
C3: Arbeitssystem | D3: μ | E3: σ | F3: μ | G3: σ | H3: μ | I3: σ | J3: μ | K3: σ | L3: μ | M3: σ | N3: μ | O3: σ | P3: μ | Q3: σ | R3: μ | S3: σ | T3: μ | U3: σ | V3: μ | W3: σ | X3: μ | Y3: σ | Z3: μ | AA3: σ | AB3: μ | AC3: σ | AD3: μ | AE3: σ
A4: 1 | B4: Aggregat | C4: Montagebereich02 | D4: 39.44 | E4: 22.84 | F4: 19.44 | G4: 11.02 | H4: 45.44 | I4: 23.02 | J4: 50.71 | K4: 5.35 | L4: 0 | M4: 0 | N4: 143.77 | O4: 78.44 | P4: 39.44 | Q4: 22.84 | R4: 19.44 | S4: 11.02 | T4: 45.44 | U4: 23.02 | V4: 50.71 | W4: 5.35 | X4: 0 | Y4: 0 | Z4: 143.77 | AA4: 78.44 | AB4: 5.11 | AC4: 1.76 | AD4: 1 | AE4: 0 | AF4: Stück
A5: 2 | B5: Komponente | C5: Montagebereich01 | D5: 62.22 | E5: 16.03 | F5: 25 | G5: 0 | H5: 41.78 | I5: 18.25 | J5: 63.89 | K5: 19.65 | L5: 0 | M5: 0 | N5: 192.89 | O5: 49.23 | P5: 29.49 | Q5: 7.6 | R5: 11.85 | S5: 0 | T5: 19.8 | U5: 8.65 | V5: 30.28 | W5: 9.31 | X5: 0 | Y5: 0 | Z5: 91.42 | AA5: 23.33 | AB5: 6 | AC5: 2.12 | AD5: 2.11 | AE5: 0.93 | AF5: Stück
A6: 3 | B6: Normteil | C6: Montagebereich01 | D6: 18.75 | E6: 25.88 | F6: 25 | G6: 0 | H6: 44.5 | I6: 18.6 | J6: 47.5 | K6: 10.35 | L6: 0 | M6: 0 | N6: 135.75 | O6: 47.93 | P6: 3.19 | Q6: 4.4 | R6: 4.25 | S6: 0 | T6: 7.57 | U6: 3.16 | V6: 8.08 | W6: 1.76 | X6: 0 | Y6: 0 | Z6: 23.09 | AA6: 8.15 | AB6: 2.38 | AC6: 1.41 | AD6: 5.88 | AE6: 4.05 | AF6: Stück

Sheet Wirkmatrix
B2: Matrix – Zusammenhang betriebliche und externe Einflussgrößen auf FMK-Entstehung und FMK-Höhe
B4: Bestandteile der Fehlmengenkostenfunktion | G4: Identifizierte Fehlmengenkostenarten
G5: Betriebsunter-brechungs-kosten | I5: Leerkosten
G6: Stillstandskosten | H6: Übergangskosten | I6: Betriebsmittel | J6: Personal | K6: Losgrößenabweichungskosten | L6: Kapitalbindungskosten | M6: Dispositionskosten | N6: Konventionalstrafen, Schadenersatz | O6: Umsatzverluste | P6: Eilfrachtkosten | Q6: Erhöhte Einstandspreise | R6: Zusätzlicher Personalaufwand über Disposition hinaus
B7: Klassifizierung Einflussgröße | C7: Wirkung auf Höhe FMK-Arten | D7: Einflussfaktoren auf Einflussgröße | E7: Erfassbare Einflussgröße | F7: Quantifizierbare Kostentreiber | S7: Anzahl beeinflusste Kostenarten
B8: Technologie | C8: + | D8: Verkettungsgrad von Arbeitssystemen | E8: Anzahl von Fehlmengenereignis betroffener Arbeitssysteme | F8: nunterbr | G8: 1 | H8: 1 | I8: 1 | J8: 1 | K8: 1 | L8: 1 | M8: 1 | S8: =SUM(G8:R8) -> 7
B9: Produkt | C9: + | D9: Verwendungshäufigkeit fehlender Artikel in Produkten des Unternehmens | G9: 1 | H9: 1 | I9: 1 | J9: 1 | K9: 1 | L9: 1 | M9: 1 | S9: =SUM(G9:R9) -> 7
B10: Organisation | C10: – | D10: Pufferbestandshöhe zwischen Arbeitssystemen | G10: 1 | H10: 1 | I10: 1 | J10: 1 | K10: 1 | L10: 1 | M10: 1 | S10: 7
B11: Technologie, Organisation | C11: + | D11: Maschinenwartungskosten Arbeitssystem während Betriebsunterbrechung | E11: Laufende Stillstandskosten bei Betriebsunterbrechung | F11: klfd | G11: 1 | H11: 1 | S11: 2
C12: + | D12: Kalkulatorische Abschreibungen betroffene Maschinen im Arbeitssystem während Betriebsunterbrechung (Opportunitätskosten) | G12: 1 | H12: 1 | S12: 2
B13: Prozess | C13: + | D13: Personalaufwand für Maschinenstillsetzung | E13: Einmalige Stillsetzungskosten bei Betriebsunterbrechung | F13: Ksz | H13: 1 | S13: 1
B14: Technologie | C14: + | D14: Sachmittelaufwand für Maschinenstillsetzung | H14: 1 | S14: 1
B15: Prozess | C15: + | D15: Personalaufwand für Maschinenwiederanlauf | E15: Wiederanlaufkosten nach Betriebsunterbrechung | F15: Kwa | H15: 1 | S15: 1
B16: Technologie | C16: + | D16: Sachmittelaufwand für Maschinenwiederanlauf | H16: 1 | S16: 1
B17: Produkt | C17: + | D17: Durchführungszeiten Aufträge an Arbeitssystemen | E17: Fehlmengenbedingte Betriebsunterbrechungsdauer | F17: tunterbr | G17: 1 | S17: 1
B18: Organisation, Produkt | C18: – | D18: Möglichkeiten zum Vorziehen anderer Aufträge / Durchführen von Reihenfolgevertauschungen | G18: 1 | S18: 1
B19: Organisation | C19: – | D19: Arbeitsvorrat an anderen Aufträgen an betroffenen Arbeitssystemen | G19: 1 | S19: 1
B20: Organisation | C20: + | D20: Notwendige Qualifikation des an einzelnen Arbeitssystemen eingesetzten Personals, Ausgestaltung der Arbeitsverträge | E20: Personalkostensatz (Stundenlohn) | F20: kpers,h | H20: 1 | J20: 1 | M20: 1 | R20: 1 | S20: 4
B21: Organisation | C21: + | D21: Anzahl in den Materialbereitstellungsprozess involvierter Mitarbeiter | E21: Anzahl in Fehlteilsuche involvierter Mitarbeiter | F21: nsuch,mat | M21: 1 | S21: 1
C22: + | D22: Hierarchiestufen in der Produktion bzw. Materialdisposition und -bereitstellung | M22: 1 | S22: 1
C23: – | D23: Standardisierung der Kommunikationsketten zur Materialsuche bei Fehlmengenereignissen | M23: 1 | S23: 1
B24: Layout | C24: – | D24: Räumliche Nähe von Lager- und Verbrauchsort | E24: Suchzeit für Fehlteile | F24: tsuch,pers | M24: 1 | S24: 1
B25: Organisation | C25: – | D25: Standardisierung der Kommunikationsketten zur Materialsuche bei Fehlmengenereignissen | M25: 1 | S25: 1
B26: Technologie | C26: – | D26: Verfolgbarkeit von Ladungsträgern mit Artikeln über Identtechnologien (z. B. Barcode, RFID) | M26: 1 | S26: 1
B27: Produkt | C27: + | D27: Komplexität der Erzeugnisstruktur | E27: Anzahl in Auftragsumplanungen involvierter Mitarbeiter | F27: ndispo,pers | M27: 1 | S27: 1
B28: Organisation | C28: + | D28: Stärke der zeitlichen Verschiebung der Auftragsfertigstellung (Klärung veränderter Liefertermine ggü. Kunden durch Vertrieb) | M28: 1 | S28: 1
B29: Organisation | C29: – | D29: Grad der IT-Unterstützung in Auftragsdisposition | M29: 1 | S29: 1
B30: Technologie | C30: – | D30: Grad der IT-Unterstützung in Auftragsdisposition | E30: Dispositionszeit für Umplanungen | F30: tdispo,pers | M30: 1 | S30: 1
B31: Produkt | C31: + | D31: Komplexität der Erzeugnisstruktur / Arbeitspläne | M31: 1 | S31: 1
B32: Diverse | C32: + | D32: siehe SCOR-basierter Katalog | E32: Artikelbezogene Fehlmenge | F32: mfehl | K32: 1 | L32: 1 | P32: 1 | Q32: 1 | S32: 4
C33: + | D33: siehe SCOR-basierter Katalog | E33: Artikelbezogene Fehldauer | F33: tfehl | G33: 1 | I33: 1 | J33: 1 | L33: 1 | N33: 1 | O33: 1 | Q33: 1 | S33: 7
B34: Produkt | C34: – | D34: Erzeugnisstruktur | E34: Einsatzmenge fehlender Artikel pro Einheit des Enderzeugnisses | F34: cprod,stck | K34: 1 | L34: 1 | S34: 2
B35: Produkt | C35: + | D35: Anzahl der Einzelteile pro Auftrag | E35: Wert von Fehlmenge direkt betroffener Zwischenerzeugnisse | F35: wprod,fehl | L35: 1 | N35: 1 | O35: 1 | S35: 3
C36: + | D36: Wertigkeit der Einzelteile pro Auftrag | L36: 1 | N36: 1 | O36: 1 | S36: 3
B37: Produkt | C37: + | D37: Anzahl der Einzelteile pro Auftrag | E37: Wert von Fehlmenge indirekt betroffener Zwischenerzeugnisse | F37: wprod | L37: 1 | N37: 1 | O37: 1 | S37: 3
C38: + | D38: Wertigkeit der Einzelteile pro Auftrag | L38: 1 | N38: 1 | O38: 1 | S38: 3
B39: Organisation | C39: + | D39: Vorgegebene wirtschaftlicher Rüstreihenfolgen | E39: Anzahl durch eine Fehlmenge indirekt betroffener Aufträge (verzögerte Bearbeitung) | F39: nauftr,warten | L39: 1 | S39: 1
B40: Organisation | C40: + | D40: Wirtschaftliche Losgröße | E40: Anzahl von Zwischenprodukteinheiten pro indirekt betroffenem Auftrag (Losgröße) | F40: mauftr | K40: 1 | L40: 1 | S40: 2
B41: Organisation | C41: + | D41: Einsatz von Eigenkapital für Beschaffung von Rohstoffen, Halbzeugen und Vorprodukten | E41: Kapitalbindungszinssatz | F41: zkap | L41: 1 | S41: 1
C42: + | D42: Einsatz von Fremdkapital für Beschaffung von Rohstoffen, Halbzeugen und Vorprodukten | L42: 1 | S42: 1
B43: Produkt | C43: + | D43: Durchführungszeiten Aufträge an Arbeitssystemen | E43: Wartezeit von einer Fehlmenge indirekt betroffener Aufträge bis zur Weiterbearbeitung | F43: twarten | L43: 1 | S43: 1
B44: Technologie | C44: + | D44: Automatisierungsgrad | E44: Maschinenstundensatz Arbeitssystem | F44: kmasch | G44: 1 | H44: 1 | I44: 1 | S44: 3
C45: + | D45: Kalkulatorische Abschreibungen Maschinen | G45: 1 | H45: 1 | I45: 1 | S45: 3
B46: Organisation | C46: – | D46: Pufferbestandshöhe zwischen Arbeitssystemen | E46: Anzahl von einem fehlmengenbedingten Leerlauf betroffener Arbeitssysteme | F46: nleer | I46: 1 | J46: 1 | S46: 2
B47: Technologie | C47: + | D47: Verkettungsgrad von Arbeitssystemen | I47: 1 | J47: 1 | S47: 2
C48: + | D48: Arbeitsgeschwindigkeit (Durchsatz) der einzelnen Arbeitssysteme | I48: 1 | J48: 1 | S48: 2
B49: Technologie | C49: + | D49: Arbeitsgeschwindigkeit (Durchsatz) der einzelnen Arbeitssysteme | E49: Fehlmengenbedingte Leerlaufzeit eines Arbeitssystems | F49: tleer | I49: 1 | J49: 1 | S49: 2
B50: Organisation | C50: – | D50: Pufferbestandshöhe zwischen Arbeitssystemen | I50: 1 | J50: 1 | S50: 2
B51: Organisation | C51: – | D51: Einsetzbarkeit unbeschäftigter Mitarbeiter an anderen Arbeitssystemen (cross-training) | E51: Anzahl Mitarbeiter an einem Arbeitssystem während fehlmengenbedingtem Leerlauf | F51: npers,as | J51: 1 | S51: 1
B52: Organisation | C52: + | D52: Rüstgrundzeit: Zeitdauer für Vorbereitung Betriebsmittel (z. B. Werkzeugbeschaffung, Auf- und Abrüsten) | E52: Losfixe Rüstkosten | F52: Krüst | H52: 1 | K52: 1 | S52: 2
B53: Technologie | C53: + | D53: Rüstverteilzeit: Unregelmäßig auftretende Zeiten (z. B. Maschinenanlaufzeit) | H53: 1 | K53: 1 | S53: 2
B54: Personal | C54: + | D54: Rüsterholungszeit: Zeit für das Erholen des Rüstpersonals bis zum weiteren Einsatz | H54: 1 | K54: 1 | S54: 2
B55: Technologie | C55: + | D55: Sachmittelaufwand für Rüstvorgänge (z. B. Schmierstoffe) | H55: 1 | K55: 1 | S55: 2
B56: Produkt | C56: + | D56: Bedarfsmenge Bezugsperiode | E56: Höhe der geplanten Losgröße des direkt betroffenen Auftrags | F56: mlos,gepl | K56: 1 | S56: 1
B57: Technologie | C57: + | D57: Auftragswechselkosten | K57: 1 | S57: 1
B58: Produkt, Organisation, Technologie | C58: – | D58: Lagerkosten | K58: 1 | S58: 1

Sheet Sensitivitätsanalyse
A1: LoPos - Logistikkostenorientierte Positionierung des Lager-Servicegrads - SENSITIVITÄTSANALYSE
A2: © 2011 - IPH – Institut für Integrierte Produktion Hannover gemeinnützige GmbH
B3: Bezugs-zeitraum | C3: =Cockpit!D9 -> 365 | D3: BKT | K3: BR_m
E5: Ausprägung
B6: Parameter | C6: Einheit | D6: Bedeutung | E6: =Cockpit!B15 -> Normteil | F6: =Cockpit!B17 -> Komponente | G6: =Cockpit!B19 -> Aggregat | H6: Untere Grenze | I6: Obere Grenze | J6: Schritt-weite
A7: Allgemeine Parameter | B7: BR_m | C7: ME/ZE | D7: Mittlere Bedarfsrate | E7: =VLOOKUP($E$6,Artikeldaten!$A$5:$U$24,6,FALSE) -> 40 | F7: =VLOOKUP($F$6,Artikeldaten!$A$5:$U$24,6,FALSE) -> 10 | G7: =VLOOKUP($G$6,Artikeldaten!$A$5:$U$24,6,FALSE) -> 1 | H7: -0.5 | I7: 1 | J7: 0.02
A8: Parameter der Beschaffung | B8: X_zu,m | C8: ME | D8: Beschaffungslosgröße | E8: =VLOOKUP($E$6,Artikeldaten!$A$5:$U$24,4,FALSE) -> 927 | F8: =VLOOKUP($F$6,Artikeldaten!$A$5:$U$24,4,FALSE) -> 51 | G8: =VLOOKUP($G$6,Artikeldaten!$A$5:$U$24,4,FALSE) -> 7 | H8: -0.5 | I8: 1 | J8: 0.02
B9: p_st | C9: GE/ME | D9: Einstandspreis | E9: =VLOOKUP($E$6,Artikeldaten!$A$5:$U$24,11,FALSE) -> 0.2 | F9: =VLOOKUP($F$6,Artikeldaten!$A$5:$U$24,11,FALSE) -> 550 | G9: =VLOOKUP($G$6,Artikeldaten!$A$5:$U$24,11,FALSE) -> 15000 | H9: -0.5 | I9: 100 | J9: 0.5
B10: k_best | C10: GE | D10: Bestellvorgangskostensatz | E10: =VLOOKUP($E$6,Artikeldaten!$A$5:$U$24,14,FALSE) -> 45 | F10: =VLOOKUP($F$6,Artikeldaten!$A$5:$U$24,14,FALSE) -> 45 | G10: =VLOOKUP($G$6,Artikeldaten!$A$5:$U$24,14,FALSE) -> 45 | H10: -0.5 | I10: 1 | J10: 0.02
B11: k_hand | C11: GE/LHM | D11: Handlingkostensatz | E11: =VLOOKUP($E$6,Artikeldaten!$A$5:$U$24,15,FALSE) -> 1 | F11: =VLOOKUP($F$6,Artikeldaten!$A$5:$U$24,15,FALSE) -> 1 | G11: =VLOOKUP($G$6,Artikeldaten!$A$5:$U$24,15,FALSE) -> 1 | H11: -0.5 | I11: 1 | J11: 0.02
B12: WBZ | C12: ZE | D12: Länge Wiederbeschaffungszeit | E12: =VLOOKUP($E$6,Artikeldaten!$A$5:$U$24,8,FALSE) -> 7 | F12: =VLOOKUP($F$6,Artikeldaten!$A$5:$U$24,8,FALSE) -> 14 | G12: =VLOOKUP($G$6,Artikeldaten!$A$5:$U$24,8,FALSE) -> 20 | H12: -1 | I12: 1 | J12: 0.05
A13: Plan- abweichungen | B13: TA_neg,max | C13: ZE | D13: Max. neg. Terminabweichung | E13: =VLOOKUP($E$6,Artikeldaten!$A$5:$U$24,9,FALSE) -> 7 | F13: =VLOOKUP($F$6,Artikeldaten!$A$5:$U$24,9,FALSE) -> 14 | G13: =VLOOKUP($G$6,Artikeldaten!$A$5:$U$24,9,FALSE) -> 14 | H13: -0.5 | I13: 1 | J13: 0.02
B14: MA_neg,max | C14: ME | D14: Max. neg. Mengenabweichung | E14: =VLOOKUP($E$6,Artikeldaten!$A$5:$U$24,10,FALSE) -> 10 | F14: =VLOOKUP($F$6,Artikeldaten!$A$5:$U$24,10,FALSE) -> 2 | G14: =VLOOKUP($G$6,Artikeldaten!$A$5:$U$24,10,FALSE) -> 0 | H14: -0.5 | I14: 1 | J14: 0.02
B15: BR_max | C15: ME/ZE | D15: Max. Bedarfsratenabweichung | E15: =VLOOKUP($E$6,Artikeldaten!$A$5:$U$24,7,FALSE) -> 60 | F15: =VLOOKUP($F$6,Artikeldaten!$A$5:$U$24,7,FALSE) -> 15 | G15: =VLOOKUP($G$6,Artikeldaten!$A$5:$U$24,7,FALSE) -> 2 | H15: -0.5 | I15: 1 | J15: 0.02
B16: VL_max | C16: ME | D16: Max. Bestandshöhenabweichung | E16: =VLOOKUP($E$6,Artikeldaten!$A$5:$U$24,16,FALSE) -> 2 | F16: =VLOOKUP($F$6,Artikeldaten!$A$5:$U$24,16,FALSE) -> 1 | G16: =VLOOKUP($G$6,Artikeldaten!$A$5:$U$24,16,FALSE) -> 0 | H16: -0.5 | I16: 1 | J16: 0.02
A17: Parameter der Lagerhaltung | B17: z_lager | C17: - | D17: Lagerzinssatz | E17: =Cockpit!$D$10 -> 0.15 | F17: =Cockpit!$D$10 -> 0.15 | G17: =Cockpit!$D$10 -> 0.15 | H17: -0.5 | I17: 1 | J17: 0.02
B18: k_platz | C18: GE/PLATZ | D18: Lagerplatzkosten | E18: =VLOOKUP($E$6,Artikeldaten!$A$5:$U$24,17,FALSE) -> 300 | F18: =VLOOKUP($F$6,Artikeldaten!$A$5:$U$24,17,FALSE) -> 300 | G18: =VLOOKUP($G$6,Artikeldaten!$A$5:$U$24,17,FALSE) -> 300 | H18: -0.5 | I18: 1 | J18: 0.02
B19: kap_lhm | C19: ME/LHM | D19: Kapazität Ladehilfsmittel | E19: =VLOOKUP($E$6,Artikeldaten!$A$5:$U$24,18,FALSE) -> 200 | F19: =VLOOKUP($F$6,Artikeldaten!$A$5:$U$24,18,FALSE) -> 5 | G19: =VLOOKUP($G$6,Artikeldaten!$A$5:$U$24,18,FALSE) -> 1 | H19: -0.5 | I19: 1 | J19: 0.02
B20: C-Wert | C20: - | D20: C-Norm-Parameter | E20: =VLOOKUP($E$6,Artikeldaten!$A$5:$U$24,12,FALSE) -> 40 | F20: =VLOOKUP($F$6,Artikeldaten!$A$5:$U$24,12,FALSE) -> 5 | G20: =VLOOKUP($G$6,Artikeldaten!$A$5:$U$24,12,FALSE) -> 1 | H20: -0.5 | I20: 1 | J20: 0.02
A21: Parameter Fehlmengen- ereignisse | B21: a_eil | C21: - | D21: Eilbeschaffungsanteil | E21: =VLOOKUP($E$6,Artikeldaten!$A$5:$U$24,19,FALSE) -> 0.04 | F21: =VLOOKUP($F$6,Artikeldaten!$A$5:$U$24,19,FALSE) -> 0.02 | G21: =VLOOKUP($G$6,Artikeldaten!$A$5:$U$24,19,FALSE) -> 0.06 | H21: -0.5 | I21: 2 | J21: 0.02
B22: k_eil | C22: GE/ME | D22: Eilbeschaffungskostensatz | E22: =VLOOKUP($E$6,Artikeldaten!$A$5:$U$24,20,FALSE) -> 0.5 | F22: =VLOOKUP($F$6,Artikeldaten!$A$5:$U$24,20,FALSE) -> 600 | G22: =VLOOKUP($G$6,Artikeldaten!$A$5:$U$24,20,FALSE) -> 2000 | H22: -0.5 | I22: 1 | J22: 0.02
B23: k_fehlstck | C23: GE/ME | D23: Fehlmengenkostensatz Produktion | E23: =VLOOKUP($E$6,Artikeldaten!$A$5:$U$24,13,FALSE) -> 23.09 | F23: =VLOOKUP($F$6,Artikeldaten!$A$5:$U$24,13,FALSE) -> 91.42 | G23: =VLOOKUP($G$6,Artikeldaten!$A$5:$U$24,13,FALSE) -> 143.77 | H23: -0.5 | I23: 5 | J23: 0.1
B25: Residuum für Algorithmus zur Bestimmung des optimalen Servicegrads | G25: 0.001
B27: X_zu,m,opt | C27: ME | D27: opt. Beschaffungslosgröße | E27: =ROUNDUP(SQRT((2*E7*$C$3*E10)/(E9*E17+E18*$C$3/(365*E19))),0) -> 927 | F27: =ROUNDUP(SQRT((2*F7*$C$3*F10)/(F9*F17+F18*$C$3/(365*F19))),0) -> 49 | G27: =ROUNDUP(SQRT((2*G7*$C$3*G10)/(G9*G17+G18*$C$3/(365*G19))),0) -> 4

Sheet Sensitivität-Auswertung
A1: Auswertung Sensitivitätsanalyse
A3: Parameter | B3: BR_m
A5: Ausgangswert | B5: Artikel 1 | C5: Artikel 2 | D5: Artikel 3
A6: SG_opt | B6: 1 | C6: 1 | D6: 1
A7: K_log,sgopt | B7: 942.7198385 | C7: 22332.55396 | D7: 62256.93364
A9: Analyse | B9: Artikel 1 | D9: Artikel 2 | F9: Artikel 3 | H9: Δ Artikel 1 | J9: Δ Artikel 2 | L9: Δ Artikel 3
A10: Abweichung | B10: SG_opt | C10: K_log,sgopt | D10: SG_opt | E10: K_log,sgopt | F10: SG_opt | G10: K_log,sgopt | H10: Δ SG_opt | I10: Δ K_log,sgopt | J10: Δ SG_opt | K10: Δ K_log,sgopt | L10: Δ SG_opt | M10: Δ K_log,sgopt
A11: -0.5 | B11: 1 | C11: 942.7198385 | D11: 1 | E11: 22332.55396 | F11: 1 | G11: 78558.40118 | H11: 0 | I11: 0 | J11: 0 | K11: 0 | L11: 0 | M11: 0.2618417996
A12: -0.48 | B12: 1 | C12: 939.0291197 | D12: 1 | E12: 22160.60805 | F12: 1 | G12: 77732.85415 | H12: 0 | I12: -0.003914968873 | J12: 0 | K12: -0.007699339296 | L12: 0 | M12: 0.2485814768
A13: -0.46 | B13: 1 | C13: 935.6206161 | D13: 1 | E13: 22001.80916 | F13: 1 | G13: 76918.60179 | H13: 0 | I13: -0.007530574885 | J13: 0 | K13: -0.01480998541 | L13: 0 | M13: 0.2355025745
A14: -0.44 | B14: 1 | C14: 932.5004811 | D14: 1 | E14: 21856.44419 | F14: 1 | G14: 76116.00662 | H14: 0 | I14: -0.01084029105 | J14: 0 | K14: -0.02131909174 | L14: 0 | M14: 0.2226109153
A15: -0.42 | B15: 1 | C15: 929.6745046 | D15: 1 | E15: 21724.78313 | F15: 1 | G15: 75325.44127 | H15: 0 | I15: -0.01383797532 | J15: 0 | K15: -0.02721456896 | L15: 0 | M15: 0.2099124846
A16: -0.4 | B16: 1 | C16: 927.1480657 | D16: 1 | E16: 21607.07678 | F16: 1 | G16: 74547.28847 | H16: 0 | I16: -0.01651792206 | J16: 0 | K16: -0.03248518642 | L16: 0 | M16: 0.1974134304
A17: -0.38 | B17: 1 | C17: 924.9260844 | D17: 1 | E17: 21503.55457 | F17: 1 | G17: 73781.941 | H17: 0 | I17: -0.01887491214 | J17: 0 | K17: -0.03712067082 | L17: 0 | M17: 0.1851200611
A18: -0.36 | B18: 1 | C18: 923.0129773 | D18: 1 | E18: 21414.42247 | F18: 1 | G18: 73029.80145 | H18: 0 | I18: -0.02090426056 | J18: 0 | K18: -0.04111179998 | L18: 0 | M18: 0.1730388438
A19: -0.34 | B19: 1 | C19: 921.412616 | D19: 1 | E19: 21339.86099 | F19: 1 | G19: 72291.28212 | H19: 0 | I19: -0.02260186074 | J19: 0 | K19: -0.04445049021 | L19: 0 | M19: 0.1611764007
A20: -0.32 | B20: 1 | C20: 920.1282885 | D20: 1 | E20: 21280.02348 | F20: 1 | G20: 71566.80467 | H20: 0 | I20: -0.02396422461 | J20: 0 | K20: -0.04712987515 | L20: 0 | M20: 0.1495395049
A21: -0.3 | B21: 1 | C21: 919.1626673 | D21: 1 | E21: 21235.03456 | F21: 1 | G21: 70856.79985 | H21: 0 | I21: -0.02498851747 | J21: 0 | K21: -0.04914437459 | L21: 0 | M21: 0.1381350752
A22: -0.28 | B22: 1 | C22: 918.5177814 | D22: 1 | E22: 21204.98886 | F22: 1 | G22: 70161.70705 | H22: 0 | I22: -0.025672587 | J22: 0 | K22: -0.05048975152 | L22: 0 | M22: 0.1269701693
A23: -0.26 | B23: 1 | C23: 918.1949955 | D23: 1 | E23: 21189.95001 | F23: 1 | G23: 69481.97382 | H23: 0 | I23: -0.02601498559 | J23: 0 | K23: -0.05116315621 | L23: 0 | M23: 0.1160519761
A24: -0.24 | B24: 1 | C24: 918.1949955 | D24: 1 | E24: 21189.95001 | F24: 0.1099347226 | G24: 70561.20369 | H24: 0 | I24: -0.02601498559 | J24: 0 | K24: -0.05116315621 | L24: -0.8900652774 | M24: 0.1333870713
A25: -0.22 | B25: 1 | C25: 918.5177814 | D25: 1 | E25: 21204.98886 | F25: 0.2505616927 | G25: 71519.01586 | H25: 0 | I25: -0.025672587 | J25: 0 | K25: -0.05048975152 | L25: -0.7494383073 | M25: 0.1487718985
A26: -0.2 | B26: 1 | C26: 919.1626673 | D26: 1 | E26: 21235.03456 | F26: 0.3902505626 | G26: 71784.04793 | H26: 0 | I26: -0.02498851747 | J26: 0 | K26: -0.04914437459 | L26: -0.6097494374 | M26: 0.1530289678
A27: -0.18 | B27: 1 | C27: 920.1282885 | D27: 1 | E27: 21280.02348 | F27: 0.5289748011 | G27: 71370.83272 | H27: 0 | I27: -0.02396422461 | J27: 0 | K27: -0.04712987515 | L27: -0.4710251989 | M27: 0.1463917116
A28: -0.16 | B28: 1 | C28: 921.412616 | D28: 1 | E28: 21339.86099 | F28: 0.6667076326 | G28: 70294.33647 | H28: 0 | I28: -0.02260186074 | J28: 0 | K28: -0.04445049021 | L28: -0.3332923674 | M28: 0.1291005252
A29: -0.14 | B29: 1 | C29: 923.0129773 | D29: 1 | E29: 21414.42247 | F29: 0.8034220971 | G29: 68569.9539 | H29: 0 | I29: -0.02090426056 | J29: 0 | K29: -0.04111179998 | L29: -0.1965779029 | M29: 0.1014026854
A30: -0.12 | B30: 1 | C30: 924.9260844 | D30: 1 | E30: 21503.55457 | F30: 0.9390911156 | G30: 66213.50078 | H30: 0 | I30: -0.01887491214 | J30: 0 | K30: -0.03712067082 | L30: -0.0609088844 | M30: 0.06355223279
A31: -0.1 | B31: 1 | C31: 927.1480657 | D31: 1 | E31: 21607.07678 | F31: 1 | G31: 64652.91531 | H31: 0 | I31: -0.01651792206 | J31: 0 | K31: -0.03248518642 | L31: 0 | M31: 0.03848537874
A32: -0.08 | B32: 1 | C32: 929.6745046 | D32: 1 | E32: 21724.78313 | F32: 1 | G32: 64132.54752 | H32: 0 | I32: -0.01383797532 | J32: 0 | K32: -0.02721456896 | L32: 0 | M32: 0.03012698781
A33: -0.06 | B33: 1 | C33: 932.5004811 | D33: 1 | E33: 21856.44419 | F33: 1 | G33: 63632.29037 | H33: 0 | I33: -0.01084029105 | J33: 0 | K33: -0.02131909174 | L33: 0 | M33: 0.02209162337
A34: -0.04 | B34: 1 | C34: 935.6206161 | D34: 1 | E34: 22001.80916 | F34: 1 | G34: 63152.6218 | H34: 0 | I34: -0.007530574885 | J34: 0 | K34: -0.01480998541 | L34: 0 | M34: 0.01438696233
A35: -0.02 | B35: 1 | C35: 939.0291197 | D35: 1 | E35: 22160.60805 | F35: 1 | G35: 62694.0144 | H35: 0 | I35: -0.003914968873 | J35: 0 | K35: -0.007699339296 | L35: 0 | M35: 0.00702059572
A36: 4.440892099e-16 | B36: 1 | C36: 942.7198385 | D36: 1 | E36: 22332.55396 | F36: 1 | G36: 62256.93364 | H36: 0 | I36: 0 | J36: 0 | K36: 1.629002583e-16 | L36: 0 | M36: 0
A37: 0.02 | B37: 1 | C37: 946.6863057 | D37: 1 | E37: 22517.34537 | F37: 1 | G37: 61841.83597 | H37: 0 | I37: 0.004207471917 | J37: 0 | K37: 0.008274531225 | L37: 0 | M37: -0.006667492956
A38: 0.04 | B38: 1 | C38: 950.9217896 | D38: 1 | E38: 22714.66843 | F38: 1 | G38: 61449.16693 | H38: 0 | I38: 0.008700306065 | J38: 0 | K38: 0.01711020056 | L38: 0 | M38: -0.01297472694
A39: 0.06 | B39: 1 | C39: 955.4193414 | D39: 1 | E39: 22924.19918 | F39: 1 | G39: 61079.35909 | H39: 0 | I39: 0.01347113149 | J39: 0 | K39: 0.02649250177 | L39: 0 | M39: -0.01891475339
A40: 0.08 | B40: 1 | C40: 960.1718417 | D40: 1 | E40: 23145.60571 | F40: 1 | G40: 60732.83011 | H40: 0 | I40: 0.01851239629 | J40: 0 | K40: 0.03640657306 | L40: 0 | M40: -0.02448086402
A41: 0.1 | B41: 1 | C41: 965.1720451 | D41: 1 | E41: 23378.55026 | F41: 1 | G41: 60409.98061 | H41: 0 | I41: 0.02381641466 | J41: 0 | K41: 0.04683728966 | L41: 0 | M41: -0.02966662377
A42: 0.12 | B42: 1 | C42: 970.4126214 | D42: 1 | E42: 23622.69111 | F42: 1 | G42: 60111.19215 | H42: 0 | I42: 0.0293754112 | J42: 0 | K42: 0.05776935117 | L42: 0 | M42: -0.03446590382
A43: 0.14 | B43: 1 | C43: 975.8861953 | D43: 1 | E43: 23877.68448 | F43: 1 | G43: 59836.8252 | H43: 0 | I43: 0.03518156241 | J43: 0 | K43: 0.06918736304 | L43: 0 | M43: -0.03887291427
A44: 0.16 | B44: 1 | C44: 981.585382 | D44: 1 | E44: 24143.18613 | F44: 1 | G44: 59587.2171 | H44: 0 | I44: 0.04122703475 | J44: 0 | K44: 0.08107591169 | L44: 0 | M44: -0.04288223624
A45: 0.18 | B45: 1 | C45: 987.5028201 | D45: 1 | E45: 24418.85295 | F45: 1 | G45: 59362.68022 | H45: 0 | I45: 0.04750401954 | J45: 0 | K45: 0.09341963302 | L45: 0 | M45: -0.0464888528
A46: 0.2 | B46: 1 | C46: 993.6312011 | D46: 1 | E46: 24704.34431 | F46: 1 | G46: 59163.5 | H46: 0 | I46: 0.05400476425 | J46: 0 | K46: 0.1062032741 | L46: 0 | M46: -0.04968817864
A47: 0.22 | B47: 1 | C47: 999.9632959 | D47: 1 | E47: 24999.32326 | F47: 1 | G47: 58989.93332 | H47: 0 | I47: 0.06072160046 | J47: 0 | K47: 0.1194117479 | L47: 0 | M47: -0.05247608785
A48: 0.24 | B48: 1 | C48: 1006.491978 | D48: 1 | E48: 25303.45768 | F48: 1 | G48: 58842.20685 | H48: 0 | I48: 0.06764696836 | J48: 0 | K48: 0.133030182 | L48: 0 | M48: -0.05484893953
A49: 0.26 | B49: 1 | C49: 1013.210242 | D49: 1 | E49: 25616.42113 | F49: 1 | G49: 58720.51563 | H49: 0 | I49: 0.07477343808 | J49: 0 | K49: 0.1470439601 | L49: 0 | M49: -0.05680360094
A50: 0.28 | B50: 1 | C50: 1020.111224 | D50: 1 | E50: 25937.89372 | F50: 1 | G50: 58625.02178 | H50: 0 | I50: 0.08209372779 | J50: 0 | K50: 0.1614387575 | L50: 0 | M50: -0.05833746775
A51: 0.3 | B51: 1 | C51: 1027.188214 | D51: 1 | E51: 26267.56273 | F51: 1 | G51: 58555.8535 | H51: 0 | I51: 0.08960071899 | J51: 0 | K51: 0.1762005715 | L51: 0 | M51: -0.05944848111
A52: 0.32 | B52: 1 | C52: 1034.434666 | D52: 1 | E52: 26605.12318 | F52: 1 | G52: 58513.10413 | H52: 0 | I52: 0.09728746896 | J52: 0 | K52: 0.191315746 | L52: 0 | M52: -0.06013514137
A53: 0.34 | B53: 1 | C53: 1041.84421 | D53: 1 | E53: 26950.27826 | F53: 1 | G53: 58496.83162 | H53: 0 | I53: 0.1051472208 | J53: 0 | K53: 0.2067709904 | L53: 0 | M53: -0.06039651811
A54: 0.36 | B54: 1 | C54: 1049.410658 | D54: 1 | E54: 27302.73967 | F54: 1 | G54: 58507.05805 | H54: 0 | I54: 0.1131734111 | J54: 0 | K54: 0.2225533957 | L54: 0 | M54: -0.06023225648
A55: 0.38 | B55: 1 | C55: 1057.128012 | D55: 1 | E55: 27662.22789 | F55: 1 | G55: 58543.76952 | H55: 0 | I55: 0.1213596756 | J55: 0 | K55: 0.2386504445 | L55: 0 | M55: -0.05964257953
A56: 0.4 | B56: 1 | C56: 1064.990463 | D56: 1 | E56: 28028.47228 | F56: 1 | G56: 58606.91628 | H56: 0 | I56: 0.1296998528 | J56: 0 | K56: 0.2550500193 | L56: 0 | M56: -0.05862828675
A57: 0.42 | B57: 1 | C57: 1072.992395 | D57: 1 | E57: 28401.21124 | F57: 1 | G57: 58696.413 | H57: 0 | I57: 0.1381879864 | J57: 0 | K57: 0.2717404061 | L57: 0 | M57: -0.05719074866
A58: 0.44 | B58: 1 | C58: 1081.128387 | D58: 1 | E58: 28780.19221 | F58: 1 | G58: 58812.13937 | H58: 0 | I58: 0.1468183256 | J58: 0 | K58: 0.2887102956 | L58: 0 | M58: -0.05533189757
A59: 0.46 | B59: 1 | C59: 1089.393211 | D59: 1 | E59: 29165.17166 | F59: 1 | G59: 58953.94091 | H59: 0 | I59: 0.1555853249 | J59: 0 | K59: 0.3059487828 | L59: 0 | M59: -0.05305421473
A60: 0.48 | B60: 1 | C60: 1097.781831 | D60: 1 | E60: 29555.91497 | F60: 1 | G60: 59121.63001 | H60: 0 | I60: 0.1644836422 | J60: 0 | K60: 0.3234453626 | L60: 0 | M60: -0.05036071399
A61: 0.5 | B61: 1 | C61: 1106.289401 | D61: 1 | E61: 29952.19638 | F61: 1 | G61: 59314.98708 | H61: 0 | I61: 0.1735081362 | J61: 0 | K61: 0.3411899256 | L61: 0 | M61: -0.04725492223
A62: 0.52 | B62: 1 | C62: 1114.911259 | D62: 1 | E62: 30353.7988 | F62: 1 | G62: 59533.76202 | H62: 0 | I62: 0.1826538634 | J62: 0 | K62: 0.3591727512 | L62: 0 | M62: -0.04374085684
A63: 0.54 | B63: 1 | C63: 1123.642928 | D63: 1 | E63: 30760.51365 | F63: 1 | G63: 59777.67573 | H63: 0 | I63: 0.1919160735 | J63: 0 | K63: 0.3773844994 | L63: 0 | M63: -0.0398230007
A64: 0.56 | B64: 1 | C64: 1132.480109 | D64: 1 | E64: 31172.14066 | F64: 1 | G64: 60046.42185 | H64: 0 | I64: 0.2012902055 | J64: 0 | K64: 0.3958162025 | L64: 0 | M64: -0.03550627478
A65: 0.58 | B65: 1 | C65: 1141.418674 | D65: 1 | E65: 31588.48763 | F65: 1 | G65: 60339.66856 | H65: 0 | I65: 0.2107718826 | J65: 0 | K65: 0.414459255 | L65: 0 | M65: -0.03079600893
A66: 0.6 | B66: 1 | C66: 1150.454666 | D66: 1 | E66: 32009.37025 | F66: 1 | G66: 60657.06049 | H66: 0 | I66: 0.2203569065 | J66: 0 | K66: 0.4333054031 | L66: 0 | M66: -0.02569791118
A67: 0.62 | B67: 1 | C67: 1159.584291 | D67: 1 | E67: 32434.61181 | F67: 1 | G67: 60998.22072 | H67: 0 | I67: 0.2300412526 | J67: 0 | K67: 0.4523467343 | L67: 0 | M67: -0.02021803588
A68: 0.64 | B68: 1 | C68: 1168.803913 | D68: 1 | E68: 32864.04297 | F68: 1 | G68: 61362.7528 | H68: 0 | I68: 0.239821064 | J68: 0 | K68: 0.4715756662 | L68: 0 | M68: -0.01436275109
A69: 0.66 | B69: 1 | C69: 1178.110049 | D69: 1 | E69: 33297.50151 | F69: 1 | G69: 61750.24278 | H69: 0 | I69: 0.2496926457 | J69: 0 | K69: 0.4909849348 | L69: 0 | M69: -0.008138705685
A70: 0.68 | B70: 1 | C70: 1187.499363 | D70: 1 | E70: 33734.83206 | F70: 1 | G70: 62160.26131 | H70: 0 | I70: 0.2596524589 | J70: 0 | K70: 0.5105675835 | L70: 0 | M70: -0.001552796275
A71: 0.7 | B71: 1 | C71: 1196.968659 | D71: 1 | E71: 34175.88589 | F71: 1 | G71: 62592.36562 | H71: 0 | I71: 0.2696971153 | J71: 0 | K71: 0.5303169513 | L71: 0 | M71: 0.005387865469
A72: 0.72 | B72: 1 | C72: 1206.514882 | D72: 1 | E72: 34620.52057 | F72: 1 | G72: 63046.1016 | H72: 0 | I72: 0.2798233709 | J72: 0 | K72: 0.5502266618 | L72: 0 | M72: 0.01267598498
A73: 0.74 | B73: 1 | C73: 1216.135102 | D73: 1 | E73: 35068.59981 | F73: 1 | G73: 63521.00565 | H73: 0 | I73: 0.290028121 | J73: 0 | K73: 0.5702906115 | L73: 0 | M73: 0.02030411612
A74: 0.76 | B74: 1 | C74: 1225.826519 | D74: 1 | E74: 35519.99315 | F74: 1 | G74: 64016.60666 | H74: 0 | I74: 0.3003083936 | J74: 0 | K74: 0.5905029591 | L74: 0 | M74: 0.02826469141
A75: 0.78 | B75: 1 | C75: 1235.586452 | D75: 1 | E75: 35974.57576 | F75: 1 | G75: 64532.42775 | H75: 0 | I75: 0.310661345 | J75: 0 | K75: 0.6108581147 | L75: 0 | M75: 0.03655005109
A76: 0.8 | B76: 1 | C76: 1245.412334 | D76: 1 | E76: 36432.22817 | F76: 1 | G76: 65067.98801 | H76: 0 | I76: 0.3210842536 | J76: 0 | K76: 0.6313507287 | L76: 0 | M76: 0.04515247066
A77: 0.82 | B77: 1 | C77: 1255.301712 | D77: 1 | E77: 36892.83606 | F77: 1 | G77: 65622.80414 | H77: 0 | I77: 0.331574515 | J77: 0 | K77: 0.6519756823 | L77: 0 | M77: 0.05406418698
A78: 0.84 | B78: 1 | C78: 1265.252234 | D78: 1 | E78: 37356.29003 | F78: 1 | G78: 66196.39194 | H78: 0 | I78: 0.3421296368 | J78: 0 | K78: 0.6727280768 | L78: 0 | M78: 0.06327742268
A79: 0.86 | B79: 1 | C79: 1275.261654 | D79: 1 | E79: 37822.48539 | F79: 1 | G79: 66788.26775 | H79: 0 | I79: 0.352747234 | J79: 0 | K79: 0.6936032242 | L79: 0 | M79: 0.07278440889
A80: 0.88 | B80: 1 | C80: 1285.327818 | D80: 1 | E80: 38291.32193 | F80: 1 | G80: 67397.94974 | H80: 0 | I80: 0.3634250236 | J80: 0 | K80: 0.714596638 | L80: 0 | M80: 0.08257740626
A81: 0.9 | B81: 1 | C81: 1295.448667 | D81: 1 | E81: 38762.70377 | F81: 1 | G81: 68024.95911 | H81: 0 | I81: 0.3741608209 | J81: 0 | K81: 0.7357040242 | L81: 0 | M81: 0.09264872419
A82: 0.92 | B82: 1 | C82: 1305.62223 | D82: 1 | E82: 39236.53911 | F82: 1 | G82: 68668.8212 | H82: 0 | I82: 0.3849525344 | J82: 0 | K82: 0.7569212723 | L82: 0 | M82: 0.1029907384
A83: 0.94 | B83: 1 | C83: 1315.846618 | D83: 1 | E83: 39712.74007 | F83: 1 | G83: 69329.06645 | H83: 0 | I83: 0.3957981619 | J83: 0 | K83: 0.7782444473 | L83: 0 | M83: 0.1135959065
A84: 0.96 | B84: 1 | C84: 1326.120024 | D84: 1 | E84: 40191.2225 | F84: 1 | G84: 70005.23129 | H84: 0 | I84: 0.4066957863 | J84: 0 | K84: 0.7996697816 | L84: 0 | M84: 0.1244567826
A85: 0.98 | B85: 1 | C85: 1336.440719 | D85: 1 | E85: 40671.90585 | F85: 1 | G85: 70696.85892 | H85: 0 | I85: 0.4176435717 | J85: 0 | K85: 0.8211936675 | L85: 0 | M85: 0.1355660292
A86: 1 | B86: 1 | C86: 1346.807044 | D86: 1 | E86: 41154.71293 | F86: 1 | G86: 71403.5 | H86: 0 | I86: 0.42863976 | J86: 0 | K86: 0.8428126496 | L86: 0 | M86: 0.1469164288

Sheet Berechnung
A1: Berechnungstabelle - Empirisch erfasste FMK | K1: Berechnungstabelle - Modellgestützt abgeschätzte FMK
A2: Tabelleninhalt nicht verändern! | K2: Tabelleninhalt nicht verändern!
A3: Artikel 1 | B3: =Cockpit!B15 -> Normteil | D3: Artikel 2 | E3: =Cockpit!B17 -> Komponente | G3: Artikel 3 | H3: =Cockpit!B19 -> Aggregat | K3: Artikel | L3: ='Modellgest. FMK-Schätzung'!E8 -> Aggregat
A4: BR_m | B4: =VLOOKUP($B$3,Artikeldaten!$A$5:$U$24,6,FALSE) -> 40 | C4: ="Positionierung " & B3 -> Positionierung Normteil | D4: BR_m2 | E4: =VLOOKUP($E$3,Artikeldaten!$A$5:$U$24,6,FALSE) -> 10 | F4: ="Positionierung " & E3 -> Positionierung Komponente | G4: BR_m3 | H4: =VLOOKUP($H$3,Artikeldaten!$A$5:$U$24,6,FALSE) -> 1 | I4: ="Positionierung " & H3 -> Positionierung Aggregat | J4: 1 | K4: BR_m | L4: =VLOOKUP($L$3,Artikeldaten!$A$5:$U$24,6,FALSE) -> 1
A5: T | B5: =Cockpit!$D$9 -> 365 | D5: T_2 | E5: =Cockpit!$D$9 -> 365 | G5: T_3 | H5: =Cockpit!$D$9 -> 365 | K5: T | L5: =Cockpit!$D$9 -> 365
A6: p_st | B6: =VLOOKUP($B$3,Artikeldaten!$A$5:$U$24,11,FALSE) -> 0.2 | D6: p_st2 | E6: =VLOOKUP($E$3,Artikeldaten!$A$5:$U$24,11,FALSE) -> 550 | G6: p_st3 | H6: =VLOOKUP($H$3,Artikeldaten!$A$5:$U$24,11,FALSE) -> 15000 | K6: p_st | L6: =VLOOKUP($L$3,Artikeldaten!$A$5:$U$24,11,FALSE) -> 15000
A7: k_best | B7: =VLOOKUP($B$3,Artikeldaten!$A$5:$U$24,14,FALSE) -> 45 | D7: k_best2 | E7: =VLOOKUP($E$3,Artikeldaten!$A$5:$U$24,14,FALSE) -> 45 | G7: k_best3 | H7: =VLOOKUP($H$3,Artikeldaten!$A$5:$U$24,14,FALSE) -> 45 | K7: k_best | L7: =VLOOKUP($L$3,Artikeldaten!$A$5:$U$24,14,FALSE) -> 45
A8: k_hand | B8: =VLOOKUP($B$3,Artikeldaten!$A$5:$U$24,15,FALSE) -> 1 | D8: k_hand2 | E8: =VLOOKUP($E$3,Artikeldaten!$A$5:$U$24,15,FALSE) -> 1 | G8: k_hand3 | H8: =VLOOKUP($H$3,Artikeldaten!$A$5:$U$24,15,FALSE) -> 1 | K8: k_hand | L8: =VLOOKUP($L$3,Artikeldaten!$A$5:$U$24,15,FALSE) -> 1
A9: kap_lhm | B9: =VLOOKUP($B$3,Artikeldaten!$A$5:$U$24,18,FALSE) -> 200 | D9: kap_lhm2 | E9: =VLOOKUP($E$3,Artikeldaten!$A$5:$U$24,18,FALSE) -> 5 | G9: kap_lhm3 | H9: =VLOOKUP($H$3,Artikeldaten!$A$5:$U$24,18,FALSE) -> 1 | K9: kap_lhm | L9: =VLOOKUP($L$3,Artikeldaten!$A$5:$U$24,18,FALSE) -> 1
A10: ta | B10: =VLOOKUP($B$3,Artikeldaten!$A$5:$U$24,9,FALSE) -> 7 | D10: ta_2 | E10: =VLOOKUP($E$3,Artikeldaten!$A$5:$U$24,9,FALSE) -> 14 | G10: ta3 | H10: =VLOOKUP($H$3,Artikeldaten!$A$5:$U$24,9,FALSE) -> 14 | K10: ta | L10: =VLOOKUP($L$3,Artikeldaten!$A$5:$U$24,9,FALSE) -> 14
A11: ma | B11: =VLOOKUP($B$3,Artikeldaten!$A$5:$U$24,10,FALSE) -> 10 | D11: ma_2 | E11: =VLOOKUP($E$3,Artikeldaten!$A$5:$U$24,10,FALSE) -> 2 | G11: ma3 | H11: =VLOOKUP($H$3,Artikeldaten!$A$5:$U$24,10,FALSE) -> 0 | K11: ma | L11: =VLOOKUP($L$3,Artikeldaten!$A$5:$U$24,10,FALSE) -> 0
A12: BR_max | B12: =VLOOKUP($B$3,Artikeldaten!$A$5:$U$24,7,FALSE) -> 60 | D12: BR_max2 | E12: =VLOOKUP($E$3,Artikeldaten!$A$5:$U$24,7,FALSE) -> 15 | G12: BR_max3 | H12: =VLOOKUP($H$3,Artikeldaten!$A$5:$U$24,7,FALSE) -> 2 | K12: BR_max | L12: =VLOOKUP($L$3,Artikeldaten!$A$5:$U$24,7,FALSE) -> 2
A13: WBZ | B13: =VLOOKUP($B$3,Artikeldaten!$A$5:$U$24,8,FALSE) -> 7 | D13: WBZ2 | E13: =VLOOKUP($E$3,Artikeldaten!$A$5:$U$24,8,FALSE) -> 14 | G13: WBZ3 | H13: =VLOOKUP($H$3,Artikeldaten!$A$5:$U$24,8,FALSE) -> 20 | K13: WBZ | L13: =VLOOKUP($L$3,Artikeldaten!$A$5:$U$24,8,FALSE) -> 20
A14: VL | B14: =VLOOKUP($B$3,Artikeldaten!$A$5:$U$24,16,FALSE) -> 2 | D14: VL2 | E14: =VLOOKUP($E$3,Artikeldaten!$A$5:$U$24,16,FALSE) -> 1 | G14: VL3 | H14: =VLOOKUP($H$3,Artikeldaten!$A$5:$U$24,16,FALSE) -> 0 | K14: VL | L14: =VLOOKUP($L$3,Artikeldaten!$A$5:$U$24,16,FALSE) -> 0
A15: z_lager | B15: =Cockpit!$D$10 -> 0.15 | D15: z_lager2 | E15: =Cockpit!$D$10 -> 0.15 | G15: z_lager3 | H15: =Cockpit!$D$10 -> 0.15 | K15: z_lager | L15: =Cockpit!$D$10 -> 0.15
A16: k_platz | B16: =VLOOKUP($B$3,Artikeldaten!$A$5:$U$24,17,FALSE) -> 300 | D16: k_platz2 | E16: =VLOOKUP($E$3,Artikeldaten!$A$5:$U$24,17,FALSE) -> 300 | G16: k_platz3 | H16: =VLOOKUP($H$3,Artikeldaten!$A$5:$U$24,17,FALSE) -> 300 | K16: k_platz | L16: =VLOOKUP($L$3,Artikeldaten!$A$5:$U$24,17,FALSE) -> 300
A17: a_eil | B17: =VLOOKUP($B$3,Artikeldaten!$A$5:$U$24,19,FALSE) -> 0.04 | D17: a_eil2 | E17: =VLOOKUP($E$3,Artikeldaten!$A$5:$U$24,19,FALSE) -> 0.02 | G17: a_eil3 | H17: =VLOOKUP($H$3,Artikeldaten!$A$5:$U$24,19,FALSE) -> 0.06 | K17: BL_1 | L17: =ROUNDUP(0.5*X_zu_m_mod*SQRT((ta_mod*BR_m_mod)^2+(ma_mod)^2+VL_mod^2+((BR_max_mod-BR_m_mod)*WBZ_mod)^2),0) -> 86
A18: k_eil | B18: =VLOOKUP($B$3,Artikeldaten!$A$5:$U$24,20,FALSE) -> 0.5 | D18: k_eil2 | E18: =VLOOKUP($E$3,Artikeldaten!$A$5:$U$24,20,FALSE) -> 600 | G18: k_eil3 | H18: =VLOOKUP($H$3,Artikeldaten!$A$5:$U$24,20,FALSE) -> 2000 | K18: X_zu,m | L18: =VLOOKUP($L$3,Artikeldaten!$A$5:$U$24,4,FALSE) -> 7
A19: k_fehlstck | B19: =VLOOKUP($B$3,Artikeldaten!$A$5:$U$24,13,FALSE) -> 23.09 | D19: k_fehlstck2 | E19: =VLOOKUP($E$3,Artikeldaten!$A$5:$U$24,13,FALSE) -> 91.42 | G19: k_fehlstck3 | H19: =VLOOKUP($H$3,Artikeldaten!$A$5:$U$24,13,FALSE) -> 143.77 | K19: C-Wert SG | L19: ='C-Wert'!Q7 -> 0.4832252154
A20: sg_beta,stör | B20: =VLOOKUP($B$3,Artikeldaten!$A$5:$U$24,21,FALSE) -> 0 | D20: sg_beta,stör2 | E20: =VLOOKUP($E$3,Artikeldaten!$A$5:$U$24,21,FALSE) -> 0 | G20: sg_beta,stör3 | H20: =VLOOKUP($H$3,Artikeldaten!$A$5:$U$24,21,FALSE) -> 0 | K20: X_ab,m_mod | L20: =VLOOKUP($B$3,Artikeldaten!$A$5:$U$24,12,FALSE) -> 40
A21: BL_1 | B21: =ROUNDUP(0.5*X_zu_m*SQRT((ta*BR_m)^2+(ma)^2+VL^2+((BR_max-BR_m)*WBZ)^2),0) -> 145176 | D21: BL_1 | E21: =ROUNDUP(0.5*X_zu_m2*SQRT((ta_2*BR_m2)^2+(ma_2)^2+VL_2^2+((BR_max2-BR_m2)*WBZ_2)^2),0) -> 3992 | G21: BL_1 | H21: =ROUNDUP(0.5*X_zu_m3*SQRT((ta_3*BR_m3)^2+(ma_3)^2+VL_3^2+((BR_max3-BR_m3)*WBZ_3)^2),0) -> 86 | K21: LV_1_mod | L21: =0.5*X_zu_m_mod*(1/BR_m_mod)+SQRT((ta_mod)^2+(ma_mod/BR_m_mod)^2+((BR_max_mod-BR_m_mod)*WBZ_mod/BR_m_mod)^2+(VL_mod/BR_m_mod)^2) -> 27.91311123
A22: X_zu,m | B22: =VLOOKUP($B$3,Artikeldaten!$A$5:$U$24,4,FALSE) -> 927 | C22: =Auswertung!C5 -> 0.95 | D22: X_zu,m2 | E22: =VLOOKUP($E$3,Artikeldaten!$A$5:$U$24,4,FALSE) -> 51 | F22: =Auswertung!C11 -> 0.85 | G22: X_zu,m3 | H22: =VLOOKUP($H$3,Artikeldaten!$A$5:$U$24,4,FALSE) -> 7 | I22: =Auswertung!C17 -> 0.5 | K22: C-Wert LV | L22: =0.15*(0.5-LN(0.5)/LN(0.5*0.25*X_zu_m_mod/BL_1_mod))+LN(0.5)/LN(0.5*0.25*X_zu_m_mod/BL_1_mod) -> 0.2034199395
A23: C-Wert | B23: ='C-Wert'!B7 -> 0.01117620231 | C23: =VLOOKUP(C22,A26:B1026,2,TRUE) -> 20860.39701 | D23: C-Wert | E23: ='C-Wert'!G7 -> 133682148.1 | F23: =VLOOKUP(F22,D26:E1026,2,TRUE) -> 2092369.063 | G23: C-Wert | H23: ='C-Wert'!L7 -> 0.4832252154 | I23: =VLOOKUP(I22,G26:H1026,2,TRUE) -> 5531189.288 | K23: k_fmk_erg | L23: =t_leer*(k_masch+n_perso*k_perso)+t_still*k_lfd+k_sz+k_wa+(k_rüst_ab+k_rüst_auf)*m_abw+t_dispo*k_perso -> 17372.5 | M23: =VLOOKUP(L3,'FMK-Erf.-Auswertung'!B4:AA16,25,FALSE) -> 143.77
A24: =VLOOKUP(B24,B26:D1026,3,FALSE) -> 1 | B24: =MIN(B26:B1026) -> 4644.457703 | C24: =VLOOKUP(B24,B26:D1026,2,FALSE) -> 776.7155807 | D24: =VLOOKUP(E24,E26:G1026,3,FALSE) -> 1 | E24: =MIN(E26:E1026) -> 2033783.142 | F24: =VLOOKUP(E24,E26:G1026,2,FALSE) -> 182.0407295 | G24: =VLOOKUP(H24,H26:J1026,3,FALSE) -> 0.812 | H24: =MIN(H26:H1026) -> 5519448.653 | I24: =VLOOKUP(H24,H26:J1026,2,FALSE) -> 9.501669478 | K24: =VLOOKUP(L24,S26:T1026,2,FALSE) -> 0 | L24: =MIN(S22:S1026) -> 5539968.362 | M24: =VLOOKUP(K24,K22:L1026,2,FALSE) -> 5539968.362
A25: SG Artikel 1 | B25: Kosten Artikel 1 | C25: Bestand Artikel 1 | D25: SG Artikel 2 | E25: Kosten Artikel 2 | F25: Bestand Artikel 2 | G25: SG Artikel 3 | H25: Kosten Artikel 3 | I25: Bestand Artikel 3 | K25: SG | L25: Bestand | M25: Bestandskosten | N25: LV_m | O25: LV_v,m | P25: Periodenfehlmenge | Q25: Anzahl FM-Ereignisse | R25: FMK | S25: Logistikkosten
A26: 0 | B26: =BR_m*T*(p_st+(k_best/X_zu_m)+(k_hand/kap_lhm))+(0.5*X_zu_m*A26^2+SQRT((ta*BR_m)^2+(ma)^2+((BR_max-BR_m)*WBZ)^2+VL^2)*(1-(1-A26)^C_Wert)^(1/C_Wert))*(T/365)*(p_st*z_lager+(k_platz/kap_lhm))+(BR_m*T)*(a_eil*k_eil+(1-a_eil)*k_fehlstck)*(1-sg_beta_stör-A26) -> 327623.1779 | C26: =(0.5*X_zu_m*$A26^2+SQRT((ta*BR_m)^2+(ma)^2+((BR_max-BR_m)*WBZ)^2+VL^2)*(1-(1-$A26)^B$23)^(1/B$23)) -> 0 | D26: 0 | E26: =BR_m2*T_2*(p_st2+(k_best2/X_zu_m2)+(k_hand2/kap_lhm2))+(0.5*X_zu_m2*$D26^2+SQRT((ta_2*BR_m2)^2+(ma_2)^2+((BR_max2-BR_m2)*WBZ_2)^2+VL_2^2)*(1-(1-$D26)^E$23)^(1/E$23))*(T_2/365)*(p_st2*z_lager2+(k_platz2/kap_lhm2))+(BR_m2*T_2)*(a_eil2*k_eil2+(1-a_eil2)*k_fehlstck2)*(1-sg_beta_stör2-$D26) -> 2382259.928 | F26: =(0.5*X_zu_m2*$D26^2+SQRT((ta_2*BR_m2)^2+(ma_2)^2+((BR_max2-BR_m2)*WBZ_2)^2+VL_2^2)*(1-(1-$D26)^E$23)^(1/E$23)) -> 0 | G26: 0 | H26: =BR_m3*T_3*(p_st3+(k_best3/X_zu_m3)+(k_hand3/kap_lhm3))+(0.5*X_zu_m3*$G26^2+SQRT((ta_3*BR_m3)^2+(ma_3)^2+((BR_max3-BR_m3)*WBZ_3)^2+VL_3^2)*(1-(1-$G26)^H$23)^(1/H$23))*(T_3/365)*(p_st3*z_lager3+(k_platz3/kap_lhm3))+(BR_m3*T_3)*(a_eil3*k_eil3+(1-a_eil3)*k_fehlstck3)*(1-sg_beta_stör3-$G26) -> 5570838.916 | I26: =(0.5*X_zu_m3*$G26^2+SQRT((ta_3*BR_m3)^2+(ma_3)^2+((BR_max3-BR_m3)*WBZ_3)^2+VL_3^2)*(1-(1-$G26)^H$23)^(1/H$23)) -> 0 | J26: =G26 -> 0 | K26: =G26 -> 0 | L26: =(0.5*X_zu_m_mod*$K26^2+SQRT((ta_mod*BR_m_mod)^2+(ma_mod)^2+((BR_max_mod-BR_m_mod)*WBZ_mod)^2+VL_mod^2)*(1-(1-$K26)^L$19)^(1/L$19)) -> 0 | M26: =BR_m_mod*T_mod*(p_st_mod+(k_best_mod/X_zu_m_mod)+(k_hand_mod/kap_lhm_mod))+(0.5*X_zu_m_mod*K26^2+SQRT((ta_mod*BR_m_mod)^2+(ma_mod)^2+((BR_max_mod-BR_m_mod)*WBZ_mod)^2+VL_mod^2)*(1-(1-K26)^C_Wert_mod)^(1/C_Wert_mod))*(T_mod/365)*(p_st_mod*z_lager_mod+(k_platz_mod/kap_lhm_mod)) -> 5477711.429 | N26: =LV_1_mod*((1-(L26/BL_1_mod)^C_Wert_LV_mod)^(1/C_Wert_LV_mod)) -> 27.91311123 | O26: =N26/(1-K26) -> 27.91311123 | P26: =(BR_m_mod*T_mod)*(100%-K26) -> 365 | Q26: =P26/X_ab_m_mod -> 9.125 | R26: =Q26*($L$23+w_at*O26*T_mod*z_lager_mod) -> 209336762.8 | S26: =M26+R26 -> 214814474.2
A27: 0.001 | B27: 327299.2571 | C27: 0.0004635 | D27: =A27 -> 0.001 | E27: 2404196.176 | F27: 156.540755 | G27: =D27 -> 0.001 | H27: 5570745.806 | I27: 6.856914814e-06 | J27: =G27 -> 0.001 | K27: =G27 -> 0.001 | L27: 6.856914814e-06 | M27: 5477711.446 | N27: 23.31193084 | O27: =N27/(1-K27) -> 23.3352661 | P27: 364.635 | Q27: 9.115875 | R27: 174855789.8 | S27: =M27+R27 -> 180333501.2
A28: =A27+0.001 -> 0.002 | B28: 326975.3378 | C28: 0.001854 | D28: =A28 -> 0.002 | E28: 2403825.378 | F28: 156.5408315 | G28: =D28 -> 0.002 | H28: 5570652.732 | I28: 2.809719927e-05 | J28: 0.002 | K28: 0.002 | L28: 2.809719927e-05 | M28: 5477711.5 | N28: 21.92475739 | O28: 21.96869478 | P28: 364.27 | Q28: 9.10675 | R28: 164460283.5 | S28: 169937995
A29: =A28+0.001 -> 0.003 | B29: 326651.4199 | C29: 0.0041715 | D29: 0.003 | E29: 2403454.587 | F29: 156.540959 | G29: 0.003 | H29: 5570559.697 | I29: 6.414177436e-05 | J29: 0.003 | K29: 0.003 | L29: 6.414177436e-05 | M29: 5477711.592 | N29: 20.95034892 | O29: 21.01338909 | P29: 363.905 | Q29: 9.097625 | R29: 157157999.2 | S29: 162635710.8
A30: 0.004 | B30: 326327.5035 | C30: 0.007416 | D30: 0.004 | E30: 2403083.803 | F30: 156.5411375 | G30: 0.004 | H30: 5570466.699 | I30: 0.000115232269 | J30: 0.004 | K30: 0.004 | L30: 0.000115232269 | M30: 5477711.722 | N30: 20.17843356 | O30: 20.25947144 | P30: 363.54 | Q30: 9.0885 | R30: 151373179.3 | S30: 156850891
A31: 0.005 | B31: 326003.5884 | C31: 0.0115875 | D31: 0.005 | E31: 2402713.026 | F31: 156.541367 | G31: 0.005 | H31: 5570373.741 | I31: 0.0001815458679 | J31: 0.005 | K31: 0.005 | L31: 0.0001815458679 | M31: 5477711.892 | N31: 19.531163 | O31: 19.62930955 | P31: 363.175 | Q31: 9.079375 | R31: 146522436 | S31: 152000147.8
A32: 0.006 | B32: 325679.6748 | C32: 0.016686 | D32: 0.006 | E32: 2402342.257 | F32: 156.5416475 | G32: 0.006 | H32: 5570280.822 | I32: 0.0002632248706 | J32: 0.006 | K32: 0.006 | L32: 0.0002632248706 | M32: 5477712.1 | N32: 18.96984962 | O32: 19.08435575 | P32: 362.81 | Q32: 9.07025 | R32: 142315847.5 | S32: 147793559.6
A33: 0.007 | B33: 325355.7625 | C33: 0.0227115 | D33: 0.007 | E33: 2401971.495 | F33: 156.541979 | G33: 0.007 | H33: 5570187.942 | I33: 0.0003603894865 | J33: 0.007 | K33: 0.007 | L33: 0.0003603894865 | M33: 5477712.348 | N33: 18.4720754 | O33: 18.60229144 | P33: 362.445 | Q33: 9.061125 | R33: 138585415.7 | S33: 144063128
A34: 0.008 | B34: 325031.8517 | C34: 0.029664 | D34: 0.008 | E34: 2401600.74 | F34: 156.5423615 | G34: 0.008 | H34: 5570095.102 | I34: 0.0004731446195 | J34: 0.008 | K34: 0.008 | L34: 0.0004731446195 | M34: 5477712.635 | N34: 18.02353444 | O34: 18.16888553 | P34: 362.08 | Q34: 9.052 | R34: 135223933.3 | S34: 140701645.9
A35: 0.009 | B35: 324707.9423 | C35: 0.0375435 | D35: 0.009 | E35: 2401229.992 | F35: 156.542795 | G35: 0.009 | H35: 5570002.302 | I35: 0.0006015839216 | J35: 0.009 | K35: 0.009 | L35: 0.0006015839216 | M35: 5477712.963 | N35: 17.61446728 | O35: 17.77443721 | P35: 361.715 | Q35: 9.042875 | R35: 132158263.8 | S35: 137635976.7
A36: 0.01 | B36: 324384.0344 | C36: 0.04635 | D36: 0.01 | E36: 2400859.252 | F36: 156.5432795 | G36: 0.01 | H36: 5569909.542 | I36: 0.0007457924145 | J36: 0.01 | K36: 0.01 | L36: 0.0007457924145 | M36: 5477713.33 | N36: 17.23788068 | O36: 17.41200069 | P36: 361.35 | Q36: 9.03375 | R36: 129336000.6 | S36: 134813713.9
A37: 0.011 | B37: 324060.1278 | C37: 0.0560835 | D37: 0.011 | E37: 2400488.519 | F37: 156.543815 | G37: 0.011 | H37: 5569816.823 | I37: 0.0009058482879 | J37: 0.011 | K37: 0.011 | L37: 0.0009058482879 | M37: 5477713.738 | N37: 16.88857085 | O37: 17.07641137 | P37: 360.985 | Q37: 9.024625 | R37: 126718146.9 | S37: 132195860.7
A38: 0.012 | B38: 323736.2227 | C38: 0.066744 | D38: 0.012 | E38: 2400117.793 | F38: 156.5444015 | G38: 0.012 | H38: 5569724.144 | I38: 0.001081824187 | J38: 0.012 | K38: 0.012 | L38: 0.001081824187 | M38: 5477714.187 | N38: 16.56254776 | O38: 16.7637123 | P38: 360.62 | Q38: 9.0155 | R38: 124274801.9 | S38: 129752516.1
A39: 0.013 | B39: 323412.319 | C39: 0.0783315 | D39: 0.013 | E39: 2399747.075 | F39: 156.545039 | G39: 0.013 | H39: 5569631.506 | I39: 0.001273788168 | J39: 0.013 | K39: 0.013 | L39: 0.001273788168 | M39: 5477714.677 | N39: 16.25667661 | O39: 16.47079697 | P39: 360.255 | Q39: 9.006375 | R39: 121982473.7 | S39: 127460188.4
A40: 0.014 | B40: 323088.4167 | C40: 0.090846 | D40: 0.014 | E40: 2399376.364 | F40: 156.5457275 | G40: 0.014 | H40: 5569538.909 | I40: 0.001481804424 | J40: 0.014 | K40: 0.014 | L40: 0.001481804424 | M40: 5477715.207 | N40: 15.96844425 | O40: 16.19517672 | P40: 359.89 | Q40: 8.99725 | R40: 119822328.9 | S40: 125300044.1
A41: 0.015 | B41: 322764.5158 | C41: 0.1042875 | D41: 0.015 | E41: 2399005.66 | F41: 156.546467 | G41: 0.015 | H41: 5569446.353 | I41: 0.001705933857 | J41: 0.015 | K41: 0.015 | L41: 0.001705933857 | M41: 5477715.779 | N41: 15.69580122 | O41: 15.93482357 | P41: 359.525 | Q41: 8.988125 | R41: 117779009 | S41: 123256724.8
A42: 0.016 | B42: 322440.6164 | C42: 0.118656 | D42: 0.016 | E42: 2398634.963 | F42: 156.5472575 | G42: 0.016 | H42: 5569353.839 | I42: 0.001946234525 | J42: 0.016 | K42: 0.016 | L42: 0.001946234525 | M42: 5477716.391 | N42: 15.43705167 | O42: 15.68806064 | P42: 359.16 | Q42: 8.979 | R42: 115839805.7 | S42: 121317522
A43: 0.017 | B43: 322116.7183 | C43: 0.1339515 | D43: 0.017 | E43: 2398264.274 | F43: 156.548099 | G43: 0.017 | H43: 5569261.365 | I43: 0.002202762015 | J43: 0.017 | K43: 0.017 | L43: 0.002202762015 | M43: 5477717.046 | N43: 15.19077455 | O43: 15.45348377 | P43: 358.795 | Q43: 8.969875 | R43: 113994069.5 | S43: 119471786.5
A44: 0.018 | B44: 321792.8217 | C44: 0.150174 | D44: 0.018 | E44: 2397893.591 | F44: 156.5489915 | G44: 0.018 | H44: 5569168.934 | I44: 0.002475569734 | J44: 0.018 | K44: 0.018 | L44: 0.002475569734 | M44: 5477717.741 | N44: 14.95576588 | O44: 15.22990415 | P44: 358.43 | Q44: 8.96075 | R44: 112232778 | S44: 117710495.8
A45: 0.019 | B45: 321468.9265 | C45: 0.1673235 | D45: 0.019 | E45: 2397522.917 | F45: 156.549935 | G45: 0.019 | H45: 5569076.543 | I45: 0.002764709167 | J45: 0.019 | K45: 0.019 | L45: 0.002764709167 | M45: 5477718.479 | N45: 14.73099564 | O45: 15.01630544 | P45: 358.065 | Q45: 8.951625 | R45: 110548212.4 | S45: 116025930.9
A46: 0.02 | B46: 321145.0327 | C46: 0.1854 | D46: 0.02 | E46: 2397152.249 | F46: 156.5509295 | G46: 0.02 | H46: 5568984.195 | I46: 0.003070230082 | J46: 0.02 | K46: 0.02 | L46: 0.003070230082 | M46: 5477719.258 | N46: 14.51557501 | O46: 14.81181123 | P46: 357.7 | Q46: 8.9425 | R46: 108933711.9 | S46: 114411431.1
A47: 0.021 | B47: 320821.1404 | C47: 0.2044035 | D47: 0.021 | E47: 2396781.589 | F47: 156.551975 | G47: 0.021 | H47: 5568891.888 | I47: 0.003392180707 | J47: 0.021 | K47: 0.021 | L47: 0.003392180707 | M47: 5477720.079 | N47: 14.30873107 | O47: 14.61565993 | P47: 357.335 | Q47: 8.933375 | R47: 107383484.2 | S47: 112861204.3
A48: 0.022 | B48: 320497.2494 | C48: 0.224334 | D48: 0.022 | E48: 2396410.935 | F48: 156.5530715 | G48: 0.022 | H48: 5568799.624 | I48: 0.003730607887 | J48: 0.022 | K48: 0.022 | L48: 0.003730607887 | M48: 5477720.942 | N48: 14.10978702 | O48: 14.42718509 | P48: 356.97 | Q48: 8.92425 | R48: 105892457.6 | S48: 111370178.6
A49: 0.023 | B49: 320173.3599 | C49: 0.2451915 | D49: 0.023 | E49: 2396040.29 | F49: 156.554219 | G49: 0.023 | H49: 5568707.402 | I49: 0.004085557212 | J49: 0.023 | K49: 0.023 | L49: 0.004085557212 | M49: 5477721.847 | N49: 13.91814649 | O49: 14.24579988 | P49: 356.605 | Q49: 8.915125 | R49: 104456162.9 | S49: 109933884.8
A50: 0.024 | B50: 319849.4718 | C50: 0.266976 | D50: 0.024 | E50: 2395669.651 | F50: 156.5554175 | G50: 0.024 | H50: 5568615.221 | I50: 0.004457073129 | J50: 0.024 | K50: 0.024 | L50: 0.004457073129 | M50: 5477722.794 | N50: 13.73328098 | O50: 14.07098462 | P50: 356.24 | Q50: 8.906 | R50: 103070639.7 | S50: 108548362.5
A51: 0.025 | B51: 319525.5851 | C51: 0.2896875 | D51: 0.025 | E51: 2395299.02 | F51: 156.556667 | G51: 0.025 | H51: 5568523.084 | I51: 0.004845199046 | J51: 0.025 | K51: 0.025 | L51: 0.004845199046 | M51: 5477723.784 | N51: 13.55471973 | O51: 13.90227664 | P51: 355.875 | Q51: 8.896875 | R51: 101732359.8 | S51: 107210083.6
A52: 0.026 | B52: 319201.6998 | C52: 0.313326 | D52: 0.026 | E52: 2394928.396 | F52: 156.5579675 | G52: 0.026 | H52: 5568430.988 | I52: 0.005249977419 | J52: 0.026 | K52: 0.026 | L52: 0.005249977419 | M52: 5477724.816 | N52: 13.38204132 | O52: 13.73926214 | P52: 355.51 | Q52: 8.88775 | R52: 100438165.5 | S52: 105915890.4
A53: 0.027 | B53: 318877.816 | C53: 0.3378915 | D53: 0.027 | E53: 2394557.779 | F53: 156.559319 | G53: 0.027 | H53: 5568338.936 | I53: 0.005671449827 | J53: 0.027 | K53: 0.027 | L53: 0.005671449827 | M53: 5477725.891 | N53: 13.21486695 | O53: 13.58156932 | P53: 355.145 | Q53: 8.878625 | R53: 99185217.96 | S53: 104662943.8
A54: 0.028 | B54: 318553.9335 | C54: 0.363384 | D54: 0.028 | E54: 2394187.17 | F54: 156.5607215 | G54: 0.028 | H54: 5568246.926 | I54: 0.006109657044 | J54: 0.028 | K54: 0.028 | L54: 0.006109657044 | M54: 5477727.008 | N54: 13.05285467 | O54: 13.42886283 | P54: 354.78 | Q54: 8.8695 | R54: 97970954.6 | S54: 103448681.6
A55: 0.029 | B55: 318230.0525 | C55: 0.3898035 | D55: 0.029 | E55: 2393816.567 | F55: 156.562175 | G55: 0.029 | H55: 5568154.958 | I55: 0.006564639096 | J55: 0.029 | K55: 0.029 | L55: 0.006564639096 | M55: 5477728.168 | N55: 12.89569467 | O55: 13.28083901 | P55: 354.415 | Q55: 8.860375 | R55: 96793053.78 | S55: 102270782
A56: 0.03 | B56: 317906.1729 | C56: 0.41715 | D56: 0.03 | E56: 2393445.972 | F56: 156.5636795 | G56: 0.03 | H56: 5568063.034 | I56: 0.007036435323 | J56: 0.03 | K56: 0.03 | L56: 0.007036435323 | M56: 5477729.371 | N56: 12.74310528 | O56: 13.13722194 | P56: 354.05 | Q56: 8.85125 | R56: 95649404.67 | S56: 101127134
A57: 0.031 | B57: 317582.2947 | C57: 0.4454235 | D57: 0.031 | E57: 2393075.385 | F57: 156.565235 | G57: 0.031 | H57: 5567971.152 | I57: 0.007525084424 | J57: 0.031 | K57: 0.031 | L57: 0.007525084424 | M57: 5477730.618 | N57: 12.59482958 | O57: 12.99776014 | P57: 353.685 | Q57: 8.842125 | R57: 94538081.9 | S57: 100015812.5
A58: 0.032 | B58: 317258.418 | C58: 0.474624 | D58: 0.032 | E58: 2392704.804 | F58: 156.5668415 | G58: 0.032 | H58: 5567879.314 | I58: 0.0080306245 | J58: 0.032 | K58: 0.032 | L58: 0.0080306245 | M58: 5477731.907 | N58: 12.45063249 | O58: 12.86222365 | P58: 353.32 | Q58: 8.833 | R58: 93457323.95 | S58: 98935055.86
A59: 0.033 | B59: =BR_m*T*(p_st+(k_best/X_zu_m)+(k_hand/kap_lhm))+(0.5*X_zu_m*A59^2+SQRT((ta*BR_m)^2+(ma)^2+((BR_max-BR_m)*WBZ)^2+VL^2)*(1-(1-A59)^C_Wert)^(1/C_Wert))*(T/365)*(p_st*z_lager+(k_platz/kap_lhm))+(BR_m*T)*(a_eil*k_eil+(1-a_eil)*k_fehlstck)*(1-sg_beta_stör-A59) -> 316934.5426 | C59: 0.5047515 | D59: 0.033 | E59: 2392334.231 | F59: 156.568499 | G59: 0.033 | H59: 5567787.519 | I59: 0.008553093102 | J59: 0.033 | K59: 0.033 | L59: 0.008553093102 | M59: 5477733.239 | N59: 12.31029837 | O59: 12.73040163 | P59: 352.955 | Q59: 8.823875 | R59: 92405514.69 | S59: 97883247.93
A60: 0.034 | B60: 316610.6687 | C60: 0.535806 | D60: 0.034 | E60: 2391963.665 | F60: 156.5702075 | G60: 0.034 | H60: 5567695.767 | I60: 0.009092527261 | J60: 0.034 | K60: 0.034 | L60: 0.009092527261 | M60: 5477734.615 | N60: 12.17362882 | O60: 12.60210023 | P60: 352.59 | Q60: 8.81475 | R60: 91381167.37 | S60: 96858901.99
A61: 0.035 | B61: 316286.7962 | C61: 0.5677875 | D61: 0.035 | E61: 2391593.107 | F61: 156.571967 | G61: 0.035 | H61: 5567604.058 | I61: 0.009648963522 | J61: 0.035 | K61: 0.035 | L61: 0.009648963522 | M61: 5477736.033 | N61: 12.04044089 | O61: 12.47714081 | P61: 352.225 | Q61: 8.805625 | R61: 90382910.93 | S61: 95860646.96
A62: 0.036 | B62: 315962.9251 | C62: 0.600696 | D62: 0.036 | E62: 2391222.555 | F62: 156.5737775 | G62: 0.036 | H62: 5567512.393 | I62: 0.01022243798 | J62: 0.036 | K62: 0.036 | L62: 0.01022243798 | M62: 5477737.496 | N62: 11.91056544 | O62: 12.35535834 | P62: 351.86 | Q62: 8.7965 | R62: 89409477.97 | S62: 94887215.46
A63: 0.037 | B63: 315639.0554 | C63: 0.6345315 | D63: 0.037 | E63: 2390852.011 | F63: 156.575639 | G63: 0.037 | H63: 5567420.772 | I63: 0.01081298631 | J63: 0.037 | K63: 0.037 | L63: 0.01081298631 | M63: 5477739.002 | N63: 11.7838458 | O63: 12.2366 | P63: 351.495 | Q63: 8.787375 | R63: 88459694.35 | S63: 93937433.35
A64: 0.038 | B64: 315315.1872 | C64: 0.669294 | D64: 0.038 | E64: 2390481.474 | F64: 156.5775515 | G64: 0.038 | H64: 5567329.194 | I64: 0.01142064378 | J64: 0.038 | K64: 0.038 | L64: 0.01142064378 | M64: 5477740.551 | N64: 11.66013652 | O64: 12.12072403 | P64: 351.13 | Q64: 8.77825 | R64: 87532470.08 | S64: 93010210.63
A65: 0.039 | B65: 314991.3203 | C65: 0.7049835 | D65: 0.039 | E65: 2390110.945 | F65: 156.579515 | G65: 0.039 | H65: 5567237.659 | I65: 0.01204544528 | J65: 0.039 | K65: 0.039 | L65: 0.01204544528 | M65: 5477742.144 | N65: 11.5393023 | O65: 12.00759864 | P65: 350.765 | Q65: 8.769125 | R65: 86626791.22 | S65: 92104533.37
A66: 0.04 | B66: 314667.4549 | C66: 0.7416 | D66: 0.04 | E66: 2389740.423 | F66: 156.5815295 | G66: 0.04 | H66: 5567146.169 | I66: 0.01268742537 | J66: 0.04 | K66: 0.04 | L66: 0.01268742537 | M66: 5477743.782 | N66: 11.42121704 | O66: 11.89710109 | P66: 350.4 | Q66: 8.76 | R66: 85741712.89 | S66: 91219456.67
A67: 0.041 | B67: 314343.5909 | C67: 0.7791435 | D67: 0.041 | E67: 2389369.908 | F67: 156.583595 | G67: 0.041 | H67: 5567054.722 | I67: 0.01334661825 | J67: 0.041 | K67: 0.041 | L67: 0.01334661825 | M67: 5477745.462 | N67: 11.30576305 | O67: 11.78911684 | P67: 350.035 | Q67: 8.750875 | R67: 84876352.94 | S67: 90354098.4
A68: 0.042 | B68: 314019.7283 | C68: 0.817614 | D68: 0.042 | E68: 2388999.4 | F68: 156.5857115 | G68: 0.042 | H68: 5566963.32 | I68: 0.01402305782 | J68: 0.042 | K68: 0.042 | L68: 0.01402305782 | M68: 5477747.187 | N68: 11.19283022 | O68: 11.68353886 | P68: 349.67 | Q68: 8.74175 | R68: 84029886.42 | S68: 89507633.61
A69: 0.043 | B69: 313695.8672 | C69: 0.8570115 | D69: 0.043 | E69: 2388628.899 | F69: 156.587879 | G69: 0.043 | H69: 5566871.961 | I69: 0.01471677769 | J69: 0.043 | K69: 0.043 | L69: 0.01471677769 | M69: 5477748.956 | N69: 11.08231546 | O69: 11.58026694 | P69: 349.305 | Q69: 8.732625 | R69: 83201540.64 | S69: 88679289.6
A70: 0.044 | B70: 313372.0074 | C70: 0.897336 | D70: 0.044 | E70: 2388258.406 | F70: 156.5900975 | G70: 0.044 | H70: 5566780.647 | I70: 0.01542781118 | J70: 0.044 | K70: 0.044 | L70: 0.01542781118 | M70: 5477750.769 | N70: 10.97412204 | O70: 11.47920716 | P70: 348.94 | Q70: 8.7235 | R70: 82390590.75 | S70: 87868341.52
A71: 0.045 | B71: 313048.1491 | C71: 0.9385875 | D71: 0.045 | E71: 2387887.92 | F71: 156.592367 | G71: 0.045 | H71: 5566689.377 | I71: 0.01615619136 | J71: 0.045 | K71: 0.045 | L71: 0.01615619136 | M71: 5477752.627 | N71: 10.86815909 | O71: 11.38027129 | P71: 348.575 | Q71: 8.714375 | R71: 81596355.77 | S71: 87074108.4
A72: 0.046 | B72: 312724.2922 | C72: 0.980766 | D72: 0.046 | E72: 2387517.442 | F72: 156.5946875 | G72: 0.046 | H72: 5566598.151 | I72: 0.01690195103 | J72: 0.046 | K72: 0.046 | L72: 0.01690195103 | M72: 5477754.529 | N72: 10.76434111 | O72: 11.28337642 | P72: 348.21 | Q72: 8.70525 | R72: 80818195.07 | S72: 86295949.59
A73: 0.047 | B73: 312400.4367 | C73: 1.0238715 | D73: 0.047 | E73: 2387146.97 | F73: 156.597059 | G73: 0.047 | H73: 5566506.97 | I73: 0.01766512278 | J73: 0.047 | K73: 0.047 | L73: 0.01766512278 | M73: 5477756.475 | N73: 10.66258758 | O73: 11.18844447 | P73: 347.845 | Q73: 8.696125 | R73: 80055505.14 | S73: 85533261.61
A74: 0.048 | B74: 312076.5826 | C74: 1.067904 | D74: 0.048 | E74: 2386776.506 | F74: 156.5994815 | G74: 0.048 | H74: 5566415.833 | I74: 0.01844573896 | J74: 0.048 | K74: 0.048 | L74: 0.01844573896 | M74: 5477758.465 | N74: 10.56282254 | O74: 11.09540183 | P74: 347.48 | Q74: 8.687 | R74: 79307716.77 | S74: 84785475.23
A75: 0.049 | B75: 311752.73 | C75: 1.1128635 | D75: 0.049 | E75: 2386406.049 | F75: 156.601955 | G75: 0.049 | H75: 5566324.74 | I75: 0.01924383171 | J75: 0.049 | K75: 0.049 | L75: 0.01924383171 | M75: 5477760.5 | N75: 10.46497426 | O75: 11.00417903 | P75: 347.115 | Q75: 8.677875 | R75: 78574292.39 | S75: 84052052.89
A76: 0.05 | B76: 311428.8788 | C76: 1.15875 | D76: 0.05 | E76: 2386035.6 | F76: 156.6044795 | G76: 0.05 | H76: 5566233.693 | I76: 0.02005943298 | J76: 0.05 | K76: 0.05 | L76: 0.02005943298 | M76: 5477762.58 | N76: 10.36897491 | O76: 10.91471044 | P76: 346.75 | Q76: 8.66875 | R76: 77854723.78 | S76: 83332486.36
A77: 0.051 | B77: 311105.0289 | C77: 1.2055635 | D77: 0.051 | E77: 2385665.157 | F77: 156.607055 | G77: 0.051 | H77: 5566142.69 | I77: 0.02089257452 | J77: 0.051 | K77: 0.051 | L77: 0.02089257452 | M77: 5477764.705 | N77: 10.27476031 | O77: 10.82693394 | P77: 346.385 | Q77: 8.659625 | R77: 77148529.86 | S77: 82626294.57
A78: 0.052 | B78: 310781.1805 | C78: 1.253304 | D78: 0.052 | E78: 2385294.722 | F78: 156.6096815 | G78: 0.052 | H78: 5566051.732 | I78: 0.0217432879 | J78: 0.052 | K78: 0.052 | L78: 0.0217432879 | M78: 5477766.874 | N78: 10.18226963 | O78: 10.74079075 | P78: 346.02 | Q78: 8.6505 | R78: 76455254.82 | S78: 81933021.69
A79: 0.053 | B79: 310457.3336 | C79: 1.3019715 | D79: 0.053 | E79: 2384924.294 | F79: 156.612359 | G79: 0.053 | H79: 5565960.818 | I79: 0.02261160453 | J79: 0.053 | K79: 0.053 | L79: 0.02261160453 | M79: 5477769.088 | N79: 10.09144516 | O79: 10.65622509 | P79: 345.655 | Q79: 8.641375 | R79: 75774466.27 | S79: 81252235.36
A80: 0.054 | B80: 310133.488 | C80: 1.351566 | D80: 0.054 | E80: 2384553.874 | F80: 156.6150875 | G80: 0.054 | H80: 5565869.95 | I80: 0.02349755564 | J80: 0.054 | K80: 0.054 | L80: 0.02349755564 | M80: 5477771.347 | N80: 10.00223214 | O80: 10.57318408 | P80: 345.29 | Q80: 8.63225 | R80: 75105753.73 | S80: 80583525.07
A81: 0.055 | B81: 309809.6439 | C81: 1.4020875 | D81: 0.055 | E81: 2384183.461 | F81: 156.617867 | G81: 0.055 | H81: 5565779.127 | I81: 0.02440117234 | J81: 0.055 | K81: 0.055 | L81: 0.02440117234 | M81: 5477773.652 | N81: 9.9145785 | O81: 10.49161746 | P81: 344.925 | Q81: 8.623125 | R81: 74448727.03 | S81: 79926500.68
A82: 0.056 | B82: 309485.8011 | C82: 1.453536 | D82: 0.056 | E82: 2383813.055 | F82: 156.6206975 | G82: 0.056 | H82: 5565688.349 | I82: 0.02532248554 | J82: 0.056 | K82: 0.056 | L82: 0.02532248554 | M82: 5477776.001 | N82: 9.828434717 | O82: 10.41147745 | P82: 344.56 | Q82: 8.614 | R82: 73803015.07 | S82: 79280791.07
A83: 0.057 | B83: 309161.9598 | C83: 1.5059115 | D83: 0.057 | E83: 2383442.656 | F83: 156.623579 | G83: 0.057 | H83: 5565597.616 | I83: 0.02626152607 | J83: 0.057 | K83: 0.057 | L83: 0.02626152607 | M83: 5477778.395 | N83: 9.74375364 | O83: 10.3327186 | P83: 344.195 | Q83: 8.604875 | R83: 73168264.5 | S83: 78646042.89
A84: 0.058 | B84: 308838.1199 | C84: 1.559214 | D84: 0.058 | E84: 2383072.264 | F84: 156.6265115 | G84: 0.058 | H84: 5565506.928 | I84: 0.0272183246 | J84: 0.058 | K84: 0.058 | L84: 0.0272183246 | M84: 5477780.835 | N84: 9.660490342 | O84: 10.2552976 | P84: 343.83 | Q84: 8.59575 | R84: 72544138.62 | S84: 78021919.46
A85: 0.059 | B85: 308514.2815 | C85: 1.6134435 | D85: 0.059 | E85: 2382701.88 | F85: 156.629495 | G85: 0.059 | H85: 5565416.286 | I85: 0.02819291167 | J85: 0.059 | K85: 0.059 | L85: 0.02819291167 | M85: 5477783.32 | N85: 9.578601973 | O85: 10.17917319 | P85: 343.465 | Q85: 8.586625 | R85: 71930316.34 | S85: 77408099.66
A86: 0.06 | B86: 308190.4444 | C86: 1.6686 | D86: 0.06 | E86: 2382331.503 | F86: 156.6325295 | G86: 0.06 | H86: 5565325.689 | I86: 0.02918531771 | J86: 0.06 | K86: 0.06 | L86: 0.02918531771 | M86: 5477785.851 | N86: 9.498047635 | O86: 10.104306 | P86: 343.1 | Q86: 8.5775 | R86: 71326491.16 | S86: 76804277.01
A87: 0.061 | B87: 307866.6088 | C87: 1.7246835 | D87: 0.061 | E87: 2381961.134 | F87: 156.635615 | G87: 0.061 | H87: 5565235.138 | I87: 0.03019557304 | J87: 0.061 | K87: 0.061 | L87: 0.03019557304 | M87: 5477788.427 | N87: 9.418788265 | O87: 10.03065843 | P87: 342.735 | Q87: 8.568375 | R87: 70732370.34 | S87: 76210158.77
A88: 0.062 | B88: 307542.7746 | C88: 1.781694 | D88: 0.062 | E88: 2381590.771 | F88: 156.6387515 | G88: 0.062 | H88: 5565144.632 | I88: 0.03122370788 | J88: 0.062 | K88: 0.062 | L88: 0.03122370788 | M88: 5477791.049 | N88: 9.340786519 | O88: 9.958194583 | P88: 342.37 | Q88: 8.55925 | R88: 70147674.04 | S88: 75625465.09
A89: 0.063 | B89: 307218.9418 | C89: 1.8396315 | D89: 0.063 | E89: 2381220.416 | F89: 156.641939 | G89: 0.063 | H89: 5565054.172 | I89: 0.03226975234 | J89: 0.063 | K89: 0.063 | L89: 0.03226975234 | M89: 5477793.716 | N89: 9.264006677 | O89: 9.886880125 | P89: 342.005 | Q89: 8.550125 | R89: 69572134.58 | S89: 75049928.3
A90: 0.064 | B90: 306895.1104 | C90: =(0.5*X_zu_m*$A90^2+SQRT((ta*BR_m)^2+(ma)^2+((BR_max-BR_m)*WBZ)^2+VL^2)*(1-(1-$A90)^B$23)^(1/B$23)) -> 1.898496 | D90: 0.064 | E90: =BR_m2*T_2*(p_st2+(k_best2/X_zu_m2)+(k_hand2/kap_lhm2))+(0.5*X_zu_m2*$D90^2+SQRT((ta_2*BR_m2)^2+(ma_2)^2+((BR_max2-BR_m2)*WBZ_2)^2+VL_2^2)*(1-(1-$D90)^E$23)^(1/E$23))*(T_2/365)*(p_st2*z_lager2+(k_platz2/kap_lhm2))+(BR_m2*T_2)*(a_eil2*k_eil2+(1-a_eil2)*k_fehlstck2)*(1-sg_beta_stör2-$D90) -> 2380850.068 | F90: =(0.5*X_zu_m2*$D90^2+SQRT((ta_2*BR_m2)^2+(ma_2)^2+((BR_max2-BR_m2)*WBZ_2)^2+VL_2^2)*(1-(1-$D90)^E$23)^(1/E$23)) -> 156.6451775 | G90: 0.064 | H90: =BR_m3*T_3*(p_st3+(k_best3/X_zu_m3)+(k_hand3/kap_lhm3))+(0.5*X_zu_m3*$G90^2+SQRT((ta_3*BR_m3)^2+(ma_3)^2+((BR_max3-BR_m3)*WBZ_3)^2+VL_3^2)*(1-(1-$G90)^H$23)^(1/H$23))*(T_3/365)*(p_st3*z_lager3+(k_platz3/kap_lhm3))+(BR_m3*T_3)*(a_eil3*k_eil3+(1-a_eil3)*k_fehlstck3)*(1-sg_beta_stör3-$G90) -> 5564963.757 | I90: =(0.5*X_zu_m3*$G90^2+SQRT((ta_3*BR_m3)^2+(ma_3)^2+((BR_max3-BR_m3)*WBZ_3)^2+VL_3^2)*(1-(1-$G90)^H$23)^(1/H$23)) -> 0.03333373643 | J90: 0.064 | K90: 0.064 | L90: =(0.5*X_zu_m_mod*$K90^2+SQRT((ta_mod*BR_m_mod)^2+(ma_mod)^2+((BR_max_mod-BR_m_mod)*WBZ_mod)^2+VL_mod^2)*(1-(1-$K90)^L$19)^(1/L$19)) -> 0.03333373643 | M90: =BR_m_mod*T_mod*(p_st_mod+(k_best_mod/X_zu_m_mod)+(k_hand_mod/kap_lhm_mod))+(0.5*X_zu_m_mod*K90^2+SQRT((ta_mod*BR_m_mod)^2+(ma_mod)^2+((BR_max_mod-BR_m_mod)*WBZ_mod)^2+VL_mod^2)*(1-(1-K90)^C_Wert_mod)^(1/C_Wert_mod))*(T_mod/365)*(p_st_mod*z_lager_mod+(k_platz_mod/kap_lhm_mod)) -> 5477796.43 | N90: =LV_1_mod*((1-(L90/BL_1_mod)^C_Wert_LV_mod)^(1/C_Wert_LV_mod)) -> 9.188414546 | O90: 9.816682207 | P90: =(BR_m_mod*T_mod)*(100%-K90) -> 341.64 | Q90: =P90/X_ab_m_mod -> 8.541 | R90: =Q90*($L$23+w_at*O90*T_mod*z_lager_mod) -> 69005495.71 | S90: 74483292.14
A91: 0.065 | B91: =BR_m*T*(p_st+(k_best/X_zu_m)+(k_hand/kap_lhm))+(0.5*X_zu_m*A91^2+SQRT((ta*BR_m)^2+(ma)^2+((BR_max-BR_m)*WBZ)^2+VL^2)*(1-(1-A91)^C_Wert)^(1/C_Wert))*(T/365)*(p_st*z_lager+(k_platz/kap_lhm))+(BR_m*T)*(a_eil*k_eil+(1-a_eil)*k_fehlstck)*(1-sg_beta_stör-A91) -> 306571.2804 | C91: 1.9582875 | D91: 0.065 | E91: 2380479.728 | F91: 156.648467 | G91: 0.065 | H91: 5564873.389 | I91: 0.03441569008 | J91: =G91 -> 0.065 | K91: =G91 -> 0.065 | L91: 0.03441569008 | M91: 5477799.189 | N91: 9.113977371 | O91: =N91/(1-K91) -> 9.74756938 | P91: 341.275 | Q91: 8.531875 | R91: 68447511.98 | S91: =M91+R91 -> 73925311.17
A92: 0.066 | B92: 306247.4519 | C92: 2.019006 | D92: =A92 -> 0.066 | E92: 2380109.394 | F92: 156.6518075 | G92: =D92 -> 0.066 | H92: 5564783.066 | I92: 0.03551564314 | J92: 0.066 | K92: 0.066 | L92: 0.03551564314 | M92: 5477801.993 | N92: 9.040663756 | O92: 9.679511516 | P92: 340.91 | Q92: 8.52275 | R92: 67897948.1 | S92: 73375750.09
A93: =A92+0.001 -> 0.067 | B93: 305923.6248 | C93: 2.0806515 | D93: 0.067 | E93: 2379739.068 | F93: 156.655199 | G93: 0.067 | H93: 5564692.79 | I93: 0.03663362536 | J93: 0.067 | K93: 0.067 | L93: 0.03663362536 | M93: 5477804.844 | N93: 8.968443588 | O93: 9.61247973 | P93: 340.545 | Q93: 8.513625 | R93: 67356578.41 | S93: 72834383.25
A94: 0.068 | B94: 305599.7991 | C94: 2.143224 | D94: 0.068 | E94: 2379368.75 | F94: 156.6586415 | G94: 0.068 | H94: 5564602.559 | I94: 0.03776966642 | J94: 0.068 | K94: 0.068 | L94: 0.03776966642 | M94: 5477807.741 | N94: 8.897287968 | O94: 9.546446317 | P94: 340.18 | Q94: 8.5045 | R94: 66823186.34 | S94: 72300994.08
A95: 0.069 | B95: 305275.9748 | C95: 2.2067235 | D95: 0.069 | E95: 2378998.438 | F95: 156.662135 | G95: 0.069 | H95: 5564512.375 | I95: 0.03892379595 | J95: 0.069 | K95: 0.069 | L95: 0.03892379595 | M95: 5477810.684 | N95: 8.827169142 | O95: 9.481384685 | P95: 339.815 | Q95: 8.495375 | R95: 66297563.91 | S95: 71775374.59
A96: 0.07 | B96: 304952.1519 | C96: 2.27115 | D96: 0.07 | E96: 2378628.134 | F96: 156.6656795 | G96: 0.07 | H96: 5564422.236 | I96: 0.04009604348 | J96: 0.07 | K96: 0.07 | L96: 0.04009604348 | M96: 5477813.673 | N96: 8.758060445 | O96: 9.417269296 | P96: 339.45 | Q96: 8.48625 | R96: 65779511.28 | S96: 71257324.96
A97: 0.071 | B97: 304628.3305 | C97: 2.3365035 | D97: 0.071 | E97: 2378257.837 | F97: 156.669275 | G97: 0.071 | H97: 5564332.144 | I97: 0.04128643849 | J97: 0.071 | K97: 0.071 | L97: 0.04128643849 | M97: 5477816.709 | N97: 8.689936239 | O97: 9.354075607 | P97: 339.085 | Q97: 8.477125 | R97: 65268836.35 | S97: 70746653.06
A98: 0.072 | B98: 304304.5104 | C98: 2.402784 | D98: 0.072 | E98: 2377887.547 | F98: 156.6729215 | G98: 0.072 | H98: 5564242.099 | I98: 0.0424950104 | J98: 0.072 | K98: 0.072 | L98: 0.0424950104 | M98: 5477819.791 | N98: 8.622771865 | O98: 9.291780027 | P98: 338.72 | Q98: 8.468 | R98: 64765354.3 | S98: 70243174.09
A99: 0.073 | B99: 303980.6918 | C99: 2.4699915 | D99: 0.073 | E99: 2377517.265 | F99: 156.676619 | G99: 0.073 | H99: 5564152.1 | I99: 0.04372178858 | J99: 0.073 | K99: 0.073 | L99: 0.04372178858 | M99: 5477822.919 | N99: 8.556543588 | O99: 9.230359858 | P99: 338.355 | Q99: 8.458875 | R99: 64268887.28 | S99: 69746710.2
A100: 0.074 | B100: 303656.8746 | C100: 2.538126 | D100: 0.074 | E100: 2377146.989 | F100: 156.6803675 | G100: 0.074 | H100: 5564062.147 | I100: 0.04496680233 | J100: 0.074 | K100: 0.074 | L100: 0.04496680233 | M100: 5477826.094 | N100: 8.491228554 | O100: 9.169793255 | P100: 337.99 | Q100: 8.44975 | R100: 63779264.01 | S100: 69257090.11
A101: 0.075 | B101: 303333.0589 | C101: 2.6071875 | D101: 0.075 | E101: 2376776.722 | F101: 156.684167 | G101: 0.075 | H101: 5563972.241 | I101: 0.04623008092 | J101: 0.075 | K101: 0.075 | L101: 0.04623008092 | M101: 5477829.315 | N101: 8.426804746 | O101: 9.110059185 | P101: 337.625 | Q101: 8.440625 | R101: 63296319.51 | S101: 68774148.83
A102: 0.076 | B102: 303009.2445 | C102: 2.677176 | D102: 0.076 | E102: 2376406.461 | F102: 156.6880175 | G102: 0.076 | H102: 5563882.381 | I102: 0.04751165354 | J102: 0.076 | K102: 0.076 | L102: 0.04751165354 | M102: 5477832.583 | N102: 8.36325094 | O102: 9.051137381 | P102: 337.26 | Q102: 8.4315 | R102: 62819894.73 | S102: 68297727.31
A103: 0.077 | B103: 302685.4316 | C103: 2.7480915 | D103: 0.077 | E103: 2376036.208 | F103: 156.691919 | G103: 0.077 | H103: 5563792.569 | I103: 0.04881154939 | J103: 0.077 | K103: 0.077 | L103: 0.04881154939 | M103: 5477835.898 | N103: 8.300546672 | O103: 8.993008312 | P103: 336.895 | Q103: 8.422375 | R103: 62349836.3 | S103: 67827672.19
A104: 0.078 | B104: 302361.62 | C104: 2.819934 | D104: 0.078 | E104: 2375665.961 | F104: 156.6958715 | G104: 0.078 | H104: 5563702.803 | I104: 0.05012979757 | J104: 0.078 | K104: 0.078 | L104: 0.05012979757 | M104: 5477839.26 | N104: 8.238672196 | O104: 8.935653141 | P104: 336.53 | Q104: 8.41325 | R104: 61885996.25 | S104: 67363835.51
A105: 0.079 | B105: 302037.8099 | C105: 2.8927035 | D105: 0.079 | E105: 2375295.723 | F105: 156.699875 | G105: 0.079 | H105: 5563613.083 | I105: 0.05146642717 | J105: 0.079 | K105: 0.079 | L105: 0.05146642717 | M105: 5477842.668 | N105: 8.177608454 | O105: 8.879053696 | P105: 336.165 | Q105: 8.404125 | R105: 61428231.76 | S105: 66906074.43
A106: 0.08 | B106: 301714.0013 | C106: 2.9664 | D106: 0.08 | E106: 2374925.491 | F106: 156.7039295 | G106: 0.08 | H106: 5563523.411 | I106: 0.05282146727 | J106: 0.08 | K106: 0.08 | L106: 0.05282146727 | M106: 5477846.123 | N106: 8.117337041 | O106: 8.823192436 | P106: 335.8 | Q106: 8.395 | R106: 60976404.93 | S106: 66454251.05
A107: 0.081 | B107: 301390.194 | C107: 3.0410235 | D107: 0.081 | E107: 2374555.267 | F107: 156.708035 | G107: 0.081 | H107: 5563433.786 | I107: 0.05419494687 | J107: 0.081 | K107: 0.081 | L107: 0.05419494687 | M107: 5477849.626 | N107: 8.05784018 | O107: 8.768052427 | P107: 335.435 | Q107: 8.385875 | R107: 60530382.5 | S107: 66008232.13
A108: 0.082 | B108: 301066.3881 | C108: 3.116574 | D108: 0.082 | E108: 2374185.05 | F108: 156.7121915 | G108: 0.082 | H108: 5563344.208 | I108: 0.05558689496 | J108: 0.082 | K108: 0.082 | L108: 0.05558689496 | M108: 5477853.175 | N108: 7.999100688 | O108: 8.713617307 | P108: 335.07 | Q108: 8.37675 | R108: 60090035.73 | S108: 65567888.9
A109: 0.083 | B109: 300742.5837 | C109: 3.1930515 | D109: 0.083 | E109: 2373814.84 | F109: 156.716399 | G109: 0.083 | H109: 5563254.677 | I109: 0.05699734052 | J109: 0.083 | K109: 0.083 | L109: 0.05699734052 | M109: 5477856.772 | N109: 7.94110195 | O109: 8.659871265 | P109: 334.705 | Q109: 8.367625 | R109: 59655240.1 | S109: 65133096.87
A110: 0.084 | B110: 300418.7807 | C110: 3.270456 | D110: 0.084 | E110: 2373444.637 | F110: 156.7206575 | G110: 0.084 | H110: 5563165.194 | I110: 0.05842631248 | J110: 0.084 | K110: 0.084 | L110: 0.05842631248 | M110: 5477860.416 | N110: 7.883827898 | O110: 8.606799015 | P110: 334.34 | Q110: 8.3585 | R110: 59225875.2 | S110: 64703735.62
A111: 0.085 | B111: 300094.9791 | C111: 3.3487875 | D111: 0.085 | E111: 2373074.442 | F111: 156.724967 | G111: 0.085 | H111: 5563075.757 | I111: 0.05987383976 | J111: 0.085 | K111: 0.085 | L111: 0.05987383976 | M111: 5477864.107 | N111: 7.827262984 | O111: 8.554385775 | P111: 333.975 | Q111: 8.349375 | R111: 58801824.51 | S111: 64279688.62
A112: 0.086 | B112: 299771.1789 | C112: 3.428046 | D112: 0.086 | E112: 2372704.254 | F112: 156.7293275 | G112: 0.086 | H112: 5562986.369 | I112: 0.06133995125 | J112: 0.086 | K112: 0.086 | L112: 0.06133995125 | M112: 5477867.845 | N112: 7.771392156 | O112: 8.502617238 | P112: 333.61 | Q112: 8.34025 | R112: 58382975.24 | S112: 63860843.08
A113: 0.087 | B113: 299447.3802 | C113: 3.5082315 | D113: 0.087 | E113: 2372334.073 | F113: 156.733739 | G113: 0.087 | H113: 5562897.027 | I113: 0.06282467584 | J113: 0.087 | K113: 0.087 | L113: 0.06282467584 | M113: 5477871.631 | N113: 7.716200839 | O113: 8.451479561 | P113: 333.245 | Q113: 8.331125 | R113: 57969218.17 | S113: 63447089.8
A114: 0.088 | B114: 299123.5828 | C114: 3.589344 | D114: 0.088 | E114: 2371963.9 | F114: 156.7382015 | G114: 0.088 | H114: 5562807.733 | I114: 0.06432804238 | J114: 0.088 | K114: 0.088 | L114: 0.06432804238 | M114: 5477875.465 | N114: 7.661674917 | O114: 8.400959339 | P114: 332.88 | Q114: 8.322 | R114: 57560447.49 | S114: 63038322.96
A115: 0.089 | B115: 298799.7869 | C115: 3.6713835 | D115: 0.089 | E115: 2371593.734 | F115: 156.742715 | G115: 0.089 | H115: 5562718.487 | I115: 0.06585007973 | J115: 0.089 | K115: 0.089 | L115: 0.06585007973 | M115: 5477879.346 | N115: 7.607800707 | O115: 8.351043586 | P115: 332.515 | Q115: 8.312875 | R115: 57156560.69 | S115: 62634440.04
A116: 0.09 | B116: 298475.9924 | C116: 3.75435 | D116: 0.09 | E116: 2371223.575 | F116: 156.7472795 | G116: 0.09 | H116: 5562629.288 | I116: 0.06739081672 | J116: 0.09 | K116: 0.09 | L116: 0.06739081672 | M116: 5477883.275 | N116: 7.554564948 | O116: 8.301719723 | P116: 332.15 | Q116: 8.30375 | R116: 56757458.38 | S116: 62235341.65
A117: 0.091 | B117: 298152.1993 | C117: 3.8382435 | D117: 0.091 | E117: 2370853.423 | F117: 156.751895 | G117: 0.091 | H117: 5562540.137 | I117: 0.06895028218 | J117: 0.091 | K117: 0.091 | L117: 0.06895028218 | M117: 5477887.252 | N117: 7.50195478 | O117: 8.252975555 | P117: 331.785 | Q117: 8.294625 | R117: 56363044.18 | S117: 61840931.44
A118: 0.092 | B118: 297828.4077 | C118: 3.923064 | D118: 0.092 | E118: 2370483.279 | F118: 156.7565615 | G118: 0.092 | H118: 5562451.034 | I118: 0.07052850493 | J118: 0.092 | K118: 0.092 | L118: 0.07052850493 | M118: 5477891.276 | N118: 7.449957728 | O118: 8.20479926 | P118: 331.42 | Q118: 8.2855 | R118: 55973224.63 | S118: 61451115.9
A119: 0.093 | B119: 297504.6174 | C119: 4.0088115 | D119: 0.093 | E119: 2370113.142 | F119: 156.761279 | G119: 0.093 | H119: 5562361.979 | I119: 0.07212551377 | J119: 0.093 | K119: 0.093 | L119: 0.07212551377 | M119: 5477895.349 | N119: 7.398561687 | O119: 8.157179369 | P119: 331.055 | Q119: 8.276375 | R119: 55587908.99 | S119: 61065804.34
A120: 0.094 | B120: 297180.8286 | C120: 4.095486 | D120: 0.094 | E120: 2369743.012 | F120: 156.7660475 | G120: 0.094 | H120: 5562272.972 | I120: 0.07374133753 | J120: 0.094 | K120: 0.094 | L120: 0.07374133753 | M120: 5477899.469 | N120: 7.34775491 | O120: 8.110104757 | P120: 330.69 | Q120: 8.26725 | R120: 55207009.24 | S120: 60684908.71
A121: 0.095 | B121: 296857.0412 | C121: 4.1830875 | D121: 0.095 | E121: 2369372.889 | F121: 156.770867 | G121: 0.095 | H121: 5562184.013 | I121: 0.075376005 | J121: 0.095 | K121: 0.095 | L121: 0.075376005 | M121: 5477903.637 | N121: 7.297525988 | O121: 8.063564627 | P121: 330.325 | Q121: 8.258125 | R121: 54830439.88 | S121: 60308343.52
A122: 0.096 | B122: 296533.2552 | C122: 4.271616 | D122: 0.096 | E122: 2369002.774 | F122: 156.7757375 | G122: 0.096 | H122: 5562095.102 | I122: 0.07702954498 | J122: 0.096 | K122: 0.096 | L122: 0.07702954498 | M122: 5477907.854 | N122: 7.247863841 | O122: 8.017548497 | P122: 329.96 | Q122: 8.249 | R122: 54458117.89 | S122: 59936025.75
A123: 0.097 | B123: =BR_m*T*(p_st+(k_best/X_zu_m)+(k_hand/kap_lhm))+(0.5*X_zu_m*A123^2+SQRT((ta*BR_m)^2+(ma)^2+((BR_max-BR_m)*WBZ)^2+VL^2)*(1-(1-A123)^C_Wert)^(1/C_Wert))*(T/365)*(p_st*z_lager+(k_platz/kap_lhm))+(BR_m*T)*(a_eil*k_eil+(1-a_eil)*k_fehlstck)*(1-sg_beta_stör-A123) -> 296209.4706 | C123: 4.3610715 | D123: 0.097 | E123: 2368632.666 | F123: 156.780659 | G123: 0.097 | H123: 5562006.239 | I123: 0.07870198629 | J123: 0.097 | K123: 0.097 | L123: 0.07870198629 | M123: 5477912.119 | N123: 7.198757707 | O123: 7.972046187 | P123: 329.595 | Q123: 8.239875 | R123: 54089962.6 | S123: 59567874.72
A124: 0.098 | B124: 295885.6875 | C124: 4.451454 | D124: 0.098 | E124: 2368262.565 | F124: 156.7856315 | G124: 0.098 | H124: 5561917.425 | I124: 0.08039335773 | J124: 0.098 | K124: 0.098 | L124: 0.08039335773 | M124: 5477916.432 | N124: 7.150197125 | O124: 7.927047811 | P124: 329.23 | Q124: 8.23075 | R124: 53725895.63 | S124: 59203812.06
A125: 0.099 | B125: 295561.9057 | C125: 4.5427635 | D125: 0.099 | E125: 2367892.472 | F125: 156.790655 | G125: 0.099 | H125: 5561828.659 | I125: 0.08210368812 | J125: 0.099 | K125: 0.099 | L125: 0.08210368812 | M125: 5477920.793 | N125: 7.102171927 | O125: 7.882543759 | P125: 328.865 | Q125: 8.221625 | R125: 53365840.77 | S125: 58843761.57
A126: 0.1 | B126: 295238.1254 | C126: 4.635 | D126: 0.1 | E126: 2367522.386 | F126: 156.7957295 | G126: 0.1 | H126: 5561739.941 | I126: 0.08383300626 | J126: 0.1 | K126: 0.1 | L126: 0.08383300626 | M126: 5477925.203 | N126: 7.054672226 | O126: 7.838524695 | P126: 328.5 | Q126: 8.2125 | R126: 53009723.94 | S126: 58487649.14
A127: 0.101 | B127: 294914.3465 | C127: 4.7281635 | D127: 0.101 | E127: 2367152.307 | F127: 156.800855 | G127: 0.101 | H127: 5561651.272 | I127: 0.08558134099 | J127: 0.101 | K127: 0.101 | L127: 0.08558134099 | M127: 5477929.661 | N127: 7.007688405 | O127: 7.79498154 | P127: 328.135 | Q127: 8.203375 | R127: 52657473.07 | S127: 58135402.73
A128: 0.102 | B128: 294590.569 | C128: 4.822254 | D128: 0.102 | E128: 2366782.235 | F128: 156.8060315 | G128: 0.102 | H128: 5561562.651 | I128: 0.08734872114 | J128: 0.102 | K128: 0.102 | L128: 0.08734872114 | M128: 5477934.168 | N128: 6.961211109 | O128: 7.751905467 | P128: 327.77 | Q128: 8.19425 | R128: 52309018.05 | S128: 57786952.22
A129: 0.103 | B129: 294266.793 | C129: 4.9172715 | D129: 0.103 | E129: 2366412.171 | F129: 156.811259 | G129: 0.103 | H129: 5561474.079 | I129: 0.08913517554 | J129: 0.103 | K129: 0.103 | L129: 0.08913517554 | M129: 5477938.723 | N129: 6.915231235 | O129: 7.709287888 | P129: 327.405 | Q129: 8.185125 | R129: 51964290.66 | S129: 57442229.38
A130: 0.104 | B130: 293943.0183 | C130: 5.013216 | D130: 0.104 | E130: 2366042.113 | F130: 156.8165375 | G130: 0.104 | H130: 5561385.556 | I130: 0.09094073305 | J130: 0.104 | K130: 0.104 | L130: 0.09094073305 | M130: 5477943.327 | N130: 6.869739921 | O130: 7.667120448 | P130: 327.04 | Q130: 8.176 | R130: 51623224.49 | S130: 57101167.82
A131: 0.105 | B131: 293619.2451 | C131: 5.1100875 | D131: 0.105 | E131: 2365672.064 | F131: 156.821867 | G131: 0.105 | H131: 5561297.081 | I131: 0.09276542255 | J131: 0.105 | K131: 0.105 | L131: 0.09276542255 | M131: 5477947.98 | N131: 6.824728539 | O131: 7.625395016 | P131: 326.675 | Q131: 8.166875 | R131: 51285754.89 | S131: 56763702.87
A132: 0.106 | B132: 293295.4733 | C132: 5.207886 | D132: 0.106 | E132: 2365302.021 | F132: 156.8272475 | G132: 0.106 | H132: 5561208.656 | I132: 0.0946092729 | J132: 0.106 | K132: 0.106 | L132: 0.0946092729 | M132: 5477952.682 | N132: 6.780188687 | O132: 7.584103676 | P132: 326.31 | Q132: 8.15775 | R132: 50951818.89 | S132: 56429771.57
A133: 0.107 | B133: 292971.7029 | C133: 5.3066115 | D133: 0.107 | E133: 2364931.986 | F133: 156.832679 | G133: 0.107 | H133: 5561120.279 | I133: 0.096472313 | J133: 0.107 | K133: 0.107 | L133: 0.096472313 | M133: 5477957.433 | N133: 6.736112179 | O133: 7.543238722 | P133: 325.945 | Q133: 8.148625 | R133: 50621355.15 | S133: 56099312.58
A134: 0.108 | B134: 292647.9339 | C134: 5.406264 | D134: 0.108 | E134: 2364561.958 | F134: 156.8381615 | G134: 0.108 | H134: 5561031.951 | I134: 0.09835457177 | J134: 0.108 | K134: 0.108 | L134: 0.09835457177 | M134: 5477962.233 | N134: 6.692491042 | O134: 7.502792648 | P134: 325.58 | Q134: 8.1395 | R134: 50294303.91 | S134: 55772266.14
A135: 0.109 | B135: 292324.1664 | C135: 5.5068435 | D135: 0.109 | E135: 2364191.937 | F135: 156.843695 | G135: 0.109 | H135: 5560943.672 | I135: 0.1002560781 | J135: 0.109 | K135: 0.109 | L135: 0.1002560781 | M135: 5477967.082 | N135: 6.649317503 | O135: 7.462758141 | P135: 325.215 | Q135: 8.130375 | R135: 49970606.94 | S135: 55448574.02
A136: 0.11 | B136: 292000.4002 | C136: 5.60835 | D136: 0.11 | E136: 2363821.923 | F136: 156.8492795 | G136: 0.11 | H136: 5560855.443 | I136: 0.102176861 | J136: 0.11 | K136: 0.11 | L136: 0.102176861 | M136: 5477971.98 | N136: 6.606583988 | O136: 7.423128076 | P136: 324.85 | Q136: 8.12125 | R136: 49650207.45 | S136: 55128179.43
A137: 0.111 | B137: 291676.6355 | C137: 5.7107835 | D137: 0.111 | E137: 2363451.917 | F137: 156.854915 | G137: 0.111 | H137: 5560767.263 | I137: 0.1041169495 | J137: 0.111 | K137: 0.111 | L137: 0.1041169495 | M137: 5477976.927 | N137: 6.564283109 | O137: 7.383895511 | P137: 324.485 | Q137: 8.112125 | R137: 49333050.11 | S137: 54811027.03
A138: 0.112 | B138: 291352.8722 | C138: 5.814144 | D138: 0.112 | E138: 2363081.918 | F138: 156.8606015 | G138: 0.112 | H138: 5560679.132 | I138: 0.1060763724 | J138: 0.112 | K138: 0.112 | L138: 0.1060763724 | M138: 5477981.923 | N138: 6.522407663 | O138: 7.345053675 | P138: 324.12 | Q138: 8.103 | R138: 49019080.92 | S138: 54497062.84
A139: 0.113 | B139: 291029.1103 | C139: 5.9184315 | D139: 0.113 | E139: 2362711.926 | F139: 156.866339 | G139: 0.113 | H139: 5560591.05 | I139: 0.1080551588 | J139: 0.113 | K139: 0.113 | L139: 0.1080551588 | M139: 5477986.969 | N139: 6.480950624 | O139: 7.306595969 | P139: 323.755 | Q139: 8.093875 | R139: 48708247.23 | S139: 54186234.2
A140: 0.114 | B140: 290705.3499 | C140: 6.023646 | D140: 0.114 | E140: 2362341.942 | F140: 156.8721275 | G140: 0.114 | H140: 5560503.018 | I140: 0.1100533378 | J140: 0.114 | K140: 0.114 | L140: 0.1100533378 | M140: 5477992.065 | N140: 6.439905137 | O140: 7.268515956 | P140: 323.39 | Q140: 8.08475 | R140: 48400497.68 | S140: 53878489.74
A141: 0.115 | B141: 290381.5908 | C141: 6.1297875 | D141: 0.115 | E141: 2361971.964 | F141: 156.877967 | G141: 0.115 | H141: 5560415.035 | I141: 0.1120709384 | J141: 0.115 | K141: 0.115 | L141: 0.1120709384 | M141: 5477997.209 | N141: 6.399264513 | O141: 7.230807359 | P141: 323.025 | Q141: 8.075625 | R141: 48095782.12 | S141: 53573779.33
A142: 0.116 | B142: 290057.8332 | C142: 6.236856 | D142: 0.116 | E142: 2361601.994 | F142: 156.8838575 | G142: 0.116 | H142: 5560327.102 | I142: 0.1141079897 | J142: 0.116 | K142: 0.116 | L142: 0.1141079897 | M142: 5478002.404 | N142: 6.359022221 | O142: 7.193464051 | P142: 322.66 | Q142: 8.0665 | R142: 47794051.64 | S142: 53272054.04
A143: 0.117 | B143: 289734.077 | C143: 6.3448515 | D143: 0.117 | E143: 2361232.032 | F143: 156.889799 | G143: 0.117 | H143: 5560239.219 | I143: 0.1161645208 | J143: 0.117 | K143: 0.117 | L143: 0.1161645208 | M143: 5478007.648 | N143: 6.319171889 | O143: 7.156480055 | P143: 322.295 | Q143: 8.057375 | R143: 47495258.46 | S143: 52973266.11
A144: 0.118 | B144: 289410.3222 | C144: 6.453774 | D144: 0.118 | E144: 2360862.076 | F144: 156.8957915 | G144: 0.118 | H144: 5560151.386 | I144: 0.1182405609 | J144: 0.118 | K144: 0.118 | L144: 0.1182405609 | M144: 5478012.942 | N144: 6.279707291 | O144: 7.119849536 | P144: 321.93 | Q144: 8.04825 | R144: 47199355.94 | S144: 52677368.88
A145: 0.119 | B145: 289086.5688 | C145: 6.5636235 | D145: 0.119 | E145: 2360492.128 | F145: 156.901835 | G145: 0.119 | H145: 5560063.602 | I145: 0.1203361391 | J145: 0.119 | K145: 0.119 | L145: 0.1203361391 | M145: 5478018.286 | N145: 6.24062235 | O145: 7.083566799 | P145: 321.565 | Q145: 8.039125 | R145: 46906298.53 | S145: 52384316.82
A146: 0.12 | B146: 288762.8169 | C146: 6.6744 | D146: 0.12 | E146: 2360122.187 | F146: 156.9079295 | G146: 0.12 | H146: 5559975.868 | I146: 0.1224512847 | J146: 0.12 | K146: 0.12 | L146: 0.1224512847 | M146: 5478023.679 | N146: 6.201911129 | O146: 7.047626282 | P146: 321.2 | Q146: 8.03 | R146: 46616041.74 | S146: 52094065.42
A147: 0.121 | B147: 288439.0664 | C147: 6.7861035 | D147: 0.121 | E147: 2359752.254 | F147: 156.914075 | G147: 0.121 | H147: 5559888.184 | I147: 0.1245860268 | J147: 0.121 | K147: 0.121 | L147: 0.1245860268 | M147: 5478029.123 | N147: 6.163567825 | O147: 7.012022554 | P147: 320.835 | Q147: 8.020875 | R147: 46328542.1 | S147: 51806571.22
A148: 0.122 | B148: 288115.3172 | C148: 6.898734 | D148: 0.122 | E148: 2359382.327 | F148: 156.9202715 | G148: 0.122 | H148: 5559800.55 | I148: 0.1267403947 | J148: 0.122 | K148: 0.122 | L148: 0.1267403947 | M148: 5478034.617 | N148: 6.125586772 | O148: 6.97675031 | P148: 320.47 | Q148: 8.01175 | R148: 46043757.12 | S148: 51521791.74
A149: 0.123 | B149: 287791.5696 | C149: 7.0122915 | D149: 0.123 | E149: 2359012.408 | F149: 156.926519 | G149: 0.123 | H149: 5559712.966 | I149: 0.1289144177 | J149: 0.123 | K149: 0.123 | L149: 0.1289144177 | M149: 5478040.16 | N149: 6.087962429 | O149: 6.941804366 | P149: 320.105 | Q149: 8.002625 | R149: 45761645.3 | S149: 51239685.46
A150: 0.124 | B150: 287467.8233 | C150: 7.126776 | D150: 0.124 | E150: 2358642.497 | F150: 156.9328175 | G150: 0.124 | H150: 5559625.433 | I150: 0.1311081252 | J150: 0.124 | K150: 0.124 | L150: 0.1311081252 | M150: 5478045.754 | N150: 6.050689379 | O150: 6.907179657 | P150: 319.74 | Q150: 7.9935 | R150: 45482166.04 | S150: 50960211.79
A151: 0.125 | B151: 287144.0784 | C151: 7.2421875 | D151: 0.125 | E151: 2358272.592 | F151: 156.939167 | G151: 0.125 | H151: 5559537.95 | I151: 0.1333215466 | J151: 0.125 | K151: 0.125 | L151: 0.1333215466 | M151: 5478051.399 | N151: 6.013762329 | O151: 6.872871234 | P151: 319.375 | Q151: 7.984375 | R151: 45205279.66 | S151: 50683331.06
A152: 0.126 | B152: 286820.335 | C152: 7.358526 | D152: 0.126 | E152: 2357902.695 | F152: 156.9455675 | G152: 0.126 | H152: 5559450.517 | I152: 0.1355547111 | J152: 0.126 | K152: 0.126 | L152: 0.1355547111 | M152: 5478057.093 | N152: 5.977176101 | O152: 6.838874257 | P152: 319.01 | Q152: 7.97525 | R152: 44930947.37 | S152: 50409004.46
A153: 0.127 | B153: 286496.5929 | C153: 7.4757915 | D153: 0.127 | E153: 2357532.805 | F153: 156.952019 | G153: 0.127 | H153: 5559363.134 | I153: 0.1378076483 | J153: 0.127 | K153: 0.127 | L153: 0.1378076483 | M153: 5478062.838 | N153: 5.94092563 | O153: 6.805183998 | P153: 318.645 | Q153: 7.966125 | R153: 44659131.22 | S153: 50137194.06
A154: 0.128 | B154: 286172.8523 | C154: =(0.5*X_zu_m*$A154^2+SQRT((ta*BR_m)^2+(ma)^2+((BR_max-BR_m)*WBZ)^2+VL^2)*(1-(1-$A154)^B$23)^(1/B$23)) -> 7.593984 | D154: 0.128 | E154: =BR_m2*T_2*(p_st2+(k_best2/X_zu_m2)+(k_hand2/kap_lhm2))+(0.5*X_zu_m2*$D154^2+SQRT((ta_2*BR_m2)^2+(ma_2)^2+((BR_max2-BR_m2)*WBZ_2)^2+VL_2^2)*(1-(1-$D154)^E$23)^(1/E$23))*(T_2/365)*(p_st2*z_lager2+(k_platz2/kap_lhm2))+(BR_m2*T_2)*(a_eil2*k_eil2+(1-a_eil2)*k_fehlstck2)*(1-sg_beta_stör2-$D154) -> 2357162.922 | F154: =(0.5*X_zu_m2*$D154^2+SQRT((ta_2*BR_m2)^2+(ma_2)^2+((BR_max2-BR_m2)*WBZ_2)^2+VL_2^2)*(1-(1-$D154)^E$23)^(1/E$23)) -> 156.9585215 | G154: 0.128 | H154: =BR_m3*T_3*(p_st3+(k_best3/X_zu_m3)+(k_hand3/kap_lhm3))+(0.5*X_zu_m3*$G154^2+SQRT((ta_3*BR_m3)^2+(ma_3)^2+((BR_max3-BR_m3)*WBZ_3)^2+VL_3^2)*(1-(1-$G154)^H$23)^(1/H$23))*(T_3/365)*(p_st3*z_lager3+(k_platz3/kap_lhm3))+(BR_m3*T_3)*(a_eil3*k_eil3+(1-a_eil3)*k_fehlstck3)*(1-sg_beta_stör3-$G154) -> 5559275.802 | I154: =(0.5*X_zu_m3*$G154^2+SQRT((ta_3*BR_m3)^2+(ma_3)^2+((BR_max3-BR_m3)*WBZ_3)^2+VL_3^2)*(1-(1-$G154)^H$23)^(1/H$23)) -> 0.1400803877 | J154: 0.128 | K154: 0.128 | L154: =(0.5*X_zu_m_mod*$K154^2+SQRT((ta_mod*BR_m_mod)^2+(ma_mod)^2+((BR_max_mod-BR_m_mod)*WBZ_mod)^2+VL_mod^2)*(1-(1-$K154)^L$19)^(1/L$19)) -> 0.1400803877 | M154: =BR_m_mod*T_mod*(p_st_mod+(k_best_mod/X_zu_m_mod)+(k_hand_mod/kap_lhm_mod))+(0.5*X_zu_m_mod*K154^2+SQRT((ta_mod*BR_m_mod)^2+(ma_mod)^2+((BR_max_mod-BR_m_mod)*WBZ_mod)^2+VL_mod^2)*(1-(1-K154)^C_Wert_mod)^(1/C_Wert_mod))*(T_mod/365)*(p_st_mod*z_lager_mod+(k_platz_mod/kap_lhm_mod)) -> 5478068.634 | N154: =LV_1_mod*((1-(L154/BL_1_mod)^C_Wert_LV_mod)^(1/C_Wert_LV_mod)) -> 5.905005963 | O154: 6.77179583 | P154: =(BR_m_mod*T_mod)*(100%-K154) -> 318.28 | Q154: =P154/X_ab_m_mod -> 7.957 | R154: =Q154*($L$23+w_at*O154*T_mod*z_lager_mod) -> 44389794.08 | S154: 49867862.71
A155: 0.129 | B155: 285849.1132 | C155: 7.7131035 | D155: 0.129 | E155: 2356793.047 | F155: 156.965075 | G155: 0.129 | H155: 5559188.521 | I155: 0.1423729587 | J155: =G155 -> 0.129 | K155: =G155 -> 0.129 | L155: 0.1423729587 | M155: 5478074.48 | N155: 5.869412254 | O155: =N155/(1-K155) -> 6.738705228 | P155: 317.915 | Q155: 7.947875 | R155: 44122899.63 | S155: =M155+R155 -> 49600974.11
A156: 0.13 | B156: 285525.3754 | C156: 7.83315 | D156: =A156 -> 0.13 | E156: 2356423.178 | F156: 156.9716795 | G156: =D156 -> 0.13 | H156: 5559101.29 | I156: 0.1446853909 | J156: 0.13 | K156: 0.13 | L156: 0.1446853909 | M156: 5478080.376 | N156: 5.834139759 | O156: 6.705907769 | P156: 317.55 | Q156: 7.93875 | R156: 43858412.34 | S156: 49336492.72
A157: =A156+0.001 -> 0.131 | B157: 285201.639 | C157: 7.9541235 | D157: 0.131 | E157: 2356053.317 | F157: 156.978335 | G157: 0.131 | H157: 5559014.11 | I157: 0.1470177139 | J157: 0.131 | K157: 0.131 | L157: 0.1470177139 | M157: 5478086.324 | N157: 5.799183838 | O157: 6.673399124 | P157: 317.185 | Q157: 7.929625 | R157: 43596297.42 | S157: 49074383.75
A158: 0.132 | B158: 284877.9041 | C158: 8.076024 | D158: 0.132 | E158: 2355683.464 | F158: 156.9850415 | G158: 0.132 | H158: 5558926.981 | I158: 0.1493699574 | J158: 0.132 | K158: 0.132 | L158: 0.1493699574 | M158: 5478092.322 | N158: 5.764539948 | O158: 6.641175055 | P158: 316.82 | Q158: 7.9205 | R158: 43336520.83 | S158: 48814613.15
A159: 0.133 | B159: 284554.1706 | C159: 8.1988515 | D159: 0.133 | E159: 2355313.617 | F159: 156.991799 | G159: 0.133 | H159: 5558839.902 | I159: 0.151742151 | J159: 0.133 | K159: 0.133 | L159: 0.151742151 | M159: 5478098.371 | N159: 5.73020364 | O159: 6.609231419 | P159: 316.455 | Q159: 7.911375 | R159: 43079049.23 | S159: 48557147.61
A160: 0.134 | B160: 284230.4385 | C160: 8.322606 | D160: 0.134 | E160: 2354943.778 | F160: 156.9986075 | G160: 0.134 | H160: 5558752.875 | I160: 0.1541343244 | J160: 0.134 | K160: 0.134 | L160: 0.1541343244 | M160: 5478104.471 | N160: 5.69617056 | O160: 6.577564157 | P160: 316.09 | Q160: 7.90225 | R160: 42823850 | S160: 48301954.47
A161: 0.135 | B161: 283906.7078 | C161: 8.4472875 | D161: 0.135 | E161: 2354573.946 | F161: 157.005467 | G161: 0.135 | H161: 5558665.898 | I161: 0.1565465074 | J161: 0.135 | K161: 0.135 | L161: 0.1565465074 | M161: 5478110.622 | N161: 5.662436443 | O161: 6.546169299 | P161: 315.725 | Q161: 7.893125 | R161: 42570891.17 | S161: 48049001.79
A162: 0.136 | B162: 283582.9786 | C162: 8.572896 | D162: 0.136 | E162: 2354204.122 | F162: 157.0123775 | G162: 0.136 | H162: 5558578.973 | I162: 0.1589787299 | J162: 0.136 | K162: 0.136 | L162: 0.1589787299 | M162: 5478116.824 | N162: 5.628997112 | O162: 6.515042954 | P162: 315.36 | Q162: 7.884 | R162: 42320141.43 | S162: 47798258.26
A163: 0.137 | B163: 283259.2507 | C163: 8.6994315 | D163: 0.137 | E163: 2353834.304 | F163: 157.019339 | G163: 0.137 | H163: 5558492.099 | I163: 0.1614310216 | J163: 0.137 | K163: 0.137 | L163: 0.1614310216 | M163: 5478123.078 | N163: 5.595848476 | O163: 6.484181316 | P163: 314.995 | Q163: 7.874875 | R163: 42071570.13 | S163: 47549693.21
A164: 0.138 | B164: 282935.5243 | C164: 8.826894 | D164: 0.138 | E164: 2353464.494 | F164: 157.0263515 | G164: 0.138 | H164: 5558405.276 | I164: 0.1639034124 | J164: 0.138 | K164: 0.138 | L164: 0.1639034124 | M164: 5478129.382 | N164: 5.562986524 | O164: 6.453580655 | P164: 314.63 | Q164: 7.86575 | R164: 41825147.22 | S164: 47303276.61
A165: 0.139 | B165: 282611.7993 | C165: 8.9552835 | D165: 0.139 | E165: 2353094.692 | F165: 157.033415 | G165: 0.139 | H165: 5558318.505 | I165: 0.1663959324 | J165: 0.139 | K165: 0.139 | L165: 0.1663959324 | M165: 5478135.738 | N165: 5.53040733 | O165: 6.423237317 | P165: 314.265 | Q165: 7.856625 | R165: 41580843.27 | S165: 47058979.01
A166: 0.14 | B166: 282288.0757 | C166: 9.0846 | D166: 0.14 | E166: 2352724.896 | F166: 157.0405295 | G166: 0.14 | H166: 5558231.784 | I166: 0.1689086115 | J166: 0.14 | K166: 0.14 | L166: 0.1689086115 | M166: 5478142.146 | N166: 5.498107044 | O166: 6.393147726 | P166: 313.9 | Q166: 7.8475 | R166: 41338629.43 | S166: 46816771.58
A167: 0.141 | B167: 281964.3535 | C167: 9.2148435 | D167: 0.141 | E167: 2352355.108 | F167: 157.047695 | G167: 0.141 | H167: 5558145.116 | I167: 0.1714414798 | J167: 0.141 | K167: 0.141 | L167: 0.1714414798 | M167: 5478148.604 | N167: 5.466081893 | O167: 6.363308373 | P167: 313.535 | Q167: 7.838375 | R167: 41098477.43 | S167: 46576626.03
A168: 0.142 | B168: 281640.6328 | C168: 9.346014 | D168: 0.142 | E168: 2351985.327 | F168: 157.0549115 | G168: 0.142 | H168: 5558058.499 | I168: 0.1739945673 | J168: 0.142 | K168: 0.142 | L168: 0.1739945673 | M168: 5478155.115 | N168: 5.434328178 | O168: 6.333715825 | P168: 313.17 | Q168: 7.82925 | R168: 40860359.54 | S168: 46338514.66
A169: 0.143 | B169: 281316.9135 | C169: 9.4781115 | D169: 0.143 | E169: 2351615.553 | F169: 157.062179 | G169: 0.143 | H169: 5557971.933 | I169: 0.1765679041 | J169: 0.143 | K169: 0.143 | L169: 0.1765679041 | M169: 5478161.677 | N169: 5.402842273 | O169: 6.304366713 | P169: 312.805 | Q169: 7.820125 | R169: 40624248.6 | S169: 46102410.27
A170: 0.144 | B170: 280993.1955 | C170: 9.611136 | D170: 0.144 | E170: 2351245.787 | F170: 157.0694975 | G170: 0.144 | H170: 5557885.419 | I170: 0.1791615206 | J170: 0.144 | K170: 0.144 | L170: 0.1791615206 | M170: 5478168.29 | N170: 5.371620622 | O170: 6.275257737 | P170: 312.44 | Q170: 7.811 | R170: 40390117.95 | S170: 45868286.24
A171: 0.145 | B171: 280669.479 | C171: 9.7450875 | D171: 0.145 | E171: 2350876.027 | F171: 157.076867 | G171: 0.145 | H171: 5557798.957 | I171: 0.1817754469 | J171: 0.145 | K171: 0.145 | L171: 0.1817754469 | M171: 5478174.956 | N171: 5.34065974 | O171: 6.246385661 | P171: 312.075 | Q171: 7.801875 | R171: 40157941.48 | S171: 45636116.43
A172: 0.146 | B172: 280345.764 | C172: 9.879966 | D172: 0.146 | E172: 2350506.276 | F172: 157.0842875 | G172: 0.146 | H172: 5557712.547 | I172: 0.1844097132 | J172: 0.146 | K172: 0.146 | L172: 0.1844097132 | M172: 5478181.673 | N172: 5.309956206 | O172: 6.217747314 | P172: 311.71 | Q172: 7.79275 | R172: 39927693.55 | S172: 45405875.22
A173: 0.147 | B173: 280022.0503 | C173: 10.0157715 | D173: 0.147 | E173: 2350136.531 | F173: 157.091759 | G173: 0.147 | H173: 5557626.189 | I173: 0.1870643501 | J173: 0.147 | K173: 0.147 | L173: 0.1870643501 | M173: 5478188.443 | N173: 5.279506665 | O173: 6.189339584 | P173: 311.345 | Q173: 7.783625 | R173: 39699349.02 | S173: 45177537.46
A174: 0.148 | B174: 279698.3381 | C174: 10.152504 | D174: 0.148 | E174: 2349766.794 | F174: 157.0992815 | G174: 0.148 | H174: 5557539.883 | I174: 0.1897393878 | J174: 0.148 | K174: 0.148 | L174: 0.1897393878 | M174: 5478195.264 | N174: 5.249307827 | O174: 6.161159422 | P174: 310.98 | Q174: 7.7745 | R174: 39472883.24 | S174: 44951078.5
A175: 0.149 | B175: 279374.6273 | C175: 10.2901635 | D175: 0.149 | E175: 2349397.063 | F175: 157.106855 | G175: 0.149 | H175: 5557453.629 | I175: 0.1924348569 | J175: 0.149 | K175: 0.149 | L175: 0.1924348569 | M175: 5478202.137 | N175: 5.219356464 | O175: 6.133203835 | P175: 310.615 | Q175: 7.765375 | R175: 39248272 | S175: 44726474.14
A176: 0.15 | B176: 279050.9179 | C176: 10.42875 | D176: 0.15 | E176: 2349027.341 | F176: 157.1144795 | G176: 0.15 | H176: 5557367.427 | I176: 0.1951507877 | J176: 0.15 | K176: 0.15 | L176: 0.1951507877 | M176: 5478209.063 | N176: 5.189649406 | O176: 6.105469889 | P176: 310.25 | Q176: 7.75625 | R176: 39025491.57 | S176: 44503700.63
A177: 0.151 | B177: 278727.2099 | C177: 10.5682635 | D177: 0.151 | E177: 2348657.625 | F177: 157.122155 | G177: 0.151 | H177: 5557281.277 | I177: 0.197887211 | J177: 0.151 | K177: 0.151 | L177: 0.197887211 | M177: 5478216.041 | N177: 5.160183544 | O177: 6.077954704 | P177: 309.885 | Q177: 7.747125 | R177: 38804518.64 | S177: 44282734.68
A178: 0.152 | B178: 278403.5033 | C178: 10.708704 | D178: 0.152 | E178: 2348287.917 | F178: 157.1298815 | G178: 0.152 | H178: 5557195.18 | I178: 0.2006441573 | J178: 0.152 | K178: 0.152 | L178: 0.2006441573 | M178: 5478223.071 | N178: 5.130955827 | O178: 6.050655456 | P178: 309.52 | Q178: 7.738 | R178: 38585330.34 | S178: 44063553.41
A179: 0.153 | B179: 278079.7982 | C179: 10.8500715 | D179: 0.153 | E179: 2347918.216 | F179: 157.137659 | G179: 0.153 | H179: 5557109.135 | I179: 0.2034216573 | J179: 0.153 | K179: 0.153 | L179: 0.2034216573 | M179: 5478230.154 | N179: 5.101963258 | O179: 6.023569372 | P179: 309.155 | Q179: 7.728875 | R179: 38367904.23 | S179: 43846134.38
A180: 0.154 | B180: 277756.0944 | C180: 10.992366 | D180: 0.154 | E180: 2347548.522 | F180: 157.1454875 | G180: 0.154 | H180: 5557023.143 | I180: 0.2062197418 | J180: 0.154 | K180: 0.154 | L180: 0.2062197418 | M180: 5478237.289 | N180: 5.073202896 | O180: 5.996693731 | P180: 308.79 | Q180: 7.71975 | R180: 38152218.25 | S180: 43630455.54
A181: 0.155 | B181: 277432.3921 | C181: 11.1355875 | D181: 0.155 | E181: 2347178.835 | F181: 157.153367 | G181: 0.155 | H181: 5556937.203 | I181: 0.2090384415 | J181: 0.155 | K181: 0.155 | L181: 0.2090384415 | M181: 5478244.477 | N181: 5.044671854 | O181: 5.970025863 | P181: 308.425 | Q181: 7.710625 | R181: 37938250.77 | S181: 43416495.25
A182: 0.156 | B182: 277108.6912 | C182: 11.279736 | D182: 0.156 | E182: 2346809.156 | F182: 157.1612975 | G182: 0.156 | H182: 5556851.316 | I182: 0.2118777873 | J182: 0.156 | K182: 0.156 | L182: 0.2118777873 | M182: 5478251.717 | N182: 5.016367296 | O182: 5.943563147 | P182: 308.06 | Q182: 7.7015 | R182: 37725980.54 | S182: 43204232.26
A183: 0.157 | B183: 276784.9917 | C183: 11.4248115 | D183: 0.157 | E183: 2346439.484 | F183: 157.169279 | G183: 0.157 | H183: 5556765.482 | I183: 0.2147378101 | J183: 0.157 | K183: 0.157 | L183: 0.2147378101 | M183: 5478259.01 | N183: 4.988286438 | O183: 5.91730301 | P183: 307.695 | Q183: 7.692375 | R183: 37515386.7 | S183: 42993645.71
A184: 0.158 | B184: 276461.2937 | C184: 11.570814 | D184: 0.158 | E184: 2346069.819 | F184: 157.1773115 | G184: 0.158 | H184: 5556679.7 | I184: 0.2176185408 | J184: 0.158 | K184: 0.158 | L184: 0.2176185408 | M184: 5478266.356 | N184: 4.960426543 | O184: 5.891242925 | P184: 307.33 | Q184: 7.68325 | R184: 37306448.73 | S184: 42784715.09
A185: 0.159 | B185: 276137.5971 | C185: 11.7177435 | D185: 0.159 | E185: 2345700.162 | F185: 157.185395 | G185: 0.159 | H185: 5556593.971 | I185: 0.2205200106 | J185: 0.159 | K185: 0.159 | L185: 0.2205200106 | M185: 5478273.755 | N185: 4.932784925 | O185: 5.86538041 | P185: 306.965 | Q185: 7.674125 | R185: 37099146.52 | S185: 42577420.27
A186: 0.16 | B186: 275813.9018 | C186: 11.8656 | D186: 0.16 | E186: 2345330.512 | F186: 157.1935295 | G186: 0.16 | H186: 5556508.295 | I186: 0.2234422505 | J186: 0.16 | K186: 0.16 | L186: 0.2234422505 | M186: 5478281.206 | N186: 4.905358945 | O186: 5.83971303 | P186: 306.6 | Q186: 7.665 | R186: 36893460.27 | S186: 42371741.48
A187: 0.161 | B187: =BR_m*T*(p_st+(k_best/X_zu_m)+(k_hand/kap_lhm))+(0.5*X_zu_m*A187^2+SQRT((ta*BR_m)^2+(ma)^2+((BR_max-BR_m)*WBZ)^2+VL^2)*(1-(1-A187)^C_Wert)^(1/C_Wert))*(T/365)*(p_st*z_lager+(k_platz/kap_lhm))+(BR_m*T)*(a_eil*k_eil+(1-a_eil)*k_fehlstck)*(1-sg_beta_stör-A187) -> 275490.208 | C187: 12.0143835 | D187: 0.161 | E187: 2344960.869 | F187: 157.201715 | G187: 0.161 | H187: 5556422.673 | I187: 0.2263852917 | J187: 0.161 | K187: 0.161 | L187: 0.2263852917 | M187: 5478288.711 | N187: 4.87814601 | O187: 5.814238391 | P187: 306.235 | Q187: 7.655875 | R187: 36689370.56 | S187: 42167659.27
A188: 0.162 | B188: 275166.5156 | C188: 12.164094 | D188: 0.162 | E188: 2344591.233 | F188: 157.2099515 | G188: 0.162 | H188: 5556337.103 | I188: 0.2293491654 | J188: 0.162 | K188: 0.162 | L188: 0.2293491654 | M188: 5478296.269 | N188: 4.851143571 | O188: 5.788954142 | P188: 305.87 | Q188: 7.64675 | R188: 36486858.29 | S188: 41965154.56
A189: 0.163 | B189: 274842.8247 | C189: 12.3147315 | D189: 0.163 | E189: 2344221.605 | F189: 157.218239 | G189: 0.163 | H189: 5556251.587 | I189: 0.2323339029 | J189: 0.163 | K189: 0.163 | L189: 0.2323339029 | M189: 5478303.88 | N189: 4.824349125 | O189: 5.763857974 | P189: 305.505 | Q189: 7.637625 | R189: 36285904.7 | S189: 41764208.58
A190: 0.164 | B190: 274519.1351 | C190: 12.466296 | D190: 0.164 | E190: 2343851.984 | F190: 157.2265775 | G190: 0.164 | H190: 5556166.124 | I190: 0.2353395355 | J190: 0.164 | K190: 0.164 | L190: 0.2353395355 | M190: 5478311.544 | N190: 4.79776021 | O190: 5.738947619 | P190: 305.14 | Q190: 7.6285 | R190: 36086491.34 | S190: 41564802.88
A191: 0.165 | B191: 274195.447 | C191: 12.6187875 | D191: 0.165 | E191: 2343482.37 | F191: 157.234967 | G191: 0.165 | H191: 5556080.714 | I191: 0.2383660947 | J191: 0.165 | K191: 0.165 | L191: 0.2383660947 | M191: 5478319.262 | N191: 4.771374407 | O191: 5.714220847 | P191: 304.775 | Q191: 7.619375 | R191: 35888600.08 | S191: 41366919.34
A192: 0.166 | B192: 273871.7603 | C192: 12.772206 | D192: 0.166 | E192: 2343112.763 | F192: 157.2434075 | G192: 0.166 | H192: 5555995.357 | I192: 0.2414136119 | J192: 0.166 | K192: 0.166 | L192: 0.2414136119 | M192: 5478327.033 | N192: 4.74518934 | O192: 5.689675467 | P192: 304.41 | Q192: 7.61025 | R192: 35692213.12 | S192: 41170540.15
A193: 0.167 | B193: 273548.075 | C193: 12.9265515 | D193: 0.167 | E193: 2342743.164 | F193: 157.251899 | G193: 0.167 | H193: 5555910.055 | I193: 0.2444821187 | J193: 0.167 | K193: 0.167 | L193: 0.2444821187 | M193: 5478334.858 | N193: 4.719202669 | O193: 5.665309327 | P193: 304.045 | Q193: 7.601125 | R193: 35497312.92 | S193: 40975647.78
A194: 0.168 | B194: 273224.3911 | C194: 13.081824 | D194: 0.168 | E194: 2342373.572 | F194: 157.2604415 | G194: 0.168 | H194: 5555824.805 | I194: 0.2475716467 | J194: 0.168 | K194: 0.168 | L194: 0.2475716467 | M194: 5478342.736 | N194: 4.693412098 | O194: 5.64112031 | P194: 303.68 | Q194: 7.592 | R194: 35303882.28 | S194: 40782225.01
A195: 0.169 | B195: 272900.7087 | C195: 13.2380235 | D195: 0.169 | E195: 2342003.987 | F195: 157.269035 | G195: 0.169 | H195: 5555739.61 | I195: 0.2506822276 | J195: 0.169 | K195: 0.169 | L195: 0.2506822276 | M195: 5478350.668 | N195: 4.667815366 | O195: 5.617106337 | P195: 303.315 | Q195: 7.582875 | R195: 35111904.24 | S195: 40590254.91
A196: 0.17 | B196: 272577.0276 | C196: 13.39515 | D196: 0.17 | E196: 2341634.41 | F196: 157.2776795 | G196: 0.17 | H196: 5555654.468 | I196: 0.2538138931 | J196: 0.17 | K196: 0.17 | L196: 0.2538138931 | M196: 5478358.654 | N196: 4.642410251 | O196: 5.593265363 | P196: 302.95 | Q196: 7.57375 | R196: 34921362.17 | S196: 40399720.82
A197: 0.171 | B197: 272253.348 | C197: 13.5532035 | D197: 0.171 | E197: 2341264.84 | F197: 157.286375 | G197: 0.171 | H197: 5555569.38 | I197: 0.256966675 | J197: 0.171 | K197: 0.171 | L197: 0.256966675 | M197: 5478366.694 | N197: 4.617194568 | O197: 5.569595377 | P197: 302.585 | Q197: 7.564625 | R197: 34732239.68 | S197: 40210606.37
A198: 0.172 | B198: 271929.6698 | C198: 13.712184 | D198: 0.172 | E198: 2340895.277 | F198: 157.2951215 | G198: 0.172 | H198: 5555484.346 | I198: 0.2601406053 | J198: 0.172 | K198: 0.172 | L198: 0.2601406053 | M198: 5478374.787 | N198: 4.592166166 | O198: 5.546094404 | P198: 302.22 | Q198: 7.5555 | R198: 34544520.66 | S198: 40022895.45
A199: 0.173 | B199: 271605.993 | C199: 13.8720915 | D199: 0.173 | E199: 2340525.721 | F199: 157.303919 | G199: 0.173 | H199: 5555399.366 | I199: 0.2633357159 | J199: 0.173 | K199: 0.173 | L199: 0.2633357159 | M199: 5478382.935 | N199: 4.567322932 | O199: 5.522760499 | P199: 301.855 | Q199: 7.546375 | R199: 34358189.27 | S199: 39836572.2
A200: 0.174 | B200: 271282.3177 | C200: 14.032926 | D200: 0.174 | E200: 2340156.172 | F200: 157.3127675 | G200: 0.174 | H200: 5555314.441 | I200: 0.2665520388 | J200: 0.174 | K200: 0.174 | L200: 0.2665520388 | M200: 5478391.136 | N200: 4.542662786 | O200: 5.49959175 | P200: 301.49 | Q200: 7.53725 | R200: 34173229.92 | S200: 39651621.05
... 826 more rows

Sheet C-Wert
A1: Berechnung des C-Werts
A3: © 2011 - IPH – Institut für Integrierte Produktion Hannover gemeinnützige GmbH
A5: Artikel 1 - empirischer FMK-Satz | F5: Artikel 2 - empirischer FMK-Satz | K5: Artikel 3 - empirischer FMK-Satz | P5: Artikel - Modellgestützte FMK-Abschätzung
A6: =Cockpit!$B$15 -> Normteil | F6: =Cockpit!$B$17 -> Komponente | K6: =Cockpit!$B$19 -> Aggregat | P6: ='Modellgest. FMK-Schätzung'!E8 -> Aggregat
A7: C-Wert | B7: =VLOOKUP(1,A15:B33,2,FALSE) -> 0.01117620231 | F7: C-Wert | G7: =VLOOKUP(1,F15:G33,2,FALSE) -> 133682148.1 | K7: C-Wert | L7: =VLOOKUP(1,K15:L33,2,FALSE) -> 0.4832252154 | P7: C-Wert | Q7: =VLOOKUP(1,P15:Q33,2,FALSE) -> 0.4832252154
A8: BL_1 | B8: =Berechnung!B21 -> 145176 | F8: BL_1 | G8: =BL_1 -> 3992 | K8: BL_1 | L8: =BL_3 -> 86 | P8: BL_1 | Q8: =BL_1_mod -> 86
A9: BL_0 | B9: =X_zu_m*0.5 -> 463.5 | F9: BL_0 | G9: =X_zu_m2*0.5 -> 25.5 | K9: BL_0 | L9: =X_zu_m3*0.5 -> 3.5 | P9: BL_0 | Q9: =X_zu_m_mod*0.5 -> 3.5
A10: BL_m | B10: =VLOOKUP($A$6,Artikeldaten!$A$5:$U$24,2,FALSE) -> 500 | F10: BL_m | G10: =VLOOKUP($F$6,Artikeldaten!$A$5:$U$24,2,FALSE) -> 123 | K10: BL_m | L10: =VLOOKUP($K$6,Artikeldaten!$A$5:$U$24,2,FALSE) -> 7 | P10: BL_m | Q10: =VLOOKUP($P$6,Artikeldaten!$A$5:$U$24,2,FALSE) -> 7
A11: SG_g | B11: =VLOOKUP($A$6,Artikeldaten!$A$5:$U$24,3,FALSE) -> 0.95 | F11: SG_g | G11: =VLOOKUP($F$6,Artikeldaten!$A$5:$U$24,3,FALSE) -> 0.85 | K11: SG_g | L11: =VLOOKUP($K$6,Artikeldaten!$A$5:$U$24,3,FALSE) -> 0.5 | P11: SG_g | Q11: =VLOOKUP($P$6,Artikeldaten!$A$5:$U$24,3,FALSE) -> 0.5
A12: C_1 | B12: 1 | F12: C_1 | G12: 1 | K12: C_1 | L12: 1 | P12: C_1 | Q12: 1
A13: C_0 | B13: 0.01 | F13: C_0 | G13: 0.01 | K13: C_0 | L13: 0.01 | P13: C_0 | Q13: 0.01
A14: Konv. | B14: C_n | C14: C_n-1 - C_n-2 | D14: F(C_n-2) | E14: F (C_n-1) | F14: Konv. | G14: C_n | H14: C_n-1 - C_n-2 | I14: F(C_n-2) | J14: F (C_n-1) | K14: Konv. | L14: C_n | M14: C_n-1 - C_n-2 | N14: F(C_n-2) | O14: F (C_n-1) | P14: Konv. | Q14: C_n | R14: C_n-1 - C_n-2 | S14: F(C_n-2) | T14: F (C_n-1)
A15: =IF(IFERROR(B16,0)=0,1,0) -> 0 | B15: =$B$13-D15*C15/(E15-D15) -> 0.01058827594 | C15: =B12-B13 -> 0.99 | D15: =$B$9*$B$11^2+($B$8-$B$9)*((1-(1-$B$11)^$B$13)^(1/$B$13))-$B$10 -> -81.69125 | E15: =$B$9*$B$11^2+($B$8-$B$9)*((1-(1-$B$11)^$B$12)^(1/$B$12))-$B$10 -> 137395.1837 | F15: =IF(IFERROR(G16,0)=0,1,0) -> 0 | G15: =$G$13-I15*H15/(J15-I15) -> 0.04070731716 | H15: =G12-G13 -> 0.99 | I15: =$G$9*$G$11^2+($G$8-$G$9)*((1-(1-$G$11)^$G$13)^(1/$G$13))-$G$10 -> -104.57625 | J15: =$G$9*$G$11^2+($G$8-$G$9)*((1-(1-$G$11)^$G$12)^(1/$G$12))-$G$10 -> 3266.94875 | K15: =IF(IFERROR(L16,0)=0,1,0) -> 0 | L15: =$L$13-N15*M15/(O15-N15) -> 0.157 | M15: =L12-L13 -> 0.99 | N15: =$L$9*$L$11^2+($L$8-$L$9)*((1-(1-$L$11)^$L$13)^(1/$L$13))-$L$10 -> -6.125 | O15: =$L$9*$L$11^2+($L$8-$L$9)*((1-(1-$L$11)^$L$12)^(1/$L$12))-$L$10 -> 35.125 | P15: =IF(IFERROR(Q16,0)=0,1,0) -> 0 | Q15: =$Q$13-S15*R15/(T15-S15) -> 0.157 | R15: =Q12-Q13 -> 0.99 | S15: =$Q$9*$Q$11^2+($Q$8-$Q$9)*((1-(1-$Q$11)^$Q$13)^(1/$Q$13))-$Q$10 -> -6.125 | T15: =$Q$9*$Q$11^2+($Q$8-$Q$9)*((1-(1-$Q$11)^$Q$12)^(1/$Q$12))-$Q$10 -> 35.125
A16: 1 | B16: =$B$12-D16*C16/(E16-D16) -> 0.01117620231 | C16: =B15-B12 -> -0.9894117241 | D16: =$B$9*$B$11^2+($B$8-$B$9)*((1-(1-$B$11)^$B$12)^(1/$B$12))-$B$10 -> 137395.1837 | E16: =$B$9*$B$11^2+($B$8-$B$9)*((1-(1-$B$11)^$B15)^(1/$B15))-$B$10 -> -81.69125 | F16: =IF(IFERROR(G17,0)=0,1,0) -> 0 | G16: =$G$12-I16*H16/(J16-I16) -> 0.07046217036 | H16: =G15-G12 -> -0.9592926828 | I16: =$G$9*$G$11^2+($G$8-$G$9)*((1-(1-$G$11)^$G$12)^(1/$G$12))-$G$10 -> 3266.94875 | J16: =$G$9*$G$11^2+($G$8-$G$9)*((1-(1-$G$11)^$G15)^(1/$G15))-$G$10 -> -104.57625 | K16: 0 | L16: =$L$12-N16*M16/(O16-N16) -> 0.2821719819 | M16: =L15-L12 -> -0.843 | N16: =$L$9*$L$11^2+($L$8-$L$9)*((1-(1-$L$11)^$L$12)^(1/$L$12))-$L$10 -> 35.125 | O16: =$L$9*$L$11^2+($L$8-$L$9)*((1-(1-$L$11)^$L15)^(1/$L15))-$L$10 -> -6.124957165 | P16: =IF(IFERROR(Q17,0)=0,1,0) -> 0 | Q16: =$Q$12-S16*R16/(T16-S16) -> 0.2821719819 | R16: =Q15-Q12 -> -0.843 | S16: =$Q$9*$Q$11^2+($Q$8-$Q$9)*((1-(1-$Q$11)^$Q$12)^(1/$Q$12))-$Q$10 -> 35.125 | T16: =$Q$9*$Q$11^2+($Q$8-$Q$9)*((1-(1-$Q$11)^$Q15)^(1/$Q15))-$Q$10 -> -6.124957165
A17: 1 | B17: =B15-D17*C17/(E17-D17) ->  | C17: =B16-B15 -> 0.0005879263731 | D17: =$B$9*$B$11^2+($B$8-$B$9)*((1-(1-$B$11)^$B15)^(1/$B15))-$B$10 -> -81.69125 | E17: -81.69125 | F17: =IF(IFERROR(G18,0)=0,1,0) -> 0 | G17: =G15-I17*H17/(J17-I17) -> 5070465238 | H17: =G16-G15 -> 0.0297548532 | I17: =$G$9*$G$11^2+($G$8-$G$9)*((1-(1-$G$11)^$G15)^(1/$G15))-$G$10 -> -104.57625 | J17: =$G$9*$G$11^2+($G$8-$G$9)*((1-(1-$G$11)^$G16)^(1/$G16))-$G$10 -> -104.57625 | K17: 0 | L17: =L15-N17*M17/(O17-N17) -> 4.40095859 | M17: =L16-L15 -> 0.1251719819 | N17: =$L$9*$L$11^2+($L$8-$L$9)*((1-(1-$L$11)^$L15)^(1/$L15))-$L$10 -> -6.124957165 | O17: =$L$9*$L$11^2+($L$8-$L$9)*((1-(1-$L$11)^$L16)^(1/$L16))-$L$10 -> -5.944306716 | P17: =IF(IFERROR(Q18,0)=0,1,0) -> 0 | Q17: =Q15-S17*R17/(T17-S17) -> 4.40095859 | R17: =Q16-Q15 -> 0.1251719819 | S17: =$Q$9*$Q$11^2+($Q$8-$Q$9)*((1-(1-$Q$11)^$Q15)^(1/$Q15))-$Q$10 -> -6.124957165 | T17: =$Q$9*$Q$11^2+($Q$8-$Q$9)*((1-(1-$Q$11)^$Q16)^(1/$Q16))-$Q$10 -> -5.944306716
A18: 1 | B18: =B16-D18*C18/(E18-D18) ->  | C18: =B17-B16 ->  | D18: -81.69125 | F18: =IF(IFERROR(G19,0)=0,1,0) -> 1 | G18: =G16-I18*H18/(J18-I18) -> 133682148.1 | H18: =G17-G16 -> 5070465238 | I18: =$G$9*$G$11^2+($G$8-$G$9)*((1-(1-$G$11)^$G16)^(1/$G16))-$G$10 -> -104.57625 | J18: =$G$9*$G$11^2+($G$8-$G$9)*((1-(1-$G$11)^$G17)^(1/$G17))-$G$10 -> 3861.92375 | K18: 0 | L18: =L16-N18*M18/(O18-N18) -> 0.5828935659 | M18: =L17-L16 -> 4.118786608 | N18: =$L$9*$L$11^2+($L$8-$L$9)*((1-(1-$L$11)^$L16)^(1/$L16))-$L$10 -> -5.944306716 | O18: =$L$9*$L$11^2+($L$8-$L$9)*((1-(1-$L$11)^$L17)^(1/$L17))-$L$10 -> 75.47096973 | P18: =IF(IFERROR(Q19,0)=0,1,0) -> 0 | Q18: =Q16-S18*R18/(T18-S18) -> 0.5828935659 | R18: =Q17-Q16 -> 4.118786608 | S18: =$Q$9*$Q$11^2+($Q$8-$Q$9)*((1-(1-$Q$11)^$Q16)^(1/$Q16))-$Q$10 -> -5.944306716 | T18: =$Q$9*$Q$11^2+($Q$8-$Q$9)*((1-(1-$Q$11)^$Q17)^(1/$Q17))-$Q$10 -> 75.47096973
A19: 1 | F19: 1 | H19: -4936783090 | I19: 3861.92375 | J19: 3861.92375 | K19: 0 | L19: 0.2325989468 | M19: -3.818065024 | N19: 75.47096973 | O19: 6.342320927 | P19: 0 | Q19: 0.2325989468 | R19: -3.818065024 | S19: 75.47096973 | T19: 6.342320927
A20: 1 | F20: 1 | I20: 3861.92375 | K20: 0 | L20: 0.4043647803 | M20: -0.3502946191 | N20: 6.342320927 | O20: -6.102063802 | P20: 0 | Q20: 0.4043647803 | R20: -0.3502946191 | S20: 6.342320927 | T20: -6.102063802
A21: 1 | F21: 1 | K21: 0 | L21: 0.6504394534 | M21: 0.1717658335 | N21: -6.102063802 | O21: -3.593628027 | P21: 0 | Q21: 0.6504394534 | R21: 0.1717658335 | S21: -6.102063802 | T21: -3.593628027
A22: 1 | F22: 1 | K22: 0 | L22: 0.4639775742 | M22: 0.2460746731 | N22: -3.593628027 | O22: 11.24045009 | P22: 0 | Q22: 0.4639775742 | R22: 0.2460746731 | S22: -3.593628027 | T22: 11.24045009
A23: 1 | F23: 1 | K23: 0 | L23: 0.479470931 | M23: -0.1864618792 | N23: 11.24045009 | O23: -1.018622034 | P23: 0 | Q23: 0.479470931 | R23: -0.1864618792 | S23: 11.24045009 | T23: -1.018622034
A24: 1 | F24: 1 | K24: 0 | L24: 0.4833778897 | M24: 0.01549335681 | N24: -1.018622034 | O24: -0.20513657 | P24: 0 | Q24: 0.4833778897 | R24: 0.01549335681 | S24: -1.018622034 | T24: -0.20513657
A25: 1 | F25: 1 | K25: 0 | L25: 0.4832240908 | M25: 0.003906958655 | N25: -0.20513657 | O25: 0.008406187985 | P25: 0 | Q25: 0.4832240908 | R25: 0.003906958655 | S25: -0.20513657 | T25: 0.008406187985
A26: 1 | F26: 1 | K26: 0 | L26: 0.483225215 | M26: -0.0001537988421 | N26: 0.008406187985 | O26: -6.189844557e-05 | P26: 0 | Q26: 0.483225215 | R26: -0.0001537988421 | S26: 0.008406187985 | T26: -6.189844557e-05
A27: 1 | F27: 1 | K27: 0 | L27: 0.4832252154 | M27: 1.124210214e-06 | N27: -6.189844557e-05 | O27: -1.827974838e-08 | P27: 0 | Q27: 0.4832252154 | R27: 1.124210214e-06 | S27: -6.189844557e-05 | T27: -1.827974838e-08
A28: 1 | F28: 1 | K28: 0 | L28: 0.4832252154 | M28: 3.320980158e-10 | N28: -1.827974838e-08 | O28: 3.463895837e-14 | P28: 0 | Q28: 0.4832252154 | R28: 3.320980158e-10 | S28: -1.827974838e-08 | T28: 3.463895837e-14
A29: 1 | F29: 1 | K29: 1 | L29: 0.4832252154 | M29: -6.106226635e-16 | N29: 3.463895837e-14 | O29: 0 | P29: 1 | Q29: 0.4832252154 | R29: -6.106226635e-16 | S29: 3.463895837e-14 | T29: 0
A30: 1 | F30: 1 | K30: 1 | M30: 0 | N30: 0 | O30: 0 | P30: 1 | R30: 0 | S30: 0 | T30: 0
A31: 1 | F31: 1 | K31: 1 | N31: 0 | P31: 1 | S31: 0
A32: 1 | F32: 1 | K32: 1 | P32: 1
A33: 1 | F33: 1 | K33: 1 | P33: 1

Sheet Werte Kennlinie
A1: Verlauf Servicegrad-Logistikkosten-Kennlinie
A3: Schrittweite | B3: 0.01
B5: Resultierende Logistikkosten
A6: SG | B6: Artikel 1 | C6: Artikel 2 | D6: Artikel 3
A7: 0 | B7: 323921.44 | C7: 370809.34 | D7: 93127.487
A8: 0.01 | B8: 321148.4281 | C8: 379305.1612 | D8: 92818.74682
A9: 0.02 | B9: 317915.3992 | C9: 377355.8213 | D9: 92510.00733
A10: 0.03 | B10: 314679.2522 | C10: 374766.7631 | D10: 92201.26855
A11: 0.04 | B11: 311441.9467 | C11: 371888.1511 | D11: 91892.53047
A12: 0.05 | B12: 308204.1015 | C12: 368839.9116 | D12: 91583.79308
A13: 0.06 | B13: 304965.9899 | C13: 365678.7475 | D13: 91275.0564
A14: 0.07 | B14: 301727.7546 | C14: 362436.3355 | D14: 90966.32041
A15: 0.08 | B15: 298489.4769 | C15: 359132.3189 | D15: 90657.58513
A16: 0.09 | B16: 295251.2059 | C16: 355779.7902 | D16: 90348.85055
A17: 0.1 | B17: 292012.9725 | C17: 352387.9512 | D17: 90040.11666
A18: 0.11 | B18: 288774.796 | C18: 348963.5384 | D18: 89731.38348
A19: 0.12 | B19: 285536.6892 | C19: 345511.6451 | D19: 89422.651
A20: 0.13 | B20: 282298.6601 | C20: 342036.2256 | D20: 89113.91921
A21: 0.14 | B21: 279060.7141 | C21: 338540.4171 | D21: 88805.18813
A22: 0.15 | B22: 275822.8546 | C22: 335026.7555 | D22: 88496.45775
A23: 0.16 | B23: 272585.0838 | C23: 331497.3228 | D23: 88187.72806
A24: 0.17 | B24: 269347.4032 | C24: 327953.8521 | D24: 87878.99908
A25: 0.18 | B25: 266109.8138 | C25: 324397.8036 | D25: 87570.2708
A26: 0.19 | B26: 262872.316 | C26: 320830.4204 | D26: 87261.54321
A27: 0.2 | B27: 259634.9102 | C27: 317252.7711 | D27: 86952.81633
A28: 0.21 | B28: 256397.5968 | C28: 313665.7817 | D28: 86644.09014
A29: 0.22 | B29: 253160.3759 | C29: 310070.2611 | D29: 86335.36466
A30: 0.23 | B30: 249923.2474 | C30: 306466.9205 | D30: 86026.63988
A31: 0.24 | B31: 246686.2116 | C31: 302856.3895 | D31: 85717.91579
A32: 0.25 | B32: 243449.2685 | C32: 299239.2282 | D32: 85409.19241
A33: 0.26 | B33: 240212.418 | C33: 295615.9378 | D33: 85100.46973
A34: 0.27 | B34: 236975.6601 | C34: 291986.9691 | D34: 84791.74774
A35: 0.28 | B35: 233738.995 | C35: 288352.7291 | D35: 84483.02646
A36: 0.29 | B36: 230502.4226 | C36: 284713.5869 | D36: 84174.30588
A37: 0.3 | B37: 227265.9428 | C37: 281069.8783 | D37: 83865.58599
A38: 0.31 | B38: 224029.5558 | C38: 277421.9105 | D38: 83556.86681
A39: 0.32 | B39: 220793.2614 | C39: 273769.9648 | D39: 83248.14832
A40: 0.33 | B40: 217557.0598 | C40: 270114.2999 | D40: 82939.43054
A41: 0.34 | B41: 214320.9508 | C41: 266455.1543 | D41: 82630.71346
A42: 0.35 | B42: 211084.9346 | C42: 262792.7486 | D42: 82321.99707
A43: 0.36 | B43: 207849.011 | C43: 259127.2874 | D43: 82013.28139
A44: 0.37 | B44: 204613.1802 | C44: 255458.9604 | D44: 81704.56641
A45: 0.38 | B45: 201377.442 | C45: 251787.9446 | D45: 81395.85212
A46: 0.39 | B46: 198141.7966 | C46: 248114.4049 | D46: 81087.13854
A47: 0.4 | B47: 194906.2438 | C47: 244438.4955 | D47: 80778.42566
A48: 0.41 | B48: 191670.7838 | C48: 240760.3608 | D48: 80469.71347
A49: 0.42 | B49: 188435.4164 | C49: 237080.1363 | D49: 80161.00199
A50: 0.43 | B50: 185200.1418 | C50: 233397.9489 | D50: 79852.29121
A51: 0.44 | B51: 181964.9598 | C51: 229713.9184 | D51: 79543.58112
A52: 0.45 | B52: 178729.8706 | C52: 226028.1572 | D52: 79234.87174
A53: 0.46 | B53: 175494.874 | C53: 222340.7714 | D53: 78926.16305
A54: 0.47 | B54: 172259.9702 | C54: 218651.8613 | D54: 78617.45507
A55: 0.48 | B55: 169025.159 | C55: 214961.5212 | D55: 78308.74779
A56: 0.49 | B56: 165790.4406 | C56: 211269.8405 | D56: 78000.0412
A57: 0.5 | B57: 162555.8148 | C57: 207576.9037 | D57: 77691.33532
A58: 0.51 | B58: 159321.2818 | C58: 203882.7907 | D58: 77382.63014
A59: 0.52 | B59: 156086.8414 | C59: 200187.5772 | D59: 77073.92565
A60: 0.53 | B60: 152852.4938 | C60: 196491.3347 | D60: 76765.22187
A61: 0.54 | B61: 149618.2388 | C61: 192794.1311 | D61: 76456.51879
A62: 0.55 | B62: 146384.0766 | C62: 189096.0307 | D62: 76147.8164
A63: 0.56 | B63: 143150.007 | C63: 185397.0942 | D63: 75839.11472
A64: 0.57 | B64: 139916.0302 | C64: 181697.3795 | D64: 75530.41373
A65: 0.58 | B65: 136682.146 | C65: 177996.941 | D65: 75221.71345
A66: 0.59 | B66: 133448.3546 | C66: 174295.8305 | D66: 74913.01387
A67: 0.6 | B67: 130214.6558 | C67: 170594.0968 | D67: 74604.31498
A68: 0.61 | B68: 126981.0498 | C68: 166891.7863 | D68: 74295.6168
A69: 0.62 | B69: 123747.5364 | C69: 163188.9427 | D69: 73986.91932
A70: 0.63 | B70: 120514.1158 | C70: 159485.6073 | D70: 73678.22253
A71: 0.64 | B71: 117280.7878 | C71: 155781.8192 | D71: 73369.52645
A72: 0.65 | B72: 114047.5526 | C72: 152077.6152 | D72: 73060.83107
A73: 0.66 | B73: 110814.41 | C73: 148373.0298 | D73: 72752.13638
A74: 0.67 | B74: 107581.3602 | C74: 144668.0958 | D74: 72443.4424
A75: 0.68 | B75: 104348.403 | C75: 140962.8438 | D75: 72134.74912
A76: 0.69 | B76: 101115.5386 | C76: 137257.3026 | D76: 71826.05653
A77: 0.7 | B77: 97882.76684 | C77: 133551.4992 | D77: 71517.36465
A78: 0.71 | B78: 94650.08779 | C78: 129845.4587 | D78: 71208.67346
A79: 0.72 | B79: 91417.50144 | C79: 126139.2048 | D79: 70899.98298
A80: 0.73 | B80: 88185.00779 | C80: 122432.7594 | D80: 70591.2932
A81: 0.74 | B81: 84952.60684 | C81: 118726.1429 | D81: 70282.60411
A82: 0.75 | B82: 81720.29859 | C82: 115019.3742 | D82: 69973.91573
A83: 0.76 | B83: 78488.08304 | C83: 111312.4708 | D83: 69665.22805
A84: 0.77 | B84: 75255.96019 | C84: 107605.4489 | D84: 69356.54106
A85: 0.78 | B85: 72023.93004 | C85: 103898.3232 | D85: 69047.85478
A86: 0.79 | B86: 68791.99259 | C86: 100191.1075 | D86: 68739.1692
A87: 0.8 | B87: 65560.14784 | C87: 96483.81412 | D87: 68430.48431
A88: 0.81 | B88: 62328.39579 | C88: 92776.45431 | D88: 68121.80013
A89: 0.82 | B89: 59096.73644 | C89: 89069.03828 | D89: 67813.11664
A90: 0.83 | B90: 55865.16979 | C90: 85361.57521 | D90: 67504.43386
A91: 0.84 | B91: 52633.69584 | C91: 81654.07332 | D91: 67195.75178
A92: 0.85 | B92: 49402.31459 | C92: 77946.53991 | D92: 66887.07039
A93: 0.86 | B93: 46171.02604 | C93: 74238.98141 | D93: 66578.38971
A94: 0.87 | B94: 42939.83019 | C94: 70531.40346 | D94: 66269.70973
A95: 0.88 | B95: 39708.72704 | C95: 66823.81094 | D95: 65961.03044
A96: 0.89 | B96: 36477.71659 | C96: 63116.20806 | D96: 65652.35186
A97: 0.9 | B97: 33246.79884 | C97: 59408.59834 | D97: 65343.67398
A98: 0.91 | B98: 30015.97379 | C98: 55700.98476 | D98: 65034.99679
A99: 0.92 | B99: 26785.24144 | C99: 51993.36974 | D99: 64726.32031
A100: 0.93 | B100: 23554.60179 | C100: 48285.75521 | D100: 64417.64453
A101: 0.94 | B101: 20324.05484 | C101: 44578.14269 | D101: 64108.96944
A102: 0.95 | B102: 17093.60059 | C102: 40870.53331 | D102: 63800.29506
A103: 0.96 | B103: 13863.23904 | C103: 37162.9279 | D103: 63491.62137
A104: 0.97 | B104: 10632.97019 | C104: 33455.327 | D104: 63182.94839
A105: 0.98 | B105: 7402.794038 | C105: 29747.73094 | D105: 62874.27611
A106: 0.99 | B106: 4172.710588 | C106: 26040.13991 | D106: 62565.60452

Sheet Werte 1. Abl. Kennlinie
A1: Verlauf Kennlinienableitungen
A3: Schrittweite | B3: 0.01
B5: Wert der 1. Ableitung
A6: SG | B6: Artikel 1 | C6: Artikel 2 | D6: Artikel 3
A7: 0 | B7: -350546 | C7: -1752730 | D7: -17527300
A8: 0.01 | B8: -350517.3525 | C8: -1752678.126 | D8: -17527133.32
A9: 0.02 | B9: -350479.3699 | C9: -1752625.584 | D9: -17526959.96
A10: 0.03 | B10: -350432.7009 | C10: -1752572.423 | D10: -17526780.41
A11: 0.04 | B11: -350377.4978 | C11: -1752518.652 | D11: -17526594.76
A12: 0.05 | B12: -350313.7558 | C12: -1752464.271 | D12: -17526403.01
A13: 0.06 | B13: -350241.3869 | C13: -1752409.274 | D13: -17526205.1
A14: 0.07 | B14: -350160.2484 | C14: -1752353.65 | D14: -17526000.92
A15: 0.08 | B15: -350070.1573 | C15: -1752297.387 | D15: -17525790.36
A16: 0.09 | B16: -349970.8979 | C16: -1752240.47 | D16: -17525573.24
A17: 0.1 | B17: -349862.2262 | C17: -1752182.88 | D17: -17525349.4
A18: 0.11 | B18: -349743.8721 | C18: -1752124.598 | D18: -17525118.65
A19: 0.12 | B19: -349615.5417 | C19: -1752065.604 | D19: -17524880.77
A20: 0.13 | B20: -349476.9172 | C20: -1752005.875 | D20: -17524635.54
A21: 0.14 | B21: -349327.6577 | C21: -1751945.386 | D21: -17524382.71
A22: 0.15 | B22: -349167.399 | C22: -1751884.112 | D22: -17524122.03
A23: 0.16 | B23: -348995.7529 | C23: -1751822.024 | D23: -17523853.21
A24: 0.17 | B24: -348812.3068 | C24: -1751759.093 | D24: -17523575.97
A25: 0.18 | B25: -348616.6231 | C25: -1751695.289 | D25: -17523289.99
A26: 0.19 | B26: -348408.2376 | C26: -1751630.577 | D26: -17522994.93
A27: 0.2 | B27: -348186.6586 | C27: -1751564.923 | D27: -17522690.45
A28: 0.21 | B28: -347951.3658 | C28: -1751498.289 | D28: -17522376.18
A29: 0.22 | B29: -347701.8082 | C29: -1751430.637 | D29: -17522051.72
A30: 0.23 | B30: -347437.4029 | C30: -1751361.924 | D30: -17521716.65
A31: 0.24 | B31: -347157.5328 | C31: -1751292.107 | D31: -17521370.54
A32: 0.25 | B32: -346861.545 | C32: -1751221.138 | D32: -17521012.92
A33: 0.26 | B33: -346548.7483 | C33: -1751148.969 | D33: -17520643.29
A34: 0.27 | B34: -346218.4104 | C34: -1751075.547 | D34: -17520261.14
A35: 0.28 | B35: -345869.756 | C35: -1751000.817 | D35: -17519865.9
A36: 0.29 | B36: -345501.9632 | C36: -1750924.72 | D36: -17519456.99
A37: 0.3 | B37: -345114.1606 | C37: -1750847.194 | D37: -17519033.8
A38: 0.31 | B38: -344705.4236 | C38: -1750768.173 | D38: -17518595.65
A39: 0.32 | B39: -344274.7711 | C39: -1750687.586 | D39: -17518141.85
A40: 0.33 | B40: -343821.1606 | C40: -1750605.36 | D40: -17517671.65
A41: 0.34 | B41: -343343.4843 | C41: -1750521.415 | D41: -17517184.26
A42: 0.35 | B42: -342840.5641 | C42: -1750435.667 | D42: -17516678.84
A43: 0.36 | B43: -342311.1456 | C43: -1750348.026 | D43: -17516154.5
A44: 0.37 | B44: -341753.8928 | C44: -1750258.397 | D44: -17515610.28
A45: 0.38 | B45: -341167.3815 | C45: -1750166.679 | D45: -17515045.16
A46: 0.39 | B46: -340550.0918 | C46: -1750072.762 | D46: -17514458.06
A47: 0.4 | B47: -339900.4007 | C47: -1749976.531 | D47: -17513847.82
A48: 0.41 | B48: -339216.5729 | C48: -1749877.862 | D48: -17513213.2
A49: 0.42 | B49: -338496.752 | C49: -1749776.623 | D49: -17512552.87
A50: 0.43 | B50: -337738.9492 | C50: -1749672.67 | D50: -17511865.41
A51: 0.44 | B51: -336941.0324 | C51: -1749565.853 | D51: -17511149.31
A52: 0.45 | B52: -336100.7126 | C52: -1749456.007 | D52: -17510402.92
A53: 0.46 | B53: -335215.5301 | C53: -1749342.956 | D53: -17509624.48
A54: 0.47 | B54: -334282.8386 | C54: -1749226.513 | D54: -17508812.12
A55: 0.48 | B55: -333299.787 | C55: -1749106.473 | D55: -17507963.79
A56: 0.49 | B56: -332263.3003 | C56: -1748982.616 | D56: -17507077.29
A57: 0.5 | B57: -331170.057 | C57: -1748854.706 | D57: -17506150.26
A58: 0.51 | B58: -330016.4648 | C58: -1748722.485 | D58: -17505180.13
A59: 0.52 | B59: -328798.6322 | C59: -1748585.676 | D59: -17504164.11
A60: 0.53 | B60: -327512.3381 | C60: -1748443.977 | D60: -17503099.2
A61: 0.54 | B61: -326152.9959 | C61: -1748297.061 | D61: -17501982.12
A62: 0.55 | B62: -324715.6138 | C62: -1748144.572 | D62: -17500809.29
A63: 0.56 | B63: -323194.7498 | C63: -1747986.12 | D63: -17499576.85
A64: 0.57 | B64: -321584.4603 | C64: -1747821.281 | D64: -17498280.54
A65: 0.58 | B65: -319878.2415 | C65: -1747649.59 | D65: -17496915.71
A66: 0.59 | B66: -318068.9626 | C66: -1747470.538 | D66: -17495477.28
A67: 0.6 | B67: -316148.7893 | C67: -1747283.567 | D67: -17493959.64
A68: 0.61 | B68: -314109.0954 | C68: -1747088.058 | D68: -17492356.64
A69: 0.62 | B69: -311940.3611 | C69: -1746883.334 | D69: -17490661.48
A70: 0.63 | B70: -309632.0554 | C70: -1746668.641 | D70: -17488866.63
A71: 0.64 | B71: -307172.4988 | C71: -1746443.145 | D71: -17486963.76
A72: 0.65 | B72: -304548.704 | C72: -1746205.919 | D72: -17484943.59
A73: 0.66 | B73: -301746.188 | C73: -1745955.928 | D73: -17482795.77
A74: 0.67 | B74: -298748.7524 | C74: -1745692.016 | D74: -17480508.74
A75: 0.68 | B75: -295538.2226 | C75: -1745412.883 | D75: -17478069.52
A76: 0.69 | B76: -292094.1385 | C76: -1745117.07 | D76: -17475463.48
A77: 0.7 | B77: -288393.385 | C77: -1744802.925 | D77: -17472674.13
A78: 0.71 | B78: -284409.7486 | C78: -1744468.576 | D78: -17469682.75
A79: 0.72 | B79: -280113.3815 | C79: -1744111.891 | D79: -17466468
A80: 0.73 | B80: -275470.1508 | C80: -1743730.431 | D80: -17463005.52
A81: 0.74 | B81: -270440.8424 | C81: -1743321.398 | D81: -17459267.3
A82: 0.75 | B82: -264980.1801 | C82: -1742881.556 | D82: -17455221
A83: 0.76 | B83: -259035.6074 | C83: -1742407.152 | D83: -17450829.09
A84: 0.77 | B84: -252545.7633 | C84: -1741893.803 | D84: -17446047.73
A85: 0.78 | B85: -245438.5568 | C85: -1741336.361 | D85: -17440825.45
A86: 0.79 | B86: -237628.711 | C86: -1740728.734 | D86: -17435101.33
A87: 0.8 | B87: -229014.5988 | C87: -1740063.665 | D87: -17428802.8
A88: 0.81 | B88: -219474.1164 | C88: -1739332.432 | D88: -17421842.64
A89: 0.82 | B89: -208859.2356 | C89: -1738524.464 | D89: -17414115.13
A90: 0.83 | B90: -196988.7109 | C90: -1737626.814 | D90: -17405490.83
A91: 0.84 | B91: -183638.1633 | C91: -1736623.457 | D91: -17395809.47
A92: 0.85 | B92: -168526.3662 | C92: -1735494.308 | D92: -17384870.21
A93: 0.86 | B93: -151295.9084 | C93: -1734213.838 | D93: -17372417.77
A94: 0.87 | B94: -131485.3324 | C94: -1732749.091 | D94: -17358122.57
A95: 0.88 | B95: -108487.9837 | C95: -1731056.736 | D95: -17341551.35
A96: 0.89 | B96: -81489.48586 | C96: -1729078.61 | D96: -17322122.45
A97: 0.9 | B97: -49369.55456 | C97: -1726734.698 | D97: -17299035.76
A98: 0.91 | B98: -10541.71892 | C98: -1723911.692 | D98: -17271158.19
A99: 0.92 | B99: 37320.71114 | C99: -1720443.413 | D99: -17236828
A100: 0.93 | B100: 97780.31122 | C100: -1716075.414 | D100: -17193500.75
A101: 0.94 | B101: 176597.25 | C101: -1710396.29 | D101: -17137062.45
A102: 0.95 | B102: 283771.1075 | C102: -1702691.845 | D102: -17060371.28
A103: 0.96 | B103: 438431.2344 | C103: -1691595.817 | D103: -16949764.8
A104: 0.97 | B104: 682738.2784 | C104: -1674096.989 | D104: -16775131.33
A105: 0.98 | B105: 1133577.499 | C105: -1641847.134 | D105: -16452989.93
A106: 0.99 | B106: 2304235.196 | C106: -1558186.104 | D106: -15616744.88

Sheet Test Regula Falsi
A1: Bestimmung des optimalen Servicegrads - Regula Falsi
A3: Startwerte
A4: x_m | B4: 0.999 | C4: x_t | D4: 36500 | E4: s_besch | F4: 150.74 | G4: sb_ges | H4: 1981 | I4: C-Wert | J4: 0.35
A5: x_n | B5: 0.001 | C5: s_lager | D5: 82.5 | E5: s_fehl | F5: 14.8 | G5: x_zu,m | H5: 300
A7: n | B7: x_m | C7: x_n | D7: x_n - x_m | E7: f(x_n) | F7: f(x_m) | G7: f(x_n) - f(x_m)
A8: 0 | B8: =B4 -> 0.999 | C8: =B5 -> 0.001 | D8: =C8-B8 -> -0.998 | E8: =$D$5*($H$5*C8+$H$4*((1-(1-C8)^$J$4)^((1-$J$4)/$J$4))*((1-C8)^($J$4-1)))-$D$4*$F$5 -> -540175.1875 | F8: =$D$5*($H$5*B8+$H$4*((1-(1-B8)^$J$4)^((1-$J$4)/$J$4))*((1-B8)^($J$4-1)))-$D$4*$F$5 -> 11732026.95 | G8: =E8-F8 -> -12272202.14
A9: 1 | B9: =B8 -> 0.999 | C9: =C8-(((C8-B8)*E8)/G8) -> 0.0449281256 | D9: =C9-B9 -> -0.9540718744 | E9: =$D$5*($H$5*C9+$H$4*((1-(1-C9)^$J$4)^((1-$J$4)/$J$4))*((1-C9)^($J$4-1)))-$D$4*$F$5 -> -539010.5639 | F9: =$D$5*($H$5*B9+$H$4*((1-(1-B9)^$J$4)^((1-$J$4)/$J$4))*((1-B9)^($J$4-1)))-$D$4*$F$5 -> 11732026.95 | G9: =E9-F9 -> -12271037.52
A10: 2 | B10: 0.999 | C10: =C9-(((C9-B9)*E9)/G9) -> 0.08683614016 | D10: =C10-B10 -> -0.9121638598 | E10: =$D$5*($H$5*C10+$H$4*((1-(1-C10)^$J$4)^((1-$J$4)/$J$4))*((1-C10)^($J$4-1)))-$D$4*$F$5 -> -537772.2995 | F10: =$D$5*($H$5*B10+$H$4*((1-(1-B10)^$J$4)^((1-$J$4)/$J$4))*((1-B10)^($J$4-1)))-$D$4*$F$5 -> 11732026.95 | G10: =E10-F10 -> -12269799.25
A11: 3 | B11: =B10 -> 0.999 | C11: =C10-(((C10-B10)*E10)/G10) -> 0.1268153156 | D11: =C11-B11 -> -0.8721846844 | E11: =$D$5*($H$5*C11+$H$4*((1-(1-C11)^$J$4)^((1-$J$4)/$J$4))*((1-C11)^($J$4-1)))-$D$4*$F$5 -> -536466.543 | F11: =$D$5*($H$5*B11+$H$4*((1-(1-B11)^$J$4)^((1-$J$4)/$J$4))*((1-B11)^($J$4-1)))-$D$4*$F$5 -> 11732026.95 | G11: =E11-F11 -> -12268493.5
A12: 4 | B12: =B11 -> 0.999 | C12: =C11-(((C11-B11)*E11)/G11) -> 0.1649534865 | D12: =C12-B12 -> -0.8340465135 | E12: =$D$5*($H$5*C12+$H$4*((1-(1-C12)^$J$4)^((1-$J$4)/$J$4))*((1-C12)^($J$4-1)))-$D$4*$F$5 -> -535093.3553 | F12: =$D$5*($H$5*B12+$H$4*((1-(1-B12)^$J$4)^((1-$J$4)/$J$4))*((1-B12)^($J$4-1)))-$D$4*$F$5 -> 11732026.95 | G12: =E12-F12 -> -12267120.31
A13: 5 | B13: 0.999 | C13: 0.201334702 | D13: -0.797665298 | E13: -533650.9794 | F13: 11732026.95 | G13: -12265677.93
A14: 6 | B14: 0.999 | C14: 0.2360392548 | D14: -0.7629607452 | E14: -532136.8044 | F14: 11732026.95 | G14: -12264163.76
A15: 7 | B15: 0.999 | C15: 0.2691437942 | D15: -0.7298562058 | E15: -530547.7542 | F15: 11732026.95 | G15: -12262574.71
A16: 8 | B16: 0.999 | C16: 0.300721467 | D16: -0.698278533 | E16: -528880.4833 | F16: 11732026.95 | G16: -12260907.44
A17: 9 | B17: 0.999 | C17: 0.3308420669 | D17: -0.6681579331 | E17: -527131.4897 | F17: 11732026.95 | G17: -12259158.44
A18: 10 | B18: 0.999 | C18: 0.3595721864 | D18: -0.6394278136 | E18: -525297.1872 | F18: 11732026.95 | G18: -12257324.14
A19: 11 | B19: 0.999 | C19: 0.3869753641 | D19: -0.6120246359 | E19: -523373.9557 | F19: 11732026.95 | G19: -12255400.91
A20: 12 | B20: 0.999 | C20: 0.4131122287 | D20: -0.5858877713 | E20: -521358.1777 | F20: 11732026.95 | G20: -12253385.13
A21: 13 | B21: 0.999 | C21: 0.4380406365 | D21: -0.5609593635 | E21: -519246.2678 | F21: 11732026.95 | G21: -12251273.22
A22: 14 | B22: 0.999 | C22: 0.4618158026 | D22: -0.5371841974 | E22: -517034.6963 | F22: 11732026.95 | G22: -12249061.65
A23: 15 | B23: 0.999 | C23: 0.4844904267 | D23: -0.5145095733 | E23: -514720.0109 | F23: 11732026.95 | G23: -12246746.97
A24: 16 | B24: 0.999 | C24: 0.5061148118 | D24: -0.4928851882 | E24: -512298.8545 | F24: 11732026.95 | G24: -12244325.81
A25: 17 | B25: 0.999 | C25: 0.5267369777 | D25: -0.4722630223 | E25: -509767.9835 | F25: 11732026.95 | G25: -12241794.94
A26: 18 | B26: 0.999 | C26: 0.5464027677 | D26: -0.4525972323 | E26: -507124.2837 | F26: 11732026.95 | G26: -12239151.24
A27: 19 | B27: 0.999 | C27: 0.565155951 | D27: -0.433844049 | E27: -504364.7869 | F27: 11732026.95 | G27: -12236391.74
A28: 20 | B28: 0.999 | C28: 0.5830383191 | D28: -0.4159616809 | E28: -501486.6862 | F28: 11732026.95 | G28: -12233513.64
A29: 20 | B29: =B28 -> 0.999 | C29: =C28-(((C28-B28)*E28)/G28) -> 0.6000897772 | D29: =C29-B29 -> -0.3989102228 | E29: =$D$5*($H$5*C29+$H$4*((1-(1-C29)^$J$4)^((1-$J$4)/$J$4))*((1-C29)^($J$4-1)))-$D$4*$F$5 -> -498487.3514 | F29: =$D$5*($H$5*B29+$H$4*((1-(1-B29)^$J$4)^((1-$J$4)/$J$4))*((1-B29)^($J$4-1)))-$D$4*$F$5 -> 11732026.95 | G29: =E29-F29 -> -12230514.31
A30: 20 | B30: =B29 -> 0.999 | C30: =C29-(((C29-B29)*E29)/G29) -> 0.6163484312 | D30: =C30-B30 -> -0.3826515688 | E30: =$D$5*($H$5*C30+$H$4*((1-(1-C30)^$J$4)^((1-$J$4)/$J$4))*((1-C30)^($J$4-1)))-$D$4*$F$5 -> -495364.3444 | F30: =$D$5*($H$5*B30+$H$4*((1-(1-B30)^$J$4)^((1-$J$4)/$J$4))*((1-B30)^($J$4-1)))-$D$4*$F$5 -> 11732026.95 | G30: =E30-F30 -> -12227391.3
A31: 20 | B31: 0.999 | C31: 0.6318506703 | D31: -0.3671493297 | E31: -492115.4342 | F31: 11732026.95 | G31: -12224142.39
A32: 20 | B32: 0.999 | C32: 0.6466312452 | D32: -0.3523687548 | E32: -488738.6119 | F32: 11732026.95 | G32: -12220765.57
A33: 20 | B33: 0.999 | C33: 0.6607233424 | D33: -0.3382766576 | E33: -485232.1053 | F33: 11732026.95 | G33: -12217259.06
A34: 20 | B34: 0.999 | C34: 0.674158655 | D34: -0.324841345 | E34: -481594.3934 | F34: 11732026.95 | G34: -12213621.35
A35: 20 | B35: 0.999 | C35: 0.6869674498 | D35: -0.3120325502 | E35: -477824.2207 | F35: 11732026.95 | G35: -12209851.18
A36: 20 | B36: 0.999 | C36: 0.6991786314 | D36: -0.2998213686 | E36: -473920.6106 | F36: 11732026.95 | G36: -12205947.57
A37: 20 | B37: 0.999 | C37: 0.7108198027 | D37: -0.2881801973 | E37: -469882.8789 | F37: 11732026.95 | G37: -12201909.83
A38: 20 | B38: 0.999 | C38: 0.7219173229 | D38: -0.2770826771 | E38: -465710.6463 | F38: 11732026.95 | G38: -12197737.6
A39: 20 | B39: 0.999 | C39: 0.7324963628 | D39: -0.2665036372 | E39: -461403.8498 | F39: 11732026.95 | G39: -12193430.8
A40: 20 | B40: 0.999 | C40: 0.7425809572 | D40: -0.2564190428 | E40: -456962.7542 | F40: 11732026.95 | G40: -12188989.71
A41: 20 | B41: 0.999 | C41: 0.7521940552 | D41: -0.2468059448 | E41: -452387.9614 | F41: 11732026.95 | G41: -12184414.92
A42: 20 | B42: 0.999 | C42: 0.7613575676 | D42: -0.2376424324 | E42: -447680.4194 | F42: 11732026.95 | G42: -12179707.37
A43: 21 | B43: 0.999 | C43: 0.7700924133 | D43: -0.2289075867 | E43: -442841.4298 | F43: 11732026.95 | G43: -12174868.38
A44: 22 | B44: 0.999 | C44: 0.7784185619 | D44: -0.2205814381 | E44: -437872.6536 | F44: 11732026.95 | G44: -12169899.61
A45: 23 | B45: 0.999 | C45: 0.7863550759 | D45: -0.2126449241 | E45: -432776.1158 | F45: 11732026.95 | G45: -12164803.07
A46: 24 | B46: 0.999 | C46: 0.7939201507 | D46: -0.2050798493 | E46: -427554.2082 | F46: 11732026.95 | G46: -12159581.16
A47: 25 | B47: 0.999 | C47: 0.8011311517 | D47: -0.1978688483 | E47: -422209.6904 | F47: 11732026.95 | G47: -12154236.65
A48: 26 | B48: 0.999 | C48: 0.8080046517 | D48: -0.1909953483 | E48: -416745.6888 | F48: 11732026.95 | G48: -12148772.64
A49: 27 | B49: 0.999 | C49: 0.8145564648 | D49: -0.1844435352 | E49: -411165.6943 | F49: 11732026.95 | G49: -12143192.65
A50: 28 | B50: 0.999 | C50: 0.8208016802 | D50: -0.1781983198 | E50: -405473.5569 | F50: 11732026.95 | G50: -12137500.51
A51: 29 | B51: 0.999 | C51: 0.8267546939 | D51: -0.1722453061 | E51: -399673.4795 | F51: 11732026.95 | G51: -12131700.43
A52: 30 | B52: 0.999 | C52: 0.832429239 | D52: -0.166570761 | E52: -393770.0081 | F52: 11732026.95 | G52: -12125796.96
A53: 31 | B53: 0.999 | C53: 0.837838415 | D53: -0.161161585 | E53: -387768.0215 | F53: 11732026.95 | G53: -12119794.98
A54: 32 | B54: 0.999 | C54: 0.8429947158 | D54: -0.1560052842 | E54: -381672.7177 | F54: 11732026.95 | G54: -12113699.67
A55: 33 | B55: 0.999 | C55: 0.8479100565 | D55: -0.1510899435 | E55: -375489.5987 | F55: 11732026.95 | G55: -12107516.55
A56: 34 | B56: 0.999 | C56: 0.8525957988 | D56: -0.1464042012 | E56: -369224.4532 | F56: 11732026.95 | G56: -12101251.41
A57: 35 | B57: 0.999 | C57: 0.8570627757 | D57: -0.1419372243 | E57: -362883.3374 | F57: 11732026.95 | G57: -12094910.29
A58: 36 | B58: 0.999 | C58: 0.8613213153 | D58: -0.1376786847 | E58: -356472.5543 | F58: 11732026.95 | G58: -12088499.51
A59: 37 | B59: 0.999 | C59: 0.8653812627 | D59: -0.1336187373 | E59: -349998.6305 | F59: 11732026.95 | G59: -12082025.59
A60: 38 | B60: 0.999 | C60: 0.8692520023 | D60: -0.1297479977 | E60: -343468.2922 | F60: 11732026.95 | G60: -12075495.25
A61: 39 | B61: 0.999 | C61: 0.8729424781 | D61: -0.1260575219 | E61: -336888.4396 | F61: 11732026.95 | G61: -12068915.39
A62: 40 | B62: 0.999 | C62: 0.8764612137 | D62: -0.1225387863 | E62: -330266.1198 | F62: 11732026.95 | G62: -12062293.07
A63: 41 | B63: 0.999 | C63: 0.8798163311 | D63: -0.1191836689 | E63: -323608.4993 | F63: 11732026.95 | G63: -12055635.45
A64: 42 | B64: 0.999 | C64: 0.8830155692 | D64: -0.1159844308 | E64: -316922.8353 | F64: 11732026.95 | G64: -12048949.79
A65: 43 | B65: 0.999 | C65: 0.886066301 | D65: -0.112933699 | E65: -310216.4464 | F65: 11732026.95 | G65: -12042243.4
A66: 44 | B66: 0.999 | C66: 0.8889755505 | D66: -0.1100244495 | E66: -303496.6833 | F66: 11732026.95 | G66: -12035523.64
A67: 45 | B67: 0.999 | C67: 0.8917500086 | D67: -0.1072499914 | E67: -296770.8992 | F67: 11732026.95 | G67: -12028797.85
A68: 46 | B68: 0.999 | C68: 0.8943960483 | D68: -0.1046039517 | E68: -290046.4205 | F68: 11732026.95 | G68: -12022073.38
A69: 47 | B69: 0.999 | C69: 0.8969197396 | D69: -0.1020802604 | E69: -283330.5177 | F69: 11732026.95 | G69: -12015357.47
A70: 48 | B70: 0.999 | C70: 0.8993268634 | D70: -0.09967313664 | E70: -276630.3773 | F70: 11732026.95 | G70: -12008657.33
A71: 49 | B71: 0.999 | C71: 0.901622925 | D71: -0.097377075 | E71: -269953.0739 | F71: 11732026.95 | G71: -12001980.03
A72: 50 | B72: 0.999 | C72: 0.903813167 | D72: -0.095186833 | E72: -263305.5443 | F72: 11732026.95 | G72: -11995332.5
A73: 51 | B73: 0.999 | C73: 0.9059025814 | D73: -0.09309741857 | E73: -256694.5619 | F73: 11732026.95 | G73: -11988721.52
A74: 52 | B74: 0.999 | C74: 0.9078959217 | D74: -0.09110407832 | E74: -250126.713 | F74: 11732026.95 | G74: -11982153.67
A75: 53 | B75: 0.999 | C75: 0.9097977136 | D75: -0.08920228635 | E75: -243608.3749 | F75: 11732026.95 | G75: -11975635.33
A76: 54 | B76: 0.999 | C76: 0.9116122666 | D76: -0.08738773343 | E76: -237145.6952 | F76: 11732026.95 | G76: -11969172.65
A77: 55 | B77: 0.999 | C77: 0.9133436832 | D77: -0.08565631679 | E77: -230744.5733 | F77: 11732026.95 | G77: -11962771.53
A78: 56 | B78: 0.999 | C78: 0.9149958698 | D78: -0.08400413023 | E78: -224410.6438 | F78: 11732026.95 | G78: -11956437.6
A79: 57 | B79: 0.999 | C79: 0.9165725452 | D79: -0.08242745484 | E79: -218149.2619 | F79: 11732026.95 | G79: -11950176.22
A80: 58 | B80: 0.999 | C80: 0.91807725 | D80: -0.08092274996 | E80: -211965.4903 | F80: 11732026.95 | G80: -11943992.45
A81: 59 | B81: 0.999 | C81: 0.9195133553 | D81: -0.0794866447 | E81: -205864.0896 | F81: 11732026.95 | G81: -11937891.04
A82: 60 | B82: 0.999 | C82: 0.9208840702 | D82: -0.07811592975 | E82: -199849.5088 | F82: 11732026.95 | G82: -11931876.46
A83: 61 | B83: 0.999 | C83: 0.9221924504 | D83: -0.07680754961 | E83: -193925.8797 | F83: 11732026.95 | G83: -11925952.83
A84: 62 | B84: 0.999 | C84: 0.9234414048 | D84: -0.07555859518 | E84: -188097.0122 | F84: 11732026.95 | G84: -11920123.97
A85: 63 | B85: 0.999 | C85: 0.9246337033 | D85: -0.07436629667 | E85: -182366.3915 | F85: 11732026.95 | G85: -11914393.35
A86: 64 | B86: 0.999 | C86: 0.9257719831 | D86: -0.07322801688 | E86: -176737.1781 | F86: 11732026.95 | G86: -11908764.13
A87: 65 | B87: 0.999 | C87: 0.9268587553 | D87: -0.07214124474 | E87: -171212.2089 | F87: 11732026.95 | G87: -11903239.16
A88: 66 | B88: 0.999 | C88: 0.9278964108 | D88: -0.07110358922 | E88: -165793.9996 | F88: 11732026.95 | G88: -11897820.95
A89: 67 | B89: 0.999 | C89: 0.9288872265 | D89: -0.07011277347 | E89: -160484.7497 | F89: 11732026.95 | G89: -11892511.7
A90: 68 | B90: 0.999 | C90: 0.9298333707 | D90: -0.06916662927 | E90: -155286.3484 | F90: 11732026.95 | G90: -11887313.3
A91: 69 | B91: 0.999 | C91: 0.9307369082 | D91: -0.06826309178 | E91: -150200.3813 | F91: 11732026.95 | G91: -11882227.34
A92: 70 | B92: 0.999 | C92: 0.9315998056 | D92: -0.06740019443 | E92: -145228.1395 | F92: 11732026.95 | G92: -11877255.09
A93: 71 | B93: 0.999 | C93: 0.9324239358 | D93: -0.06657606421 | E93: -140370.6285 | F93: 11732026.95 | G93: -11872397.58
A94: 72 | B94: =B93 -> 0.999 | C94: =C93-(((C93-B93)*E93)/G93) -> 0.9332110829 | D94: =C94-B94 -> -0.06578891706 | E94: =$D$5*($H$5*C94+$H$4*((1-(1-C94)^$J$4)^((1-$J$4)/$J$4))*((1-C94)^($J$4-1)))-$D$4*$F$5 -> -135628.5793 | F94: =$D$5*($H$5*B94+$H$4*((1-(1-B94)^$J$4)^((1-$J$4)/$J$4))*((1-B94)^($J$4-1)))-$D$4*$F$5 -> 11732026.95 | G94: =E94-F94 -> -11867655.53
A95: 73 | B95: 0.999 | C95: 0.9339629465 | D95: -0.06503705353 | E95: -131002.4586 | F95: 11732026.95 | G95: -11863029.41
A96: 74 | B96: 0.999 | C96: 0.9346811453 | D96: -0.0643188547 | E96: -126492.4816 | F96: 11732026.95 | G96: -11858519.44
A97: 75 | B97: 0.999 | C97: 0.9353672218 | D97: -0.06363277819 | E97: -122098.6239 | F97: 11732026.95 | G97: -11854125.58
A98: 76 | B98: 0.999 | C98: 0.9360226455 | D98: -0.06297735451 | E98: -117820.6344 | F98: 11732026.95 | G98: -11849847.59
A99: 77 | B99: 0.999 | C99: 0.9366488166 | D99: -0.06235118343 | E99: -113658.0483 | F99: 11732026.95 | G99: -11845685
A100: 78 | B100: 0.999 | C100: 0.9372470693 | D100: -0.06175293066 | E100: -109610.2006 | F100: 11732026.95 | G100: -11841637.16
A101: 79 | B101: 0.999 | C101: 0.9378186754 | D101: -0.06118132464 | E101: -105676.2392 | F101: 11732026.95 | G101: -11837703.19
A102: 80 | B102: 0.999 | C102: 0.9383648465 | D102: -0.06063515346 | E102: -101855.1382 | F102: 11732026.95 | G102: -11833882.09
A103: 81 | B103: 0.999 | C103: 0.938886738 | D103: -0.06011326201 | E103: -98145.71175 | F103: 11732026.95 | G103: -11830172.67
A104: 82 | B104: 0.999 | C104: 0.9393854508 | D104: -0.05961454918 | E104: -94546.62629 | F104: 11732026.95 | G104: -11826573.58
A105: 83 | B105: 0.999 | C105: 0.9398620347 | D105: -0.05913796528 | E105: -91056.41401 | F105: 11732026.95 | G105: -11823083.37
A106: 84 | B106: 0.999 | C106: 0.9403174904 | D106: -0.05868250956 | E106: -87673.48515 | F106: 11732026.95 | G106: -11819700.44
A107: 85 | B107: 0.999 | C107: 0.9407527722 | D107: -0.05824722779 | E107: -84396.14021 | F107: 11732026.95 | G107: -11816423.1
A108: 86 | B108: 0.999 | C108: 0.9411687899 | D108: -0.05783121008 | E108: -81222.5818 | F108: 11732026.95 | G108: -11813249.54
A109: 87 | B109: 0.999 | C109: 0.9415664113 | D109: -0.05743358874 | E109: -78150.92593 | F109: 11732026.95 | G109: -11810177.88
A110: 88 | B110: 0.999 | C110: 0.9419464638 | D110: -0.05705353619 | E110: -75179.21296 | F110: 11732026.95 | G110: -11807206.17
A111: 89 | B111: 0.999 | C111: 0.9423097369 | D111: -0.05669026313 | E111: -72305.41794 | F111: 11732026.95 | G111: -11804332.37
A112: 90 | B112: 0.999 | C112: 0.9426569834 | D112: -0.05634301662 | E112: -69527.46053 | F112: 11732026.95 | G112: -11801554.42
A113: 91 | B113: 0.999 | C113: 0.9429889216 | D113: -0.05601107841 | E113: -66843.21438 | F113: 11732026.95 | G113: -11798870.17
A114: 92 | B114: 0.999 | C114: 0.9433062368 | D114: -0.05569376324 | E114: -64250.51594 | F114: 11732026.95 | G114: -11796277.47
A115: 93 | B115: 0.999 | C115: 0.9436095827 | D115: -0.05539041729 | E115: -61747.17276 | F115: 11732026.95 | G115: -11793774.13
A116: 94 | B116: 0.999 | C116: 0.9438995833 | D116: -0.05510041668 | E116: -59330.97133 | F116: 11732026.95 | G116: -11791357.93
A117: 95 | B117: 0.999 | C117: 0.9441768339 | D117: -0.05482316606 | E117: -56999.68424 | F117: 11732026.95 | G117: -11789026.64
A118: 96 | B118: 0.999 | C118: 0.9444419027 | D118: -0.05455809726 | E118: -54751.07698 | F118: 11732026.95 | G118: -11786778.03
A119: 97 | B119: 0.999 | C119: 0.944695332 | D119: -0.05430466799 | E119: -52582.91416 | F119: 11732026.95 | G119: -11784609.87
A120: 98 | B120: 0.999 | C120: 0.9449376394 | D120: -0.05406236063 | E120: -50492.96523 | F120: 11732026.95 | G120: -11782519.92
A121: 99 | B121: 0.999 | C121: 0.9451693189 | D121: -0.05383068108 | E121: -48479.00975 | F121: 11732026.95 | G121: -11780505.96
A122: 100 | B122: 0.999 | C122: 0.9453908423 | D122: -0.05360915765 | E122: -46538.8422 | F122: 11732026.95 | G122: -11778565.8
A123: 101 | B123: 0.999 | C123: 0.94560266 | D123: -0.05339734 | E123: -44670.27633 | F123: 11732026.95 | G123: -11776697.23
A124: 102 | B124: 0.999 | C124: 0.9458052018 | D124: -0.05319479816 | E124: -42871.14911 | F124: 11732026.95 | G124: -11774898.1
A125: 103 | B125: 0.999 | C125: 0.9459988784 | D125: -0.05300112157 | E125: -41139.32424 | F125: 11732026.95 | G125: -11773166.28
A126: 104 | B126: 0.999 | C126: 0.9461840818 | D126: -0.05281591818 | E126: -39472.69534 | F126: 11732026.95 | G126: -11771499.65
A127: 105 | B127: 0.999 | C127: 0.9463611864 | D127: -0.05263881359 | E127: -37869.18874 | F127: 11732026.95 | G127: -11769896.14
A128: 106 | B128: 0.999 | C128: 0.9465305498 | D128: -0.05246945022 | E128: -36326.76591 | F128: 11732026.95 | G128: -11768353.72
A129: 107 | B129: 0.999 | C129: 0.9466925134 | D129: -0.05230748658 | E129: -34843.42561 | F129: 11732026.95 | G129: -11766870.38
A130: 108 | B130: 0.999 | C130: 0.9468474035 | D130: -0.05215259646 | E130: -33417.20573 | F130: 11732026.95 | G130: -11765444.16
A131: 109 | B131: 0.999 | C131: 0.9469955317 | D131: -0.05200446826 | E131: -32046.18487 | F131: 11732026.95 | G131: -11764073.14
A132: 110 | B132: 0.999 | C132: 0.9471371957 | D132: -0.05186280433 | E132: -30728.48357 | F132: 11732026.95 | G132: -11762755.44
A133: 111 | B133: 0.999 | C133: 0.9472726797 | D133: -0.05172732032 | E133: -29462.26545 | F133: 11732026.95 | G133: -11761489.22
A134: 112 | B134: 0.999 | C134: 0.9474022555 | D134: -0.05159774455 | E134: -28245.738 | F134: 11732026.95 | G134: -11760272.69
A135: 113 | B135: 0.999 | C135: 0.9475261825 | D135: -0.05147381746 | E135: -27077.1532 | F135: 11732026.95 | G135: -11759104.11
A136: 114 | B136: 0.999 | C136: 0.947644709 | D136: -0.05135529104 | E136: -25954.808 | F136: 11732026.95 | G136: -11757981.76
A137: 115 | B137: 0.999 | C137: 0.9477580717 | D137: -0.05124192833 | E137: -24877.04457 | F137: 11732026.95 | G137: -11756904
A138: 116 | B138: 0.999 | C138: 0.9478664971 | D138: -0.05113350287 | E138: -23842.2504 | F138: 11732026.95 | G138: -11755869.21
A139: 117 | B139: 0.999 | C139: 0.9479702017 | D139: -0.05102979826 | E139: -22848.85832 | F139: 11732026.95 | G139: -11754875.81
A140: 118 | B140: 0.999 | C140: 0.9480693923 | D140: -0.05093060771 | E140: -21895.34627 | F140: 11732026.95 | G140: -11753922.3
A141: 119 | B141: 0.999 | C141: 0.9481642664 | D141: -0.05083573357 | E141: -20980.23712 | F141: 11732026.95 | G141: -11753007.19
A142: 120 | B142: 0.999 | C142: 0.9482550131 | D142: -0.05074498694 | E142: -20102.09819 | F142: 11732026.95 | G142: -11752129.05
A143: 121 | B143: 0.999 | C143: 0.9483418127 | D143: -0.05065818729 | E143: -19259.54088 | F143: 11732026.95 | G143: -11751286.5
A144: 122 | B144: 0.999 | C144: 0.948424838 | D144: -0.05057516205 | E144: -18451.22004 | F144: 11732026.95 | G144: -11750478.17
A145: 123 | B145: 0.999 | C145: 0.9485042537 | D145: -0.05049574626 | E145: -17675.83341 | F145: 11732026.95 | G145: -11749702.79
A146: 124 | B146: 0.999 | C146: 0.9485802177 | D146: -0.05041978226 | E146: -16932.12089 | F146: 11732026.95 | G146: -11748959.08
A147: 125 | B147: 0.999 | C147: 0.9486528807 | D147: -0.05034711933 | E147: -16218.86383 | F147: 11732026.95 | G147: -11748245.82
A148: 126 | B148: 0.999 | C148: 0.9487223866 | D148: -0.05027761337 | E148: -15534.88421 | F148: 11732026.95 | G148: -11747561.84
A149: 127 | B149: 0.999 | C149: 0.9487888734 | D149: -0.05021112665 | E149: -14879.04386 | F149: 11732026.95 | G149: -11746906
A150: 128 | B150: 0.999 | C150: 0.9488524725 | D150: -0.05014752747 | E150: -14250.24356 | F150: 11732026.95 | G150: -11746277.2
A151: 129 | B151: 0.999 | C151: 0.9489133101 | D151: -0.05008668994 | E151: -13647.42218 | F151: 11732026.95 | G151: -11745674.38
A152: 130 | B152: 0.999 | C152: 0.9489715063 | D152: -0.05002849369 | E152: -13069.55576 | F152: 11732026.95 | G152: -11745096.51
A153: 131 | B153: 0.999 | C153: 0.9490271764 | D153: -0.04997282363 | E153: -12515.65659 | F153: 11732026.95 | G153: -11744542.61
A154: 132 | B154: 0.999 | C154: 0.9490804303 | D154: -0.04991956973 | E154: -11984.77227 | F154: 11732026.95 | G154: -11744011.73
A155: 133 | B155: 0.999 | C155: 0.9491313732 | D155: -0.04986862678 | E155: -11475.98479 | F155: 11732026.95 | G155: -11743502.94
A156: 134 | B156: 0.999 | C156: 0.9491801058 | D156: -0.04981989416 | E156: -10988.40956 | F156: 11732026.95 | G156: -11743015.36
A157: 135 | B157: 0.999 | C157: 0.9492267243 | D157: -0.04977327569 | E157: -10521.19445 | F157: 11732026.95 | G157: -11742548.15
A158: 136 | B158: =B157 -> 0.999 | C158: =C157-(((C157-B157)*E157)/G157) -> 0.9492713206 | D158: =C158-B158 -> -0.04972867938 | E158: =$D$5*($H$5*C158+$H$4*((1-(1-C158)^$J$4)^((1-$J$4)/$J$4))*((1-C158)^($J$4-1)))-$D$4*$F$5 -> -10073.51891 | F158: =$D$5*($H$5*B158+$H$4*((1-(1-B158)^$J$4)^((1-$J$4)/$J$4))*((1-B158)^($J$4-1)))-$D$4*$F$5 -> 11732026.95 | G158: =E158-F158 -> -11742100.47
A159: 137 | B159: 0.999 | C159: 0.9493139827 | D159: -0.04968601727 | E159: -9644.592932 | F159: 11732026.95 | G159: -11741671.55
A160: 138 | B160: 0.999 | C160: 0.9493547948 | D160: -0.04964520525 | E160: -9233.65622 | F160: 11732026.95 | G160: -11741260.61
A161: 139 | B161: 0.999 | C161: 0.9493938371 | D161: -0.04960616287 | E161: -8839.977199 | F161: 11732026.95 | G161: -11740866.93
A162: 140 | B162: 0.999 | C162: 0.9494311868 | D162: -0.04956881321 | E162: -8462.852136 | F162: 11732026.95 | G162: -11740489.81
A163: 141 | B163: 0.999 | C163: 0.9494669173 | D163: -0.04953308271 | E163: -8101.604231 | F163: 11732026.95 | G163: -11740128.56
A164: 142 | B164: 0.999 | C164: 0.949501099 | D164: -0.04949890102 | E164: -7755.582742 | F164: 11732026.95 | G164: -11739782.54
A165: 143 | B165: 0.999 | C165: 0.9495337991 | D165: -0.04946620086 | E165: -7424.162116 | F165: 11732026.95 | G165: -11739451.12
A166: 144 | B166: 0.999 | C166: 0.9495650821 | D166: -0.04943491787 | E166: -7106.741138 | F166: 11732026.95 | G166: -11739133.7
A167: 145 | B167: 0.999 | C167: 0.9495950095 | D167: -0.04940499052 | E167: -6802.7421 | F167: 11732026.95 | G167: -11738829.7
A168: 146 | B168: 0.999 | C168: 0.9496236401 | D168: -0.04937635995 | E168: -6511.60999 | F168: 11732026.95 | G168: -11738538.56
A169: 147 | B169: 0.999 | C169: 0.9496510301 | D169: -0.04934896986 | E169: -6232.811694 | F169: 11732026.95 | G169: -11738259.77
A170: 148 | B170: 0.999 | C170: 0.9496772336 | D170: -0.04932276642 | E170: -5965.835221 | F170: 11732026.95 | G170: -11737992.79
A171: 149 | B171: 0.999 | C171: 0.9497023019 | D171: -0.04929769812 | E171: -5710.188951 | F171: 11732026.95 | G171: -11737737.14
A172: 150 | B172: 0.999 | C172: 0.9497262843 | D172: -0.04927371571 | E172: -5465.400897 | F172: 11732026.95 | G172: -11737492.36
A173: 151 | B173: 0.999 | C173: 0.9497492279 | D173: -0.04925077209 | E173: -5231.017988 | F173: 11732026.95 | G173: -11737257.97
A174: 152 | B174: 0.999 | C174: 0.9497711778 | D174: -0.04922882219 | E174: -5006.605377 | F174: 11732026.95 | G174: -11737033.56
A175: 153 | B175: 0.999 | C175: 0.9497921771 | D175: -0.0492078229 | E175: -4791.745764 | F175: 11732026.95 | G175: -11736818.7
A176: 154 | B176: 0.999 | C176: 0.949812267 | D176: -0.04918773302 | E176: -4586.038741 | F176: 11732026.95 | G176: -11736612.99
A177: 155 | B177: 0.999 | C177: 0.9498314869 | D177: -0.04916851309 | E177: -4389.100156 | F177: 11732026.95 | G177: -11736416.05
A178: 156 | B178: 0.999 | C178: 0.9498498746 | D178: -0.0491501254 | E178: -4200.561499 | F178: 11732026.95 | G178: -11736227.52
A179: 157 | B179: 0.999 | C179: 0.9498674661 | D179: -0.04913253388 | E179: -4020.069306 | F179: 11732026.95 | G179: -11736047.02
A180: 158 | B180: 0.999 | C180: 0.949884296 | D180: -0.04911570401 | E180: -3847.284581 | F180: 11732026.95 | G180: -11735874.24
A181: 159 | B181: 0.999 | C181: 0.9499003972 | D181: -0.04909960277 | E181: -3681.882238 | F181: 11732026.95 | G181: -11735708.84
A182: 160 | B182: 0.999 | C182: 0.9499158014 | D182: -0.04908419859 | E182: -3523.550562 | F182: 11732026.95 | G182: -11735550.51
A183: 161 | B183: 0.999 | C183: 0.9499305387 | D183: -0.04906946126 | E183: -3371.990687 | F183: 11732026.95 | G183: -11735398.95
A184: 162 | B184: 0.999 | C184: 0.9499446381 | D184: -0.04905536189 | E184: -3226.916097 | F184: 11732026.95 | G184: -11735253.87
A185: 163 | B185: 0.999 | C185: 0.9499581272 | D185: -0.04904187283 | E185: -3088.052132 | F185: 11732026.95 | G185: -11735115.01
A186: 164 | B186: 0.999 | C186: 0.9499710324 | D186: -0.04902896764 | E186: -2955.135527 | F186: 11732026.95 | G186: -11734982.09
A187: 165 | B187: 0.999 | C187: 0.949983379 | D187: -0.04901662103 | E187: -2827.913955 | F187: 11732026.95 | G187: -11734854.87
A188: 166 | B188: 0.999 | C188: 0.9499951912 | D188: -0.0490048088 | E188: -2706.145595 | F188: 11732026.95 | G188: -11734733.1
A189: 167 | B189: 0.999 | C189: 0.9500064922 | D189: -0.04899350781 | E189: -2589.598707 | F189: 11732026.95 | G189: -11734616.55
A190: 168 | B190: 0.999 | C190: 0.9500173041 | D190: -0.04898269591 | E190: -2478.051232 | F190: 11732026.95 | G190: -11734505.01
A191: 169 | B191: 0.999 | C191: 0.9500276481 | D191: -0.04897235192 | E191: -2371.290397 | F191: 11732026.95 | G191: -11734398.25
A192: 170 | B192: 0.999 | C192: 0.9500375444 | D192: -0.04896245557 | E192: -2269.112344 | F192: 11732026.95 | G192: -11734296.07
A193: 171 | B193: 0.999 | C193: 0.9500470125 | D193: -0.04895298748 | E193: -2171.321767 | F193: 11732026.95 | G193: -11734198.28
A194: 172 | B194: 0.999 | C194: 0.9500560709 | D194: -0.04894392912 | E194: -2077.731565 | F194: 11732026.95 | G194: -11734104.69
A195: 173 | B195: 0.999 | C195: 0.9500647373 | D195: -0.04893526273 | E195: -1988.162505 | F195: 11732026.95 | G195: -11734015.12
A196: 174 | B196: 0.999 | C196: 0.9500730287 | D196: -0.04892697134 | E196: -1902.442902 | F196: 11732026.95 | G196: -11733929.4
A197: 175 | B197: 0.999 | C197: 0.9500809613 | D197: -0.04891903872 | E197: -1820.40831 | F197: 11732026.95 | G197: -11733847.36
A198: 176 | B198: 0.999 | C198: 0.9500885507 | D198: -0.04891144934 | E198: -1741.901225 | F198: 11732026.95 | G198: -11733768.86
A199: 177 | B199: 0.999 | C199: 0.9500958117 | D199: -0.04890418834 | E199: -1666.770798 | F199: 11732026.95 | G199: -11733693.73
A200: 178 | B200: 0.999 | C200: 0.9501027585 | D200: -0.0488972415 | E200: -1594.872558 | F200: 11732026.95 | G200: -11733621.83
A201: 179 | B201: 0.999 | C201: 0.9501094048 | D201: -0.04889059523 | E201: -1526.068153 | F201: 11732026.95 | G201: -11733553.02
A202: 180 | B202: 0.999 | C202: 0.9501157635 | D202: -0.04888423651 | E202: -1460.225094 | F202: 11732026.95 | G202: -11733487.18
... 171 more rows

Sheet FMK-Erf.-Konstanten
A1: Maschine | B1: Kostensätze | F1: Kosten | H1: Anzahl Arbeiter | J1: Kapitalbindungssatz | K1: losgrößenabhängige Rüstkosten
B2: laufende Stillstandskosten | C2: Personalkostensatz | D2: gleiche Entlohnung | E2: Maschinenstundensatz | F2: Stillsetzungskosten | G2: Wiederanlaufkosten | H2: Anzahl Arbeiter | I2: statisch | K2: Umrüstkosten(zeitlich) | L2: Einzelrüstkosten
A3: Montagebereich01 | B3: 23.5 | C3: 20 | D3: TRUE | E3: 32.5 | F3: 17.5 | G3: 19.5 | H3: 3 | I3: TRUE | J3: 0.125 | K3: 13.125 | L3: 25
A4: Montagebereich02 | B4: 28 | C4: 20 | D4: TRUE | E4: 35 | F4: 35 | G4: 42 | H4: 5 | I4: TRUE | K4: 11 | L4: 20

Sheet FMK-Erf.-Erfasste Daten
A1: Datum & Uhrzeit | B1: Artikel | C1: Fehlmenge | D1: Einheit | E1: Fehldauer | F1: Betroffenes | G1: KUnterbr [€] | H1: Kdispo [€] | I1: Kkap [€] | J1: Kleer [€] | K1: Klos,abw [€] | L1: Kfehl [€]
F2: Arbeitssystem
A3: 2010-07-01 | B3: Normteil | C3: 10 | D3: Stück | E3: 1 | F3: Montagebereich01 | G3: 0 | H3: 25 | I3: 40 | J3: 35 | K3: 0 | L3: 100
A4: 2010-07-03 | B4: Normteil | C4: 8 | D4: Stück | E4: 1 | F4: Montagebereich01 | G4: 0 | H4: 25 | I4: 35 | J4: 35 | K4: 0 | L4: 95
A5: 2010-08-01 | B5: Normteil | C5: 2 | D5: Stück | E5: 1 | F5: Montagebereich01 | G5: 0 | H5: 25 | I5: 23 | J5: 35 | K5: 0 | L5: 83
A6: 2010-08-15 | B6: Normteil | C6: 5 | D6: Stück | E6: 2 | F6: Montagebereich01 | G6: 0 | H6: 25 | I6: 34 | J6: 55 | K6: 0 | L6: 114
A7: 2010-08-16 | B7: Normteil | C7: 2 | D7: Stück | E7: 2 | F7: Montagebereich01 | G7: 0 | H7: 25 | I7: 45 | J7: 55 | K7: 0 | L7: 125
A8: 2010-08-17 | B8: Normteil | C8: 7 | D8: Stück | E8: 4 | F8: Montagebereich01 | G8: 50 | H8: 25 | I8: 67 | J8: 55 | K8: 0 | L8: 197
A9: 2010-09-19 | B9: Normteil | C9: 1 | D9: Stück | E9: 4 | F9: Montagebereich01 | G9: 50 | H9: 25 | I9: 34 | J9: 55 | K9: 0 | L9: 164
A10: 2010-08-19 | B10: Normteil | C10: 12 | D10: Stück | E10: 4 | F10: Montagebereich01 | G10: 50 | H10: 25 | I10: 78 | J10: 55 | K10: 0 | L10: 208
A11: 2010-08-20 | B11: Komponente | C11: 4 | D11: Stück | E11: 5 | F11: Montagebereich01 | G11: 65 | H11: 25 | I11: 34 | J11: 55 | K11: 0 | L11: 179
A12: 2010-08-21 | B12: Komponente | C12: 2 | D12: Stück | E12: 5 | F12: Montagebereich01 | G12: 65 | H12: 25 | I12: 21 | J12: 60 | K12: 0 | L12: 171
A13: 2010-06-01 | B13: Komponente | C13: 3 | D13: Stück | E13: 5 | F13: Montagebereich01 | G13: 65 | H13: 25 | I13: 45 | J13: 60 | K13: 0 | L13: 195
A14: 2010-06-02 | B14: Komponente | C14: 2 | D14: Stück | E14: 5 | F14: Montagebereich01 | G14: 65 | H14: 25 | I14: 60 | J14: 60 | K14: 0 | L14: 210
A15: 2010-06-03 | B15: Komponente | C15: 1 | D15: Stück | E15: 8 | F15: Montagebereich01 | G15: 70 | H15: 25 | I15: 60 | J15: 80 | K15: 0 | L15: 235
A16: 2010-06-04 | B16: Komponente | C16: 1 | D16: Stück | E16: 8 | F16: Montagebereich01 | G16: 70 | H16: 25 | I16: 65 | J16: 80 | K16: 0 | L16: 240
A17: 2010-05-24 | B17: Komponente | C17: 2 | D17: Stück | E17: 8 | F17: Montagebereich01 | G17: 70 | H17: 25 | I17: 45 | J17: 80 | K17: 0 | L17: 220
A18: 2010-05-25 | B18: Komponente | C18: 2 | D18: Stück | E18: 8 | F18: Montagebereich01 | G18: 70 | H18: 25 | I18: 34 | J18: 80 | K18: 0 | L18: 209
A19: 2010-05-26 | B19: Komponente | C19: 2 | D19: Stück | E19: 2 | F19: Montagebereich01 | G19: 20 | H19: 25 | I19: 12 | J19: 20 | K19: 0 | L19: 77
A20: 2010-05-27 | B20: Aggregat | C20: 1 | D20: Stück | E20: 6 | F20: Montagebereich02 | G20: 55 | H20: 25 | I20: 65 | J20: 55 | K20: 0 | L20: 200
A21: 2010-03-03 | B21: Aggregat | C21: 1 | D21: Stück | E21: 6 | F21: Montagebereich02 | G21: 55 | H21: 25 | I21: 65 | J21: 55 | K21: 0 | L21: 200
A22: 2010-06-06 | B22: Aggregat | C22: 1 | D22: Stück | E22: 6 | F22: Montagebereich02 | G22: 55 | H22: 25 | I22: 65 | J22: 55 | K22: 0 | L22: 200
A23: 2010-08-23 | B23: Aggregat | C23: 1 | D23: Stück | E23: 6 | F23: Montagebereich02 | G23: 55 | H23: 25 | I23: 65 | J23: 55 | K23: 0 | L23: 200
A24: 2010-09-02 | B24: Aggregat | C24: 1 | D24: Stück | E24: 4 | F24: Montagebereich02 | G24: 45 | H24: 25 | I24: 46 | J24: 45 | K24: 0 | L24: 161
A25: 2010-09-03 | B25: Aggregat | C25: 1 | D25: Stück | E25: 4 | F25: Montagebereich02 | G25: 45 | H25: 25 | I25: 47 | J25: 45 | K25: 0 | L25: 162
A26: 2010-09-04 | B26: Aggregat | C26: 1 | D26: Stück | E26: 4 | F26: Montagebereich02 | G26: 45 | H26: 25 | I26: 36 | J26: 45 | K26: 0 | L26: 151
A27: 2010-06-28T08:25:00 | B27: Aggregat | C27: 1 | D27: Stück | E27: 2 | F27: Montagebereich02 | G27: 0 | H27: 0 | I27: 2.85 | K27: 0 | L27: 2.85
A28: 2010-06-28T08:36:00 | B28: Aggregat | C28: 1 | D28: Stück | E28: 8 | F28: Montagebereich02 | G28: 0 | H28: 0 | I28: 17.12 | K28: 0 | L28: 17.12
